Department,Entity,Transaction Date,Expense Type,Expense Area,Supplier,Transaction No.,Amount
"Department for Business, Energy and Industrial Strategy",The Coal Authority,03/05/2023,Applications Consultancy,DIG - Technical Delivery,Cgi It Uk Ltd,155672,"8,556.60"
"Department for Business, Energy and Industrial Strategy",The Coal Authority,03/05/2023,Applications Consultancy,DIG - Technical Delivery,Cgi It Uk Ltd,155672,521.4
"Department for Business, Energy and Industrial Strategy",The Coal Authority,03/05/2023,Applications Consultancy,DIG - Technical Delivery,Cgi It Uk Ltd,155672,"4,266.00"
"Department for Business, Energy and Industrial Strategy",The Coal Authority,28/04/2023,Bank Charges,Finance,National Westminster Bank Plc,155370,62.72
"Department for Business, Energy and Industrial Strategy",The Coal Authority,05/04/2023,Business Meetings,Executive,Calder Conference Ltd,153733,828.04
"Department for Business, Energy and Industrial Strategy",The Coal Authority,23/03/2023,Business Meetings,Executive,Calder Conference Ltd,153734,"6,991.55"
"Department for Business, Energy and Industrial Strategy",The Coal Authority,23/03/2023,Business Meetings,Executive,Calder Conference Ltd,153734,0
"Department for Business, Energy and Industrial Strategy",The Coal Authority,28/04/2023,Business Meetings,Executive,S P Foods,155410,154.2
"Department for Business, Energy and Industrial Strategy",The Coal Authority,28/04/2023,Business Meetings,Executive,S P Foods,155410,154.2
"Department for Business, Energy and Industrial Strategy",The Coal Authority,22/03/2023,Business Meetings,PS&S - General Claims,Government Procurement Card,155628,5.33
"Department for Business, Energy and Industrial Strategy",The Coal Authority,04/04/2023,Business Meetings,PS&S - General Claims,Government Procurement Card,155629,2.5
"Department for Business, Energy and Industrial Strategy",The Coal Authority,04/04/2023,Business Meetings,PS&S - General Claims,Government Procurement Card,155629,2.83
"Department for Business, Energy and Industrial Strategy",The Coal Authority,05/04/2023,Business Meetings,PS&S - General Claims,Government Procurement Card,155629,5.58
"Department for Business, Energy and Industrial Strategy",The Coal Authority,06/04/2023,Business Meetings,Tips Response,Government Procurement Card,155629,6.33
"Department for Business, Energy and Industrial Strategy",The Coal Authority,06/04/2023,Business Meetings,Tips Response,Government Procurement Card,155629,6.46
"Department for Business, Energy and Industrial Strategy",The Coal Authority,11/04/2023,Business Meetings,PS&S - General Claims,Government Procurement Card,155629,4.25
"Department for Business, Energy and Industrial Strategy",The Coal Authority,12/04/2023,Business Meetings,PS&S - General Claims,Government Procurement Card,155629,5.83
"Department for Business, Energy and Industrial Strategy",The Coal Authority,13/04/2023,Business Meetings,Staff Network and Groups,Government Procurement Card,155629,20.72
"Department for Business, Energy and Industrial Strategy",The Coal Authority,18/04/2023,Business Meetings,Staff Network and Groups,Government Procurement Card,155629,6
"Department for Business, Energy and Industrial Strategy",The Coal Authority,19/04/2023,Business Meetings,PS&S - General Claims,Government Procurement Card,155629,6.67
"Department for Business, Energy and Industrial Strategy",The Coal Authority,19/04/2023,Business Meetings,PS&S - General Claims,Government Procurement Card,155629,9.5
"Department for Business, Energy and Industrial Strategy",The Coal Authority,20/04/2023,Business Meetings,PS&S - General Claims,Government Procurement Card,155629,12.25
"Department for Business, Energy and Industrial Strategy",The Coal Authority,24/04/2023,Business Meetings,People & Organisational Development,Government Procurement Card,155629,114
"Department for Business, Energy and Industrial Strategy",The Coal Authority,26/04/2023,Business Meetings,PS&S - General Claims,Government Procurement Card,155629,1.66
"Department for Business, Energy and Industrial Strategy",The Coal Authority,26/04/2023,Business Meetings,PS&S - General Claims,Government Procurement Card,155629,1.99
"Department for Business, Energy and Industrial Strategy",The Coal Authority,26/04/2023,Business Meetings,PS&S - General Claims,Government Procurement Card,155629,6.23
"Department for Business, Energy and Industrial Strategy",The Coal Authority,02/05/2023,Business Meetings,NRW Metal Mine Programme,Government Procurement Card,155629,60
"Department for Business, Energy and Industrial Strategy",The Coal Authority,23/05/2023,Canteen Equipment,Facilities,All Shires Foods Ltd,155413,9.07
"Department for Business, Energy and Industrial Strategy",The Coal Authority,23/05/2023,Canteen Equipment,Facilities,All Shires Foods Ltd,155413,186.5
"Department for Business, Energy and Industrial Strategy",The Coal Authority,23/05/2023,Canteen Equipment,Facilities,All Shires Foods Ltd,155413,0
"Department for Business, Energy and Industrial Strategy",The Coal Authority,23/05/2023,Canteen Equipment,Facilities,All Shires Foods Ltd,155413,11.31
"Department for Business, Energy and Industrial Strategy",The Coal Authority,23/05/2023,Canteen Equipment,Facilities,All Shires Foods Ltd,155413,108.45
"Department for Business, Energy and Industrial Strategy",The Coal Authority,23/05/2023,Canteen Equipment,Facilities,All Shires Foods Ltd,155413,140.28
"Department for Business, Energy and Industrial Strategy",The Coal Authority,23/05/2023,Canteen Equipment,Facilities,All Shires Foods Ltd,155413,50.05
"Department for Business, Energy and Industrial Strategy",The Coal Authority,23/05/2023,Canteen Equipment,Facilities,All Shires Foods Ltd,155419,53.1
"Department for Business, Energy and Industrial Strategy",The Coal Authority,23/05/2023,Canteen Equipment,Facilities,All Shires Foods Ltd,155419,63.8
"Department for Business, Energy and Industrial Strategy",The Coal Authority,23/05/2023,Canteen Equipment,Facilities,All Shires Foods Ltd,155419,124.14
"Department for Business, Energy and Industrial Strategy",The Coal Authority,24/04/2023,Central Training,Community Response,Staff Expenses Control,153569,8.48
"Department for Business, Energy and Industrial Strategy",The Coal Authority,20/04/2023,Central Training,People & Organisational Development,Government Events,153766,319.2
"Department for Business, Energy and Industrial Strategy",The Coal Authority,27/04/2023,Central Training,"Health, Safety & Wellbeing",MHFA England,153945,"3,500.00"
"Department for Business, Energy and Industrial Strategy",The Coal Authority,27/04/2023,Central Training,"Health, Safety & Wellbeing",Mines Rescue Service Limited,153950,282
"Department for Business, Energy and Industrial Strategy",The Coal Authority,16/05/2023,Central Training,People & Organisational Development,Wellbeing Therapy Solutions,154906,300
"Department for Business, Energy and Industrial Strategy",The Coal Authority,12/05/2023,Central Training,Corporate Programme Office,Staff Expenses Control,155178,250
"Department for Business, Energy and Industrial Strategy",The Coal Authority,15/05/2023,Central Training,Corporate Programme Office,Staff Expenses Control,155178,250
"Department for Business, Energy and Industrial Strategy",The Coal Authority,15/05/2023,Central Training,"Health, Safety & Wellbeing",RED DRM Ltd TA RED TRAINING,155232,280
"Department for Business, Energy and Industrial Strategy",The Coal Authority,15/05/2023,Central Training,"Health, Safety & Wellbeing",RED DRM Ltd TA RED TRAINING,155233,280
"Department for Business, Energy and Industrial Strategy",The Coal Authority,16/05/2023,Central Training,"Health, Safety & Wellbeing",Risk & Safety Management Serv,155234,289
"Department for Business, Energy and Industrial Strategy",The Coal Authority,22/05/2023,Central Training,"Health, Safety & Wellbeing",Risk & Safety Management Serv,155496,289
"Department for Business, Energy and Industrial Strategy",The Coal Authority,19/05/2023,Central Training,"Health, Safety & Wellbeing",All Terrain Services Ltd,155505,787
"Department for Business, Energy and Industrial Strategy",The Coal Authority,17/05/2023,Central Training,People & Organisational Development,Oe Cam Llp,155539,576.44
"Department for Business, Energy and Industrial Strategy",The Coal Authority,12/05/2023,Central Training,Innovation By-Product & Services Delivery,Staff Expenses Control,155553,480
"Department for Business, Energy and Industrial Strategy",The Coal Authority,20/04/2023,Central Training,People & Organisational Development,ACAS,155577,185
"Department for Business, Energy and Industrial Strategy",The Coal Authority,19/04/2023,Central Training,People & Organisational Development,Government Procurement Card,155629,328.5
"Department for Business, Energy and Industrial Strategy",The Coal Authority,30/04/2023,Cleaning Materials,Facilities,Fidelis,154148,262.66
"Department for Business, Energy and Industrial Strategy",The Coal Authority,31/01/2023,Cleaning Materials,Facilities,Fidelis,155235,451.12
"Department for Business, Energy and Industrial Strategy",The Coal Authority,10/03/2023,Consultancy - Employee Matters,NRW Metal Mine Programme,Government Procurement Card,155628,5
"Department for Business, Energy and Industrial Strategy",The Coal Authority,27/03/2023,Consultancy - Employee Matters,NRW Metal Mine Programme,Government Procurement Card,155628,2.5
"Department for Business, Energy and Industrial Strategy",The Coal Authority,04/04/2023,Consultancy - Employee Matters,NRW Metal Mine Programme,Government Procurement Card,155629,6
"Department for Business, Energy and Industrial Strategy",The Coal Authority,04/04/2023,Consultancy - Employee Matters,NRW Metal Mine Programme,Government Procurement Card,155629,3
"Department for Business, Energy and Industrial Strategy",The Coal Authority,31/03/2023,Contract Hire Vehicles,PS&S - General Claims,Days Fleet,154462,637.12
"Department for Business, Energy and Industrial Strategy",The Coal Authority,31/03/2023,Contract Hire Vehicles,PS&S - General Claims,Days Fleet,154462,"6,371.16"
"Department for Business, Energy and Industrial Strategy",The Coal Authority,31/03/2023,Contract Hire Vehicles,PS&S - General Claims,Days Fleet,154462,0
"Department for Business, Energy and Industrial Strategy",The Coal Authority,31/03/2023,Contract Hire Vehicles,PS&S - General Claims,Days Fleet,154462,589.32
"Department for Business, Energy and Industrial Strategy",The Coal Authority,28/04/2022,Contract Hire Vehicles,PS&S - General Claims,Kinto UK Limited,154630,295.15
"Department for Business, Energy and Industrial Strategy",The Coal Authority,28/04/2022,Contract Hire Vehicles,PS&S - General Claims,Kinto UK Limited,154630,463.38
"Department for Business, Energy and Industrial Strategy",The Coal Authority,28/04/2022,Contract Hire Vehicles,PS&S - General Claims,Kinto UK Limited,154630,68.84
"Department for Business, Energy and Industrial Strategy",The Coal Authority,28/04/2022,Contract Hire Vehicles,PS&S - General Claims,Kinto UK Limited,154630,51.78
"Department for Business, Energy and Industrial Strategy",The Coal Authority,28/04/2022,Contract Hire Vehicles,PS&S - General Claims,Kinto UK Limited,154630,29.51
"Department for Business, Energy and Industrial Strategy",The Coal Authority,28/04/2022,Contract Hire Vehicles,PS&S - General Claims,Kinto UK Limited,154630,46.34
"Department for Business, Energy and Industrial Strategy",The Coal Authority,29/06/2022,Contract Hire Vehicles,PS&S - General Claims,Kinto UK Limited,154631,295.15
"Department for Business, Energy and Industrial Strategy",The Coal Authority,29/06/2022,Contract Hire Vehicles,PS&S - General Claims,Kinto UK Limited,154631,68.84
"Department for Business, Energy and Industrial Strategy",The Coal Authority,29/06/2022,Contract Hire Vehicles,PS&S - General Claims,Kinto UK Limited,154631,29.51
"Department for Business, Energy and Industrial Strategy",The Coal Authority,29/06/2022,Contract Hire Vehicles,PS&S - General Claims,Kinto UK Limited,154631,463.38
"Department for Business, Energy and Industrial Strategy",The Coal Authority,29/06/2022,Contract Hire Vehicles,PS&S - General Claims,Kinto UK Limited,154631,46.34
"Department for Business, Energy and Industrial Strategy",The Coal Authority,29/06/2022,Contract Hire Vehicles,PS&S - General Claims,Kinto UK Limited,154631,51.78
"Department for Business, Energy and Industrial Strategy",The Coal Authority,30/04/2023,Contract Hire Vehicles,Facilities,Enterprise Rent A Car,154737,"2,855.79"
"Department for Business, Energy and Industrial Strategy",The Coal Authority,27/04/2023,Contract Hire Vehicles,PS&S - General Claims,Kinto UK Limited,154739,66.77
"Department for Business, Energy and Industrial Strategy",The Coal Authority,27/04/2023,Contract Hire Vehicles,PS&S - General Claims,Kinto UK Limited,154739,0
"Department for Business, Energy and Industrial Strategy",The Coal Authority,27/04/2023,Contract Hire Vehicles,PS&S - General Claims,Kinto UK Limited,154739,365.59
"Department for Business, Energy and Industrial Strategy",The Coal Authority,27/04/2023,Contract Hire Vehicles,PS&S - General Claims,Kinto UK Limited,154739,48.49
"Department for Business, Energy and Industrial Strategy",The Coal Authority,27/04/2023,Contract Hire Vehicles,PS&S - General Claims,Kinto UK Limited,154739,463.47
"Department for Business, Energy and Industrial Strategy",The Coal Authority,27/04/2023,Contract Hire Vehicles,PS&S - General Claims,Kinto UK Limited,154739,46.35
"Department for Business, Energy and Industrial Strategy",The Coal Authority,27/04/2023,Contract Hire Vehicles,PS&S - General Claims,Kinto UK Limited,154739,405.81
"Department for Business, Energy and Industrial Strategy",The Coal Authority,27/04/2023,Contract Hire Vehicles,PS&S - General Claims,Kinto UK Limited,154739,48.5
"Department for Business, Energy and Industrial Strategy",The Coal Authority,27/04/2023,Contract Hire Vehicles,PS&S - General Claims,Kinto UK Limited,154739,447.65
"Department for Business, Energy and Industrial Strategy",The Coal Authority,27/04/2023,Contract Hire Vehicles,PS&S - General Claims,Kinto UK Limited,154739,48.49
"Department for Business, Energy and Industrial Strategy",The Coal Authority,27/04/2023,Contract Hire Vehicles,PS&S - General Claims,Kinto UK Limited,154739,36.56
"Department for Business, Energy and Industrial Strategy",The Coal Authority,27/04/2023,Contract Hire Vehicles,PS&S - General Claims,Kinto UK Limited,154739,40.58
"Department for Business, Energy and Industrial Strategy",The Coal Authority,27/04/2023,Contract Hire Vehicles,PS&S - General Claims,Kinto UK Limited,154739,"6,552.67"
"Department for Business, Energy and Industrial Strategy",The Coal Authority,27/04/2023,Contract Hire Vehicles,PS&S - General Claims,Kinto UK Limited,154739,830.6
"Department for Business, Energy and Industrial Strategy",The Coal Authority,27/04/2023,Contract Hire Vehicles,PS&S - General Claims,Kinto UK Limited,154739,655.27
"Department for Business, Energy and Industrial Strategy",The Coal Authority,27/04/2023,Contract Hire Vehicles,PS&S - General Claims,Kinto UK Limited,154739,44.76
"Department for Business, Energy and Industrial Strategy",The Coal Authority,30/04/2023,Contract Hire Vehicles,Facilities,Harveys Autocentre Ltd,155222,70
"Department for Business, Energy and Industrial Strategy",The Coal Authority,11/04/2023,CY - Intangible IT - Additions,ENV - Mine Water Operations,Severn Trent Serv Ops Uk Ltd,154723,"9,253.29"
"Department for Business, Energy and Industrial Strategy",The Coal Authority,03/05/2023,CY - Intangible IT - Additions,DIG - Technical Delivery,Cgi It Uk Ltd,155672,"12,433.80"
"Department for Business, Energy and Industrial Strategy",The Coal Authority,31/03/2023,CY - Minewater Scheme - Additions,ENV - Projects & Delivery,Strata Geotechnics (part of Van Elle Limited),153675,"16,198.30"
"Department for Business, Energy and Industrial Strategy",The Coal Authority,31/03/2023,CY - Minewater Scheme - Additions,ENV - Projects & Delivery,Strata Geotechnics (part of Van Elle Limited),153675,"2,392.62"
"Department for Business, Energy and Industrial Strategy",The Coal Authority,11/04/2023,CY - Minewater Scheme - Additions,ENV - Mine Water Operations,Severn Trent Serv Ops Uk Ltd,153822,"37,574.36"
"Department for Business, Energy and Industrial Strategy",The Coal Authority,11/04/2023,CY - Minewater Scheme - Additions,ENV - Mine Water Operations,Severn Trent Serv Ops Uk Ltd,153822,47.08
"Department for Business, Energy and Industrial Strategy",The Coal Authority,11/04/2023,CY - Minewater Scheme - Additions,ENV - Salinity Programme,Severn Trent Serv Ops Uk Ltd,153822,"8,886.03"
"Department for Business, Energy and Industrial Strategy",The Coal Authority,11/04/2023,CY - Minewater Scheme - Additions,ENV - Salinity Programme,Severn Trent Serv Ops Uk Ltd,153822,796.18
"Department for Business, Energy and Industrial Strategy",The Coal Authority,02/03/2023,CY - Minewater Scheme - Additions,ENV - Mine Water Operations,Severn Trent Serv Ops Uk Ltd,153870,"168,211.00"
"Department for Business, Energy and Industrial Strategy",The Coal Authority,02/03/2023,CY - Minewater Scheme - Additions,ENV - Mine Water Operations,Severn Trent Serv Ops Uk Ltd,153870,"3,052.00"
"Department for Business, Energy and Industrial Strategy",The Coal Authority,04/05/2023,CY - Minewater Scheme - Additions,ENV - Mine Water Operations,Northumbrian Water Limited,154085,"88,067.28"
"Department for Business, Energy and Industrial Strategy",The Coal Authority,27/04/2023,CY - Minewater Scheme - Additions,ENV - Projects & Delivery,AECOM Ltd,154278,"16,123.73"
"Department for Business, Energy and Industrial Strategy",The Coal Authority,27/04/2023,CY - Minewater Scheme - Additions,ENV - Projects & Delivery,AECOM Ltd,154278,180
"Department for Business, Energy and Industrial Strategy",The Coal Authority,24/04/2023,CY - Minewater Scheme - Additions,ENV - Projects & Delivery,AECOM Ltd,154279,195.67
"Department for Business, Energy and Industrial Strategy",The Coal Authority,24/04/2023,CY - Minewater Scheme - Additions,ENV - Projects & Delivery,AECOM Ltd,154279,"1,940.09"
"Department for Business, Energy and Industrial Strategy",The Coal Authority,26/04/2023,CY - Minewater Scheme - Additions,ENV - Projects & Delivery,Turner and Townsend Project Management Ltd.,154397,"2,590.14"
"Department for Business, Energy and Industrial Strategy",The Coal Authority,26/04/2023,CY - Minewater Scheme - Additions,ENV - Projects & Delivery,Turner and Townsend Project Management Ltd.,154397,30.19
"Department for Business, Energy and Industrial Strategy",The Coal Authority,12/05/2023,CY - Minewater Scheme - Additions,ENV - Projects & Delivery,AECOM Ltd,154656,889.9
"Department for Business, Energy and Industrial Strategy",The Coal Authority,11/04/2023,CY - Minewater Scheme - Additions,ENV - Mine Water Operations,Severn Trent Serv Ops Uk Ltd,154723,"2,133.34"
"Department for Business, Energy and Industrial Strategy",The Coal Authority,11/04/2023,CY - Minewater Scheme - Additions,ENV - Mine Water Operations,Severn Trent Serv Ops Uk Ltd,154723,"67,823.96"
"Department for Business, Energy and Industrial Strategy",The Coal Authority,11/04/2023,CY - Minewater Scheme - Additions,ENV - Mine Water Operations,Severn Trent Serv Ops Uk Ltd,154723,625.13
"Department for Business, Energy and Industrial Strategy",The Coal Authority,11/04/2023,CY - Minewater Scheme - Additions,ENV - Mine Water Operations,Severn Trent Serv Ops Uk Ltd,154723,67.15
"Department for Business, Energy and Industrial Strategy",The Coal Authority,11/04/2023,CY - Minewater Scheme - Additions,ENV - Mine Water Operations,Severn Trent Serv Ops Uk Ltd,154723,395.2
"Department for Business, Energy and Industrial Strategy",The Coal Authority,11/04/2023,CY - Minewater Scheme - Additions,ENV - Mine Water Operations,Severn Trent Serv Ops Uk Ltd,154723,204.92
"Department for Business, Energy and Industrial Strategy",The Coal Authority,11/04/2023,CY - Minewater Scheme - Additions,ENV - Mine Water Operations,Severn Trent Serv Ops Uk Ltd,154723,"3,915.57"
"Department for Business, Energy and Industrial Strategy",The Coal Authority,11/04/2023,CY - Minewater Scheme - Additions,ENV - Mine Water Operations,Severn Trent Serv Ops Uk Ltd,154723,95.6
"Department for Business, Energy and Industrial Strategy",The Coal Authority,11/04/2023,CY - Minewater Scheme - Additions,ENV - Mine Water Operations,Severn Trent Serv Ops Uk Ltd,154723,"132,785.44"
"Department for Business, Energy and Industrial Strategy",The Coal Authority,11/04/2023,CY - Minewater Scheme - Additions,ENV - Mine Water Operations,Severn Trent Serv Ops Uk Ltd,154723,"109,727.69"
"Department for Business, Energy and Industrial Strategy",The Coal Authority,11/04/2023,CY - Minewater Scheme - Additions,ENV - Mine Water Operations,Severn Trent Serv Ops Uk Ltd,154723,67.15
"Department for Business, Energy and Industrial Strategy",The Coal Authority,11/04/2023,CY - Minewater Scheme - Additions,ENV - Mine Water Operations,Severn Trent Serv Ops Uk Ltd,154723,"1,343.75"
"Department for Business, Energy and Industrial Strategy",The Coal Authority,11/04/2023,CY - Minewater Scheme - Additions,ENV - Mine Water Operations,Severn Trent Serv Ops Uk Ltd,154723,"98,647.82"
"Department for Business, Energy and Industrial Strategy",The Coal Authority,11/04/2023,CY - Minewater Scheme - Additions,ENV - Mine Water Operations,Severn Trent Serv Ops Uk Ltd,154723,883.18
"Department for Business, Energy and Industrial Strategy",The Coal Authority,11/04/2023,CY - Minewater Scheme - Additions,ENV - Mine Water Operations,Severn Trent Serv Ops Uk Ltd,154723,58.55
"Department for Business, Energy and Industrial Strategy",The Coal Authority,11/04/2023,CY - Minewater Scheme - Additions,ENV - Mine Water Operations,Severn Trent Serv Ops Uk Ltd,154723,"20,453.20"
"Department for Business, Energy and Industrial Strategy",The Coal Authority,11/04/2023,CY - Minewater Scheme - Additions,ENV - Mine Water Operations,Severn Trent Serv Ops Uk Ltd,154723,"40,358.51"
"Department for Business, Energy and Industrial Strategy",The Coal Authority,11/04/2023,CY - Minewater Scheme - Additions,ENV - Mine Water Operations,Severn Trent Serv Ops Uk Ltd,154723,85.64
"Department for Business, Energy and Industrial Strategy",The Coal Authority,11/04/2023,CY - Minewater Scheme - Additions,ENV - Mine Water Operations,Severn Trent Serv Ops Uk Ltd,154723,"1,091.08"
"Department for Business, Energy and Industrial Strategy",The Coal Authority,11/04/2023,CY - Minewater Scheme - Additions,ENV - Mine Water Operations,Severn Trent Serv Ops Uk Ltd,154723,"11,160.10"
"Department for Business, Energy and Industrial Strategy",The Coal Authority,11/04/2023,CY - Minewater Scheme - Additions,ENV - Mine Water Operations,Severn Trent Serv Ops Uk Ltd,154723,"5,914.50"
"Department for Business, Energy and Industrial Strategy",The Coal Authority,11/04/2023,CY - Minewater Scheme - Additions,ENV - Mine Water Operations,Severn Trent Serv Ops Uk Ltd,154723,102.42
"Department for Business, Energy and Industrial Strategy",The Coal Authority,11/04/2023,CY - Minewater Scheme - Additions,ENV - Mine Water Operations,Severn Trent Serv Ops Uk Ltd,154723,381.08
"Department for Business, Energy and Industrial Strategy",The Coal Authority,11/04/2023,CY - Minewater Scheme - Additions,ENV - Mine Water Operations,Severn Trent Serv Ops Uk Ltd,154723,42.08
"Department for Business, Energy and Industrial Strategy",The Coal Authority,11/04/2023,CY - Minewater Scheme - Additions,ENV - Mine Water Operations,Severn Trent Serv Ops Uk Ltd,154723,"5,719.53"
"Department for Business, Energy and Industrial Strategy",The Coal Authority,11/04/2023,CY - Minewater Scheme - Additions,ENV - Mine Water Operations,Severn Trent Serv Ops Uk Ltd,154723,948.75
"Department for Business, Energy and Industrial Strategy",The Coal Authority,11/04/2023,CY - Minewater Scheme - Additions,ENV - Mine Water Operations,Severn Trent Serv Ops Uk Ltd,154723,58.55
"Department for Business, Energy and Industrial Strategy",The Coal Authority,11/04/2023,CY - Minewater Scheme - Additions,ENV - Mine Water Operations,Severn Trent Serv Ops Uk Ltd,154723,58.55
"Department for Business, Energy and Industrial Strategy",The Coal Authority,11/04/2023,CY - Minewater Scheme - Additions,ENV - Mine Water Operations,Severn Trent Serv Ops Uk Ltd,154723,305.53
"Department for Business, Energy and Industrial Strategy",The Coal Authority,11/04/2023,CY - Minewater Scheme - Additions,ENV - Mine Water Operations,Severn Trent Serv Ops Uk Ltd,154723,749.41
"Department for Business, Energy and Industrial Strategy",The Coal Authority,11/04/2023,CY - Minewater Scheme - Additions,ENV - Mine Water Operations,Severn Trent Serv Ops Uk Ltd,154723,"79,253.62"
"Department for Business, Energy and Industrial Strategy",The Coal Authority,11/04/2023,CY - Minewater Scheme - Additions,ENV - Mine Water Operations,Severn Trent Serv Ops Uk Ltd,154723,"1,211.67"
"Department for Business, Energy and Industrial Strategy",The Coal Authority,11/04/2023,CY - Minewater Scheme - Additions,ENV - Mine Water Operations,Severn Trent Serv Ops Uk Ltd,154723,"4,214.59"
"Department for Business, Energy and Industrial Strategy",The Coal Authority,11/04/2023,CY - Minewater Scheme - Additions,ENV - Mine Water Operations,Severn Trent Serv Ops Uk Ltd,154723,"4,567.86"
"Department for Business, Energy and Industrial Strategy",The Coal Authority,11/04/2023,CY - Minewater Scheme - Additions,ENV - Mine Water Operations,Severn Trent Serv Ops Uk Ltd,154723,"6,114.61"
"Department for Business, Energy and Industrial Strategy",The Coal Authority,11/04/2023,CY - Minewater Scheme - Additions,ENV - Mine Water Operations,Severn Trent Serv Ops Uk Ltd,154723,119.87
"Department for Business, Energy and Industrial Strategy",The Coal Authority,11/04/2023,CY - Minewater Scheme - Additions,ENV - Mine Water Operations,Severn Trent Serv Ops Uk Ltd,154723,140.26
"Department for Business, Energy and Industrial Strategy",The Coal Authority,11/04/2023,CY - Minewater Scheme - Additions,ENV - Mine Water Operations,Severn Trent Serv Ops Uk Ltd,154723,"4,774.25"
"Department for Business, Energy and Industrial Strategy",The Coal Authority,11/04/2023,CY - Minewater Scheme - Additions,ENV - Mine Water Operations,Severn Trent Serv Ops Uk Ltd,154723,"1,757.54"
"Department for Business, Energy and Industrial Strategy",The Coal Authority,11/04/2023,CY - Minewater Scheme - Additions,ENV - Mine Water Operations,Severn Trent Serv Ops Uk Ltd,154723,67.15
"Department for Business, Energy and Industrial Strategy",The Coal Authority,11/04/2023,CY - Minewater Scheme - Additions,ENV - Mine Water Operations,Severn Trent Serv Ops Uk Ltd,154723,"25,126.88"
"Department for Business, Energy and Industrial Strategy",The Coal Authority,11/04/2023,CY - Minewater Scheme - Additions,ENV - Mine Water Operations,Severn Trent Serv Ops Uk Ltd,154723,"1,973.12"
"Department for Business, Energy and Industrial Strategy",The Coal Authority,11/04/2023,CY - Minewater Scheme - Additions,ENV - Mine Water Operations,Severn Trent Serv Ops Uk Ltd,154723,"3,141.15"
"Department for Business, Energy and Industrial Strategy",The Coal Authority,11/04/2023,CY - Minewater Scheme - Additions,ENV - Mine Water Operations,Severn Trent Serv Ops Uk Ltd,154723,516.83
"Department for Business, Energy and Industrial Strategy",The Coal Authority,11/04/2023,CY - Minewater Scheme - Additions,ENV - Mine Water Operations,Severn Trent Serv Ops Uk Ltd,154723,14.03
"Department for Business, Energy and Industrial Strategy",The Coal Authority,11/04/2023,CY - Minewater Scheme - Additions,ENV - Mine Water Operations,Severn Trent Serv Ops Uk Ltd,154723,"14,353.72"
"Department for Business, Energy and Industrial Strategy",The Coal Authority,11/04/2023,CY - Minewater Scheme - Additions,ENV - Mine Water Operations,Severn Trent Serv Ops Uk Ltd,154723,"6,331.32"
"Department for Business, Energy and Industrial Strategy",The Coal Authority,11/04/2023,CY - Minewater Scheme - Additions,ENV - Mine Water Operations,Severn Trent Serv Ops Uk Ltd,154723,"4,285.05"
"Department for Business, Energy and Industrial Strategy",The Coal Authority,11/04/2023,CY - Minewater Scheme - Additions,ENV - Mine Water Operations,Severn Trent Serv Ops Uk Ltd,154723,"6,500.53"
"Department for Business, Energy and Industrial Strategy",The Coal Authority,11/04/2023,CY - Minewater Scheme - Additions,ENV - Mine Water Operations,Severn Trent Serv Ops Uk Ltd,154723,"41,589.24"
"Department for Business, Energy and Industrial Strategy",The Coal Authority,11/04/2023,CY - Minewater Scheme - Additions,ENV - Mine Water Operations,Severn Trent Serv Ops Uk Ltd,154723,"37,487.46"
"Department for Business, Energy and Industrial Strategy",The Coal Authority,11/04/2023,CY - Minewater Scheme - Additions,ENV - Mine Water Operations,Severn Trent Serv Ops Uk Ltd,154723,206.73
"Department for Business, Energy and Industrial Strategy",The Coal Authority,11/04/2023,CY - Minewater Scheme - Additions,ENV - Mine Water Operations,Severn Trent Serv Ops Uk Ltd,154723,67.15
"Department for Business, Energy and Industrial Strategy",The Coal Authority,11/04/2023,CY - Minewater Scheme - Additions,ENV - Mine Water Operations,Severn Trent Serv Ops Uk Ltd,154723,67.15
"Department for Business, Energy and Industrial Strategy",The Coal Authority,11/04/2023,CY - Minewater Scheme - Additions,ENV - Mine Water Operations,Severn Trent Serv Ops Uk Ltd,154723,"2,425.82"
"Department for Business, Energy and Industrial Strategy",The Coal Authority,11/04/2023,CY - Minewater Scheme - Additions,ENV - Mine Water Operations,Severn Trent Serv Ops Uk Ltd,154723,"1,745.80"
"Department for Business, Energy and Industrial Strategy",The Coal Authority,11/04/2023,CY - Minewater Scheme - Additions,ENV - Mine Water Operations,Severn Trent Serv Ops Uk Ltd,154723,"3,611.31"
"Department for Business, Energy and Industrial Strategy",The Coal Authority,11/04/2023,CY - Minewater Scheme - Additions,ENV - Mine Water Operations,Severn Trent Serv Ops Uk Ltd,154723,"78,846.21"
"Department for Business, Energy and Industrial Strategy",The Coal Authority,11/04/2023,CY - Minewater Scheme - Additions,ENV - Mine Water Operations,Severn Trent Serv Ops Uk Ltd,154723,0
"Department for Business, Energy and Industrial Strategy",The Coal Authority,11/04/2023,CY - Minewater Scheme - Additions,ENV - Mine Water Operations,Severn Trent Serv Ops Uk Ltd,154723,78.1
"Department for Business, Energy and Industrial Strategy",The Coal Authority,11/04/2023,CY - Minewater Scheme - Additions,ENV - Mine Water Operations,Severn Trent Serv Ops Uk Ltd,154723,"1,741.36"
"Department for Business, Energy and Industrial Strategy",The Coal Authority,11/04/2023,CY - Minewater Scheme - Additions,ENV - Mine Water Operations,Severn Trent Serv Ops Uk Ltd,154723,"15,696.22"
"Department for Business, Energy and Industrial Strategy",The Coal Authority,11/04/2023,CY - Minewater Scheme - Additions,ENV - Mine Water Operations,Severn Trent Serv Ops Uk Ltd,154723,177.73
"Department for Business, Energy and Industrial Strategy",The Coal Authority,11/04/2023,CY - Minewater Scheme - Additions,ENV - Mine Water Operations,Severn Trent Serv Ops Uk Ltd,154723,"16,882.95"
"Department for Business, Energy and Industrial Strategy",The Coal Authority,11/04/2023,CY - Minewater Scheme - Additions,ENV - Projects & Delivery,Severn Trent Serv Ops Uk Ltd,154723,948.24
"Department for Business, Energy and Industrial Strategy",The Coal Authority,11/04/2023,CY - Minewater Scheme - Additions,ENV - Projects & Delivery,Severn Trent Serv Ops Uk Ltd,154723,"3,946.17"
"Department for Business, Energy and Industrial Strategy",The Coal Authority,11/04/2023,CY - Minewater Scheme - Additions,ENV - Projects & Delivery,Severn Trent Serv Ops Uk Ltd,154723,"44,890.17"
"Department for Business, Energy and Industrial Strategy",The Coal Authority,11/04/2023,CY - Minewater Scheme - Additions,ENV - Projects & Delivery,Severn Trent Serv Ops Uk Ltd,154723,132.57
"Department for Business, Energy and Industrial Strategy",The Coal Authority,11/04/2023,CY - Minewater Scheme - Additions,ENV - Projects & Delivery,Severn Trent Serv Ops Uk Ltd,154723,67.15
"Department for Business, Energy and Industrial Strategy",The Coal Authority,11/04/2023,CY - Minewater Scheme - Additions,ENV - Projects & Delivery,Severn Trent Serv Ops Uk Ltd,154723,"18,801.13"
"Department for Business, Energy and Industrial Strategy",The Coal Authority,11/04/2023,CY - Minewater Scheme - Additions,ENV - Projects & Delivery,Severn Trent Serv Ops Uk Ltd,154723,67.15
"Department for Business, Energy and Industrial Strategy",The Coal Authority,11/04/2023,CY - Minewater Scheme - Additions,ENV - Projects & Delivery,Severn Trent Serv Ops Uk Ltd,154723,132.57
"Department for Business, Energy and Industrial Strategy",The Coal Authority,11/04/2023,CY - Minewater Scheme - Additions,ENV - Salinity Programme,Severn Trent Serv Ops Uk Ltd,154723,289.45
"Department for Business, Energy and Industrial Strategy",The Coal Authority,11/04/2023,CY - Minewater Scheme - Additions,ENV - Salinity Programme,Severn Trent Serv Ops Uk Ltd,154723,"30,398.89"
"Department for Business, Energy and Industrial Strategy",The Coal Authority,15/05/2023,CY - Minewater Scheme - Additions,ENV - Mine Water Operations,Severn Trent Serv Ops Uk Ltd,154728,-673.02
"Department for Business, Energy and Industrial Strategy",The Coal Authority,15/05/2023,CY - Minewater Scheme - Additions,ENV - Mine Water Operations,Severn Trent Serv Ops Uk Ltd,154728,"-2,204.32"
"Department for Business, Energy and Industrial Strategy",The Coal Authority,15/05/2023,CY - Minewater Scheme - Additions,ENV - Salinity Programme,Severn Trent Serv Ops Uk Ltd,154728,"-1,035.30"
"Department for Business, Energy and Industrial Strategy",The Coal Authority,11/05/2023,CY - Minewater Scheme - Additions,ENV - Projects & Delivery,JBA Bentley Ltd,154982,"165,143.93"
"Department for Business, Energy and Industrial Strategy",The Coal Authority,11/05/2023,CY - Minewater Scheme - Additions,ENV - Projects & Delivery,JBA Bentley Ltd,154982,0.06
"Department for Business, Energy and Industrial Strategy",The Coal Authority,17/05/2023,CY - Minewater Scheme - Additions,ENV - Projects & Delivery,AECOM Ltd,155365,660.83
"Department for Business, Energy and Industrial Strategy",The Coal Authority,17/05/2023,CY - Minewater Scheme - Additions,ENV - Projects & Delivery,AECOM Ltd,155365,0.2
"Department for Business, Energy and Industrial Strategy",The Coal Authority,17/05/2023,CY - Minewater Scheme - Additions,ENV - Projects & Delivery,AECOM Ltd,155365,"13,343.14"
"Department for Business, Energy and Industrial Strategy",The Coal Authority,11/05/2023,CY - Minewater Scheme - Additions,By-Products - Energy,Severn Trent Serv Ops Uk Ltd,155376,250.64
"Department for Business, Energy and Industrial Strategy",The Coal Authority,11/05/2023,CY - Minewater Scheme - Additions,ENV - Mine Water Operations,Severn Trent Serv Ops Uk Ltd,155376,828.76
"Department for Business, Energy and Industrial Strategy",The Coal Authority,11/05/2023,CY - Minewater Scheme - Additions,ENV - Mine Water Operations,Severn Trent Serv Ops Uk Ltd,155376,"6,820.53"
"Department for Business, Energy and Industrial Strategy",The Coal Authority,11/05/2023,CY - Minewater Scheme - Additions,ENV - Mine Water Operations,Severn Trent Serv Ops Uk Ltd,155376,723.68
"Department for Business, Energy and Industrial Strategy",The Coal Authority,11/05/2023,CY - Minewater Scheme - Additions,ENV - Mine Water Operations,Severn Trent Serv Ops Uk Ltd,155376,"38,187.75"
"Department for Business, Energy and Industrial Strategy",The Coal Authority,11/05/2023,CY - Minewater Scheme - Additions,ENV - Mine Water Operations,Severn Trent Serv Ops Uk Ltd,155376,41.41
"Department for Business, Energy and Industrial Strategy",The Coal Authority,11/05/2023,CY - Minewater Scheme - Additions,ENV - Mine Water Operations,Severn Trent Serv Ops Uk Ltd,155376,"7,502.28"
"Department for Business, Energy and Industrial Strategy",The Coal Authority,11/05/2023,CY - Minewater Scheme - Additions,ENV - Mine Water Operations,Severn Trent Serv Ops Uk Ltd,155376,"7,317.94"
"Department for Business, Energy and Industrial Strategy",The Coal Authority,11/05/2023,CY - Minewater Scheme - Additions,ENV - Mine Water Operations,Severn Trent Serv Ops Uk Ltd,155376,658.59
"Department for Business, Energy and Industrial Strategy",The Coal Authority,11/05/2023,CY - Minewater Scheme - Additions,ENV - Mine Water Operations,Severn Trent Serv Ops Uk Ltd,155376,"88,738.44"
"Department for Business, Energy and Industrial Strategy",The Coal Authority,11/05/2023,CY - Minewater Scheme - Additions,ENV - Mine Water Operations,Severn Trent Serv Ops Uk Ltd,155376,"7,401.85"
"Department for Business, Energy and Industrial Strategy",The Coal Authority,11/05/2023,CY - Minewater Scheme - Additions,ENV - Mine Water Operations,Severn Trent Serv Ops Uk Ltd,155376,63.94
"Department for Business, Energy and Industrial Strategy",The Coal Authority,11/05/2023,CY - Minewater Scheme - Additions,ENV - Mine Water Operations,Severn Trent Serv Ops Uk Ltd,155376,89.81
"Department for Business, Energy and Industrial Strategy",The Coal Authority,11/05/2023,CY - Minewater Scheme - Additions,ENV - Mine Water Operations,Severn Trent Serv Ops Uk Ltd,155376,"9,666.66"
"Department for Business, Energy and Industrial Strategy",The Coal Authority,11/05/2023,CY - Minewater Scheme - Additions,ENV - Mine Water Operations,Severn Trent Serv Ops Uk Ltd,155376,"53,351.81"
"Department for Business, Energy and Industrial Strategy",The Coal Authority,11/05/2023,CY - Minewater Scheme - Additions,ENV - Mine Water Operations,Severn Trent Serv Ops Uk Ltd,155376,"2,115.33"
"Department for Business, Energy and Industrial Strategy",The Coal Authority,11/05/2023,CY - Minewater Scheme - Additions,ENV - Mine Water Operations,Severn Trent Serv Ops Uk Ltd,155376,343.96
"Department for Business, Energy and Industrial Strategy",The Coal Authority,11/05/2023,CY - Minewater Scheme - Additions,ENV - Mine Water Operations,Severn Trent Serv Ops Uk Ltd,155376,538.06
"Department for Business, Energy and Industrial Strategy",The Coal Authority,11/05/2023,CY - Minewater Scheme - Additions,ENV - Mine Water Operations,Severn Trent Serv Ops Uk Ltd,155376,"1,634.55"
"Department for Business, Energy and Industrial Strategy",The Coal Authority,11/05/2023,CY - Minewater Scheme - Additions,ENV - Mine Water Operations,Severn Trent Serv Ops Uk Ltd,155376,"3,464.62"
"Department for Business, Energy and Industrial Strategy",The Coal Authority,11/05/2023,CY - Minewater Scheme - Additions,ENV - Mine Water Operations,Severn Trent Serv Ops Uk Ltd,155376,"30,118.41"
"Department for Business, Energy and Industrial Strategy",The Coal Authority,11/05/2023,CY - Minewater Scheme - Additions,ENV - Mine Water Operations,Severn Trent Serv Ops Uk Ltd,155376,"9,849.86"
"Department for Business, Energy and Industrial Strategy",The Coal Authority,11/05/2023,CY - Minewater Scheme - Additions,ENV - Mine Water Operations,Severn Trent Serv Ops Uk Ltd,155376,240.16
"Department for Business, Energy and Industrial Strategy",The Coal Authority,11/05/2023,CY - Minewater Scheme - Additions,ENV - Mine Water Operations,Severn Trent Serv Ops Uk Ltd,155376,845.08
"Department for Business, Energy and Industrial Strategy",The Coal Authority,11/05/2023,CY - Minewater Scheme - Additions,ENV - Mine Water Operations,Severn Trent Serv Ops Uk Ltd,155376,"80,834.69"
"Department for Business, Energy and Industrial Strategy",The Coal Authority,11/05/2023,CY - Minewater Scheme - Additions,ENV - Mine Water Operations,Severn Trent Serv Ops Uk Ltd,155376,"1,741.73"
"Department for Business, Energy and Industrial Strategy",The Coal Authority,11/05/2023,CY - Minewater Scheme - Additions,ENV - Mine Water Operations,Severn Trent Serv Ops Uk Ltd,155376,"59,734.87"
"Department for Business, Energy and Industrial Strategy",The Coal Authority,11/05/2023,CY - Minewater Scheme - Additions,ENV - Mine Water Operations,Severn Trent Serv Ops Uk Ltd,155376,"155,764.93"
"Department for Business, Energy and Industrial Strategy",The Coal Authority,11/05/2023,CY - Minewater Scheme - Additions,ENV - Mine Water Operations,Severn Trent Serv Ops Uk Ltd,155376,186.34
"Department for Business, Energy and Industrial Strategy",The Coal Authority,11/05/2023,CY - Minewater Scheme - Additions,ENV - Mine Water Operations,Severn Trent Serv Ops Uk Ltd,155376,"159,686.01"
"Department for Business, Energy and Industrial Strategy",The Coal Authority,11/05/2023,CY - Minewater Scheme - Additions,ENV - Mine Water Operations,Severn Trent Serv Ops Uk Ltd,155376,"17,613.12"
"Department for Business, Energy and Industrial Strategy",The Coal Authority,11/05/2023,CY - Minewater Scheme - Additions,ENV - Mine Water Operations,Severn Trent Serv Ops Uk Ltd,155376,83.55
"Department for Business, Energy and Industrial Strategy",The Coal Authority,11/05/2023,CY - Minewater Scheme - Additions,ENV - Mine Water Operations,Severn Trent Serv Ops Uk Ltd,155376,"3,776.29"
"Department for Business, Energy and Industrial Strategy",The Coal Authority,11/05/2023,CY - Minewater Scheme - Additions,ENV - Mine Water Operations,Severn Trent Serv Ops Uk Ltd,155376,"58,416.59"
"Department for Business, Energy and Industrial Strategy",The Coal Authority,11/05/2023,CY - Minewater Scheme - Additions,ENV - Mine Water Operations,Severn Trent Serv Ops Uk Ltd,155376,"14,168.61"
"Department for Business, Energy and Industrial Strategy",The Coal Authority,11/05/2023,CY - Minewater Scheme - Additions,ENV - Projects & Delivery,Severn Trent Serv Ops Uk Ltd,155376,"26,496.31"
"Department for Business, Energy and Industrial Strategy",The Coal Authority,11/05/2023,CY - Minewater Scheme - Additions,ENV - Projects & Delivery,Severn Trent Serv Ops Uk Ltd,155376,250.64
"Department for Business, Energy and Industrial Strategy",The Coal Authority,11/05/2023,CY - Minewater Scheme - Additions,ENV - Projects & Delivery,Severn Trent Serv Ops Uk Ltd,155376,265.98
"Department for Business, Energy and Industrial Strategy",The Coal Authority,11/05/2023,CY - Minewater Scheme - Additions,ENV - Projects & Delivery,Severn Trent Serv Ops Uk Ltd,155376,265.98
"Department for Business, Energy and Industrial Strategy",The Coal Authority,11/05/2023,CY - Minewater Scheme - Additions,ENV - Projects & Delivery,Severn Trent Serv Ops Uk Ltd,155376,"1,035.30"
"Department for Business, Energy and Industrial Strategy",The Coal Authority,11/05/2023,CY - Minewater Scheme - Additions,ENV - Projects & Delivery,Severn Trent Serv Ops Uk Ltd,155376,"34,811.88"
"Department for Business, Energy and Industrial Strategy",The Coal Authority,11/05/2023,CY - Minewater Scheme - Additions,ENV - Projects & Delivery,Severn Trent Serv Ops Uk Ltd,155376,"1,223.06"
"Department for Business, Energy and Industrial Strategy",The Coal Authority,11/05/2023,CY - Minewater Scheme - Additions,ENV - Projects & Delivery,Severn Trent Serv Ops Uk Ltd,155376,177.32
"Department for Business, Energy and Industrial Strategy",The Coal Authority,11/05/2023,CY - Minewater Scheme - Additions,ENV - Projects & Delivery,Severn Trent Serv Ops Uk Ltd,155376,211.46
"Department for Business, Energy and Industrial Strategy",The Coal Authority,11/05/2023,CY - Minewater Scheme - Additions,ENV - Projects & Delivery,Severn Trent Serv Ops Uk Ltd,155376,"3,326.75"
"Department for Business, Energy and Industrial Strategy",The Coal Authority,11/05/2023,CY - Minewater Scheme - Additions,ENV - Projects & Delivery,Severn Trent Serv Ops Uk Ltd,155376,664.11
"Department for Business, Energy and Industrial Strategy",The Coal Authority,11/05/2023,CY - Minewater Scheme - Additions,ENV - Salinity Programme,Severn Trent Serv Ops Uk Ltd,155376,"28,615.51"
"Department for Business, Energy and Industrial Strategy",The Coal Authority,24/05/2023,CY - Minewater Scheme - Additions,ENV - Mine Water Operations,Severn Trent Serv Ops Uk Ltd,155377,-240.16
"Department for Business, Energy and Industrial Strategy",The Coal Authority,11/05/2023,CY - Minewater Scheme - Additions,ENV - Mine Water Operations,Severn Trent Serv Ops Uk Ltd,155378,240.16
"Department for Business, Energy and Industrial Strategy",The Coal Authority,11/05/2023,CY - Minewater Scheme - Additions,ENV - Mine Water Operations,Severn Trent Serv Ops Uk Ltd,155378,283.65
"Department for Business, Energy and Industrial Strategy",The Coal Authority,25/04/2023,CY - Minewater Scheme - Additions,ENV - Projects & Delivery,Turner and Townsend Project Management Ltd.,155401,"6,944.40"
"Department for Business, Energy and Industrial Strategy",The Coal Authority,25/04/2023,CY - Minewater Scheme - Additions,ENV - Projects & Delivery,Turner and Townsend Project Management Ltd.,155401,51.48
"Department for Business, Energy and Industrial Strategy",The Coal Authority,25/04/2023,CY - Minewater Scheme - Additions,ENV - Projects & Delivery,Turner and Townsend Project Management Ltd.,155401,"2,940.00"
"Department for Business, Energy and Industrial Strategy",The Coal Authority,25/04/2023,CY - Minewater Scheme - Additions,ENV - Projects & Delivery,Turner and Townsend Project Management Ltd.,155401,13.32
"Department for Business, Energy and Industrial Strategy",The Coal Authority,02/05/2023,CY - Minewater Scheme - Additions,ENV - Projects & Delivery,Kier Integrated Services Limited,155434,534
"Department for Business, Energy and Industrial Strategy",The Coal Authority,02/05/2023,CY - Minewater Scheme - Additions,ENV - Projects & Delivery,Kier Integrated Services Limited,155434,"35,705.00"
"Department for Business, Energy and Industrial Strategy",The Coal Authority,02/05/2023,CY - Minewater Scheme - Additions,ENV - Projects & Delivery,Kier Integrated Services Limited,155434,531
"Department for Business, Energy and Industrial Strategy",The Coal Authority,02/05/2023,CY - Minewater Scheme - Additions,ENV - Projects & Delivery,Kier Integrated Services Limited,155434,"4,885.00"
"Department for Business, Energy and Industrial Strategy",The Coal Authority,02/05/2023,CY - Minewater Scheme - Additions,ENV - Projects & Delivery,Kier Integrated Services Limited,155434,"4,415.54"
"Department for Business, Energy and Industrial Strategy",The Coal Authority,22/05/2023,CY - Minewater Scheme - Additions,ENV - Projects & Delivery,J N Bentley Limited,155446,"2,723.65"
"Department for Business, Energy and Industrial Strategy",The Coal Authority,22/05/2023,CY - Minewater Scheme - Additions,ENV - Projects & Delivery,JBA Bentley Ltd,155545,"471,062.90"
"Department for Business, Energy and Industrial Strategy",The Coal Authority,25/05/2023,CY - Minewater Scheme - Additions,ENV - Projects & Delivery,Turner and Townsend Project Management Ltd.,155650,"3,962.30"
"Department for Business, Energy and Industrial Strategy",The Coal Authority,25/05/2023,CY - Minewater Scheme - Additions,ENV - Projects & Delivery,Turner and Townsend Project Management Ltd.,155650,0.03
"Department for Business, Energy and Industrial Strategy",The Coal Authority,12/05/2023,CY - Minewater Scheme - Additions,ENV - Projects & Delivery,AECOM Ltd,155690,964
"Department for Business, Energy and Industrial Strategy",The Coal Authority,03/05/2023,CY - Non-coal Minewater - Additions,DEFRA Metal Mine Programme,Hydro-Logic Services Int Limited,154387,"1,020.00"
"Department for Business, Energy and Industrial Strategy",The Coal Authority,25/04/2023,CY - Non-coal Minewater - Additions,DEFRA LEP Funding,Turner and Townsend Project Management Ltd.,154395,"3,467.25"
"Department for Business, Energy and Industrial Strategy",The Coal Authority,27/04/2023,CY - Non-coal Minewater - Additions,DEFRA Metal Mine Programme,Hydro-Logic Services Int Limited,154485,"1,690.25"
"Department for Business, Energy and Industrial Strategy",The Coal Authority,30/04/2023,CY - Non-coal Minewater - Additions,DEFRA Metal Mine Programme,Yorkshire Dales Rivers Trust,154748,"4,091.07"
"Department for Business, Energy and Industrial Strategy",The Coal Authority,11/05/2023,CY - Non-coal Minewater - Additions,DEFRA LEP Funding,Tyne Rivers Trust,155088,"36,000.00"
"Department for Business, Energy and Industrial Strategy",The Coal Authority,12/05/2023,CY - Non-coal Minewater - Additions,DEFRA LEP Funding,Aecom Infrastructure & Env,155186,737.36
"Department for Business, Energy and Industrial Strategy",The Coal Authority,12/05/2023,CY - Non-coal Minewater - Additions,DEFRA LEP Funding,Aecom Infrastructure & Env,155186,812.5
"Department for Business, Energy and Industrial Strategy",The Coal Authority,12/05/2023,CY - Non-coal Minewater - Additions,DEFRA LEP Funding,Aecom Infrastructure & Env,155186,796.82
"Department for Business, Energy and Industrial Strategy",The Coal Authority,12/05/2023,CY - Non-coal Minewater - Additions,DEFRA LEP Funding,Aecom Infrastructure & Env,155186,781.91
"Department for Business, Energy and Industrial Strategy",The Coal Authority,12/05/2023,CY - Non-coal Minewater - Additions,DEFRA LEP Funding,Aecom Infrastructure & Env,155186,"4,760.14"
"Department for Business, Energy and Industrial Strategy",The Coal Authority,12/05/2023,CY - Non-coal Minewater - Additions,DEFRA LEP Funding,Aecom Infrastructure & Env,155186,"3,933.25"
"Department for Business, Energy and Industrial Strategy",The Coal Authority,12/05/2023,CY - Non-coal Minewater - Additions,DEFRA LEP Funding,Aecom Infrastructure & Env,155186,"1,967.59"
"Department for Business, Energy and Industrial Strategy",The Coal Authority,12/05/2023,CY - Non-coal Minewater - Additions,DEFRA LEP Funding,Aecom Infrastructure & Env,155186,0
"Department for Business, Energy and Industrial Strategy",The Coal Authority,12/05/2023,CY - Non-coal Minewater - Additions,DEFRA LEP Funding,Aecom Infrastructure & Env,155186,750.46
"Department for Business, Energy and Industrial Strategy",The Coal Authority,12/05/2023,CY - Non-coal Minewater - Additions,DEFRA LEP Funding,Aecom Infrastructure & Env,155186,"2,867.58"
"Department for Business, Energy and Industrial Strategy",The Coal Authority,12/05/2023,CY - Non-coal Minewater - Additions,DEFRA LEP Funding,Aecom Infrastructure & Env,155186,"2,896.02"
"Department for Business, Energy and Industrial Strategy",The Coal Authority,12/05/2023,CY - Non-coal Minewater - Additions,DEFRA LEP Funding,Aecom Infrastructure & Env,155186,"5,845.16"
"Department for Business, Energy and Industrial Strategy",The Coal Authority,12/05/2023,CY - Non-coal Minewater - Additions,DEFRA LEP Funding,Aecom Infrastructure & Env,155186,241.84
"Department for Business, Energy and Industrial Strategy",The Coal Authority,04/05/2023,CY - Non-coal Minewater - Additions,DEFRA Metal Mine Programme,John F Hunt Regeneration Ltd,155288,"33,753.46"
"Department for Business, Energy and Industrial Strategy",The Coal Authority,17/05/2023,CY - Non-coal Minewater - Additions,DEFRA Metal Mine Programme,Browne Jacobson Llp Client Account,155420,"2,500.00"
"Department for Business, Energy and Industrial Strategy",The Coal Authority,23/05/2023,CY - Non-coal Minewater - Additions,DEFRA LEP Funding,Turner and Townsend Project Management Ltd.,155558,"3,467.25"
"Department for Business, Energy and Industrial Strategy",The Coal Authority,26/05/2023,CY - Non-coal Minewater - Additions,DEFRA LEP Funding,Compensation Payment,155605,"5,400.00"
"Department for Business, Energy and Industrial Strategy",The Coal Authority,12/05/2023,CY - Non-coal Minewater - Additions,DEFRA LEP Funding,Aecom Infrastructure & Env,155662,"2,191.56"
"Department for Business, Energy and Industrial Strategy",The Coal Authority,12/05/2023,CY - Non-coal Minewater - Additions,DEFRA LEP Funding,Aecom Infrastructure & Env,155662,"2,563.34"
"Department for Business, Energy and Industrial Strategy",The Coal Authority,26/05/2023,CY - Non-coal Minewater - Additions,DEFRA LEP Funding,I & H Brown Limited,155688,"330,000.00"
"Department for Business, Energy and Industrial Strategy",The Coal Authority,11/04/2023,CY - Plant & Machinery - Additions,ENV - Mine Water Operations,Severn Trent Serv Ops Uk Ltd,154723,"2,863.32"
"Department for Business, Energy and Industrial Strategy",The Coal Authority,11/04/2023,CY - Plant & Machinery - Additions,ENV - Mine Water Operations,Severn Trent Serv Ops Uk Ltd,154723,"1,390.00"
"Department for Business, Energy and Industrial Strategy",The Coal Authority,11/04/2023,CY - Plant & Machinery - Additions,ENV - Mine Water Operations,Severn Trent Serv Ops Uk Ltd,154723,67.15
"Department for Business, Energy and Industrial Strategy",The Coal Authority,11/05/2023,CY - Plant & Machinery - Additions,ENV - Mine Water Operations,Severn Trent Serv Ops Uk Ltd,155376,0.03
"Department for Business, Energy and Industrial Strategy",The Coal Authority,11/05/2023,CY - Plant & Machinery - Additions,ENV - Mine Water Operations,Severn Trent Serv Ops Uk Ltd,155376,"38,271.67"
"Department for Business, Energy and Industrial Strategy",The Coal Authority,11/05/2023,CY - Plant & Machinery - Additions,ENV - Mine Water Operations,Severn Trent Serv Ops Uk Ltd,155376,"2,265.66"
"Department for Business, Energy and Industrial Strategy",The Coal Authority,11/05/2023,CY - Plant & Machinery - Additions,ENV - Mine Water Operations,Severn Trent Serv Ops Uk Ltd,155376,960.71
"Department for Business, Energy and Industrial Strategy",The Coal Authority,11/05/2023,CY - Plant & Machinery - Additions,ENV - Mine Water Operations,Severn Trent Serv Ops Uk Ltd,155376,"39,312.59"
"Department for Business, Energy and Industrial Strategy",The Coal Authority,20/04/2023,CY - Subsidence Pumping - Additions,ENV - Projects & Delivery,AECOM Ltd,153951,"1,881.81"
"Department for Business, Energy and Industrial Strategy",The Coal Authority,22/05/2023,CY - Subsidence Pumping - Additions,ENV - Projects & Delivery,AECOM Ltd,155661,"1,299.35"
"Department for Business, Energy and Industrial Strategy",The Coal Authority,22/03/2023,CY - Subsidence Pumping - Additions,ENV - Mine Water Operations,Danvm Drainage Commissioners,155682,"97,209.06"
"Department for Business, Energy and Industrial Strategy",The Coal Authority,11/04/2023,CY - Tangible IT - Additions,ENV - Mine Water Operations,Severn Trent Serv Ops Uk Ltd,154723,"18,514.87"
"Department for Business, Energy and Industrial Strategy",The Coal Authority,26/04/2023,Desktop Computing,DIG - Technical Delivery,Probrand Limited,153692,"1,894.22"
"Department for Business, Energy and Industrial Strategy",The Coal Authority,26/04/2023,Desktop Computing,DIG - Technical Delivery,Probrand Limited,153692,58.71
"Department for Business, Energy and Industrial Strategy",The Coal Authority,28/04/2023,Desktop Computing,DIG - Technical Delivery,Specialist Computer Centres Pl,153852,433.25
"Department for Business, Energy and Industrial Strategy",The Coal Authority,28/04/2023,Desktop Computing,DIG - Technical Delivery,XMA Ltd,153937,"12,499.00"
"Department for Business, Energy and Industrial Strategy",The Coal Authority,11/05/2023,Desktop Computing,DIG - Technical Delivery,Probrand Limited,155426,"2,045.23"
"Department for Business, Energy and Industrial Strategy",The Coal Authority,18/05/2023,Desktop Computing,DIG - Technical Delivery,Probrand Limited,155427,126.18
"Department for Business, Energy and Industrial Strategy",The Coal Authority,18/05/2023,Desktop Computing,DIG - Technical Delivery,Probrand Limited,155427,126.18
"Department for Business, Energy and Industrial Strategy",The Coal Authority,29/03/2023,Desktop Computing,DIG - Technical Delivery,Government Procurement Card,155628,24.33
"Department for Business, Energy and Industrial Strategy",The Coal Authority,23/04/2023,Desktop Telephony Equipment,DEFRA Metal Mine Programme,Government Procurement Card,155629,15.98
"Department for Business, Energy and Industrial Strategy",The Coal Authority,16/05/2023,Disaster Recovery & BCP,DIG - Technical Delivery,Nerc,155141,"4,299.71"
"Department for Business, Energy and Industrial Strategy",The Coal Authority,01/04/2023,eCommerce Commission Charges,DEV - Permissions,Worldpay Limited,153567,11.25
"Department for Business, Energy and Industrial Strategy",The Coal Authority,01/05/2023,eCommerce Commission Charges,DEV - Permissions,Worldpay Limited,154011,6.98
"Department for Business, Energy and Industrial Strategy",The Coal Authority,01/05/2023,eCommerce Commission Charges,DEV - Permissions,Worldpay Limited,154011,0
"Department for Business, Energy and Industrial Strategy",The Coal Authority,01/05/2023,eCommerce Commission Charges,Customer Services & Strategy,Worldpay Limited,154472,199.4
"Department for Business, Energy and Industrial Strategy",The Coal Authority,30/04/2023,eCommerce Commission Charges,DEV - Permissions,Worldpay,155448,413.71
"Department for Business, Energy and Industrial Strategy",The Coal Authority,30/04/2023,eCommerce Commission Charges,DEV - Permissions,Worldpay,155448,25
"Department for Business, Energy and Industrial Strategy",The Coal Authority,30/04/2023,eCommerce Commission Charges,DEV - Planning & Local Authority Liaison,Worldpay,155448,29.12
"Department for Business, Energy and Industrial Strategy",The Coal Authority,30/04/2023,eCommerce Commission Charges,DIG - Data Licensing,Worldpay,155448,6.42
"Department for Business, Energy and Industrial Strategy",The Coal Authority,30/04/2023,eCommerce Commission Charges,Mining Reports,Worldpay,155448,"1,006.82"
"Department for Business, Energy and Industrial Strategy",The Coal Authority,05/05/2023,Electricity Usage,ENV - Mine Water Operations,Edf Energy,154817,45
"Department for Business, Energy and Industrial Strategy",The Coal Authority,05/04/2023,Equipment Disposal,Engineering,Government Procurement Card,155629,25.72
"Department for Business, Energy and Industrial Strategy",The Coal Authority,21/03/2023,External Agency / Introduction Fees,People & Organisational Development,TurnerFox Recruitment Limited,153637,"2,278.20"
"Department for Business, Energy and Industrial Strategy",The Coal Authority,27/04/2023,External Agency / Introduction Fees,People & Organisational Development,Matchtech Group UK Ltd,153638,"5,148.00"
"Department for Business, Energy and Industrial Strategy",The Coal Authority,24/04/2023,Fares - Public Transport,Facilities,Staff Expenses Control,153569,6
"Department for Business, Energy and Industrial Strategy",The Coal Authority,02/03/2023,Fares - Public Transport,International,Staff Expenses Control,154203,7.6
"Department for Business, Energy and Industrial Strategy",The Coal Authority,21/03/2023,Fares - Public Transport,International,Staff Expenses Control,154203,2.7
"Department for Business, Energy and Industrial Strategy",The Coal Authority,24/04/2023,Fares - Public Transport,International,Staff Expenses Control,154203,3.7
"Department for Business, Energy and Industrial Strategy",The Coal Authority,24/04/2023,Fares - Public Transport,International,Staff Expenses Control,154203,31.4
"Department for Business, Energy and Industrial Strategy",The Coal Authority,30/04/2023,Fares - Public Transport,Customer Services & Strategy,Ace Of Mansfield Ltd,154473,100.24
"Department for Business, Energy and Industrial Strategy",The Coal Authority,21/04/2023,Fares - Public Transport,DEV - Licensing,Staff Expenses Control,154710,12.1
"Department for Business, Energy and Industrial Strategy",The Coal Authority,24/04/2023,Fares - Public Transport,Heat & By-Product Innovation,Staff Expenses Control,154710,32
"Department for Business, Energy and Industrial Strategy",The Coal Authority,26/04/2023,Fares - Public Transport,Heat & By-Product Innovation,Staff Expenses Control,154710,28.3
"Department for Business, Energy and Industrial Strategy",The Coal Authority,15/05/2023,Fares - Public Transport,Heat & By-Product Innovation,Staff Expenses Control,155553,6.4
"Department for Business, Energy and Industrial Strategy",The Coal Authority,15/05/2023,Fares - Public Transport,Innovation By-Product & Services Delivery,Staff Expenses Control,155553,15.7
"Department for Business, Energy and Industrial Strategy",The Coal Authority,15/05/2023,Fares - Public Transport,Innovation By-Product & Services Delivery,Staff Expenses Control,155553,7.3
"Department for Business, Energy and Industrial Strategy",The Coal Authority,16/05/2023,Fares - Public Transport,Innovation By-Product & Services Delivery,Staff Expenses Control,155553,14
"Department for Business, Energy and Industrial Strategy",The Coal Authority,18/05/2023,Fares - Public Transport,ENV - Projects & Delivery,Staff Expenses Control,155553,7.6
"Department for Business, Energy and Industrial Strategy",The Coal Authority,18/05/2023,Fares - Public Transport,ENV - Projects & Delivery,Staff Expenses Control,155553,7.8
"Department for Business, Energy and Industrial Strategy",The Coal Authority,18/05/2023,Fares - Public Transport,Heat & By-Product Innovation,Staff Expenses Control,155553,3.2
"Department for Business, Energy and Industrial Strategy",The Coal Authority,18/05/2023,Fares - Public Transport,Innovation By-Product & Services Delivery,Staff Expenses Control,155553,15.8
"Department for Business, Energy and Industrial Strategy",The Coal Authority,18/05/2023,Fares - Public Transport,Innovation By-Product & Services Delivery,Staff Expenses Control,155553,7.6
"Department for Business, Energy and Industrial Strategy",The Coal Authority,20/05/2023,Fares - Public Transport,Heat & By-Product Innovation,Staff Expenses Control,155553,54.8
"Department for Business, Energy and Industrial Strategy",The Coal Authority,15/02/2023,Fares - Public Transport,Board,Government Procurement Card,155627,360.5
"Department for Business, Energy and Industrial Strategy",The Coal Authority,27/03/2023,Fares - Public Transport,DEFRA LEP Funding,Government Procurement Card,155628,7.6
"Department for Business, Energy and Industrial Strategy",The Coal Authority,05/04/2023,Fares - Public Transport,PS&S - General Claims,Government Procurement Card,155629,13
"Department for Business, Energy and Industrial Strategy",The Coal Authority,21/04/2023,Fares - Public Transport,DEV - Licensing,Government Procurement Card,155629,14
"Department for Business, Energy and Industrial Strategy",The Coal Authority,23/04/2023,Fares - Public Transport,Engineering,Government Procurement Card,155629,2.7
"Department for Business, Energy and Industrial Strategy",The Coal Authority,24/04/2023,Fares - Public Transport,ENV - Mine Water Operations,Government Procurement Card,155629,17.42
"Department for Business, Energy and Industrial Strategy",The Coal Authority,25/04/2023,Fares - Public Transport,ENV - Mine Water Operations,Government Procurement Card,155629,25.87
"Department for Business, Energy and Industrial Strategy",The Coal Authority,25/04/2023,Fares - Public Transport,Engineering,Government Procurement Card,155629,2.8
"Department for Business, Energy and Industrial Strategy",The Coal Authority,18/04/2023,Fares - Rail,Heat & By-Product Innovation,Staff Expenses Control,154710,17.79
"Department for Business, Energy and Industrial Strategy",The Coal Authority,25/04/2023,Fares - Rail,Staff Network and Groups,Staff Expenses Control,154710,13.9
"Department for Business, Energy and Industrial Strategy",The Coal Authority,22/03/2023,Fares - Rail,Innovation By-Product & Services Delivery,Staff Expenses Control,155553,117.4
"Department for Business, Energy and Industrial Strategy",The Coal Authority,29/03/2023,Fares - Rail,Innovation By-Product & Services Delivery,Staff Expenses Control,155553,3.2
"Department for Business, Energy and Industrial Strategy",The Coal Authority,21/04/2023,Fares - Rail,DEV - Licensing,Government Procurement Card,155629,9
"Department for Business, Energy and Industrial Strategy",The Coal Authority,23/04/2023,Fares - Rail,ENV - Mine Water Operations,Government Procurement Card,155629,94.65
"Department for Business, Energy and Industrial Strategy",The Coal Authority,02/05/2023,Fares - Rail,ENV - Projects & Delivery,Government Procurement Card,155629,219.08
"Department for Business, Energy and Industrial Strategy",The Coal Authority,30/04/2023,Fares - Rail,Finance,Corporate Travel Management North,155745,"2,083.20"
"Department for Business, Energy and Industrial Strategy",The Coal Authority,26/04/2023,Fuel (Vehicle),ENV - Projects & Delivery,Allstar Business Solutions Ltd,153528,63.41
"Department for Business, Energy and Industrial Strategy",The Coal Authority,07/04/2023,Fuel (Vehicle),PS&S - General Claims,Staff Expenses Control,153569,8.33
"Department for Business, Energy and Industrial Strategy",The Coal Authority,13/04/2023,Fuel (Vehicle),Tips Response,Staff Expenses Control,153569,65.33
"Department for Business, Energy and Industrial Strategy",The Coal Authority,21/04/2023,Fuel (Vehicle),ENV - Salinity Programme,Staff Expenses Control,153569,31.3
"Department for Business, Energy and Industrial Strategy",The Coal Authority,26/04/2023,Fuel (Vehicle),Facilities,Allstar Business Solutions Ltd,153662,57
"Department for Business, Energy and Industrial Strategy",The Coal Authority,26/04/2023,Fuel (Vehicle),Facilities,Allstar Business Solutions Ltd,153662,25.85
"Department for Business, Energy and Industrial Strategy",The Coal Authority,26/04/2023,Fuel (Vehicle),Facilities,Allstar Business Solutions Ltd,153662,36.13
"Department for Business, Energy and Industrial Strategy",The Coal Authority,26/04/2023,Fuel (Vehicle),Facilities,Allstar Business Solutions Ltd,153662,5.7
"Department for Business, Energy and Industrial Strategy",The Coal Authority,03/05/2023,Fuel (Vehicle),Facilities,Allstar Business Solutions Ltd,153975,31.23
"Department for Business, Energy and Industrial Strategy",The Coal Authority,03/05/2023,Fuel (Vehicle),Facilities,Allstar Business Solutions Ltd,153975,50.81
"Department for Business, Energy and Industrial Strategy",The Coal Authority,03/05/2023,Fuel (Vehicle),Facilities,Allstar Business Solutions Ltd,153975,45.68
"Department for Business, Energy and Industrial Strategy",The Coal Authority,03/05/2023,Fuel (Vehicle),Facilities,Allstar Business Solutions Ltd,153975,12.66
"Department for Business, Energy and Industrial Strategy",The Coal Authority,03/05/2023,Fuel (Vehicle),Facilities,Allstar Business Solutions Ltd,153975,5.7
"Department for Business, Energy and Industrial Strategy",The Coal Authority,03/05/2023,Fuel (Vehicle),PS&S - General Claims,Allstar Business Solutions Ltd,153999,38.45
"Department for Business, Energy and Industrial Strategy",The Coal Authority,03/05/2023,Fuel (Vehicle),PS&S - General Claims,Allstar Business Solutions Ltd,153999,95.81
"Department for Business, Energy and Industrial Strategy",The Coal Authority,03/05/2023,Fuel (Vehicle),PS&S - General Claims,Allstar Business Solutions Ltd,153999,64.78
"Department for Business, Energy and Industrial Strategy",The Coal Authority,03/05/2023,Fuel (Vehicle),PS&S - General Claims,Allstar Business Solutions Ltd,153999,46.37
"Department for Business, Energy and Industrial Strategy",The Coal Authority,03/05/2023,Fuel (Vehicle),PS&S - General Claims,Allstar Business Solutions Ltd,153999,13.3
"Department for Business, Energy and Industrial Strategy",The Coal Authority,03/05/2023,Fuel (Vehicle),PS&S - General Claims,Allstar Business Solutions Ltd,153999,25
"Department for Business, Energy and Industrial Strategy",The Coal Authority,03/05/2023,Fuel (Vehicle),Tips Response,Allstar Business Solutions Ltd,153999,0
"Department for Business, Energy and Industrial Strategy",The Coal Authority,03/05/2023,Fuel (Vehicle),Tips Response,Allstar Business Solutions Ltd,153999,79.17
"Department for Business, Energy and Industrial Strategy",The Coal Authority,03/05/2023,Fuel (Vehicle),Tips Response,Allstar Business Solutions Ltd,153999,39.37
"Department for Business, Energy and Industrial Strategy",The Coal Authority,26/04/2023,Fuel (Vehicle),PS&S - General Claims,Allstar Business Solutions Ltd,154015,43.96
"Department for Business, Energy and Industrial Strategy",The Coal Authority,26/04/2023,Fuel (Vehicle),PS&S - General Claims,Allstar Business Solutions Ltd,154015,103.51
"Department for Business, Energy and Industrial Strategy",The Coal Authority,26/04/2023,Fuel (Vehicle),PS&S - General Claims,Allstar Business Solutions Ltd,154015,78.64
"Department for Business, Energy and Industrial Strategy",The Coal Authority,26/04/2023,Fuel (Vehicle),PS&S - General Claims,Allstar Business Solutions Ltd,154015,38.17
"Department for Business, Energy and Industrial Strategy",The Coal Authority,26/04/2023,Fuel (Vehicle),PS&S - General Claims,Allstar Business Solutions Ltd,154015,13.3
"Department for Business, Energy and Industrial Strategy",The Coal Authority,26/04/2023,Fuel (Vehicle),PS&S - General Claims,Allstar Business Solutions Ltd,154015,0
"Department for Business, Energy and Industrial Strategy",The Coal Authority,26/04/2023,Fuel (Vehicle),PS&S - General Claims,Allstar Business Solutions Ltd,154015,38.4
"Department for Business, Energy and Industrial Strategy",The Coal Authority,26/04/2023,Fuel (Vehicle),PS&S - General Claims,Allstar Business Solutions Ltd,154015,58.59
"Department for Business, Energy and Industrial Strategy",The Coal Authority,26/04/2023,Fuel (Vehicle),PS&S - General Claims,Allstar Business Solutions Ltd,154015,31.67
"Department for Business, Energy and Industrial Strategy",The Coal Authority,03/05/2023,Fuel (Vehicle),ENV - Mine Water Operations,Allstar Business Solutions Ltd,154047,47.38
"Department for Business, Energy and Industrial Strategy",The Coal Authority,24/03/2023,Fuel (Vehicle),ENV - Technical,Staff Expenses Control,154710,46.01
"Department for Business, Energy and Industrial Strategy",The Coal Authority,19/04/2023,Fuel (Vehicle),DEFRA Metal Mine Programme,Staff Expenses Control,154710,40.07
"Department for Business, Energy and Industrial Strategy",The Coal Authority,20/04/2023,Fuel (Vehicle),DEFRA Metal Mine Programme,Staff Expenses Control,154710,24.97
"Department for Business, Energy and Industrial Strategy",The Coal Authority,11/05/2023,Fuel (Vehicle),ENV - Projects & Delivery,Staff Expenses Control,154710,20.93
"Department for Business, Energy and Industrial Strategy",The Coal Authority,11/05/2023,Fuel (Vehicle),ENV - Projects & Delivery,Staff Expenses Control,154710,35.26
"Department for Business, Energy and Industrial Strategy",The Coal Authority,17/05/2023,Fuel (Vehicle),ENV - Mine Water Operations,Allstar Business Solutions Ltd,155169,46.04
"Department for Business, Energy and Industrial Strategy",The Coal Authority,17/05/2023,Fuel (Vehicle),ENV - Projects & Delivery,Allstar Business Solutions Ltd,155169,37.91
"Department for Business, Energy and Industrial Strategy",The Coal Authority,17/05/2023,Fuel (Vehicle),Facilities,Allstar Business Solutions Ltd,155175,26.41
"Department for Business, Energy and Industrial Strategy",The Coal Authority,17/05/2023,Fuel (Vehicle),Facilities,Allstar Business Solutions Ltd,155175,61.05
"Department for Business, Energy and Industrial Strategy",The Coal Authority,17/05/2023,Fuel (Vehicle),Facilities,Allstar Business Solutions Ltd,155175,49.03
"Department for Business, Energy and Industrial Strategy",The Coal Authority,17/05/2023,Fuel (Vehicle),Facilities,Allstar Business Solutions Ltd,155175,63.33
"Department for Business, Energy and Industrial Strategy",The Coal Authority,17/05/2023,Fuel (Vehicle),Facilities,Allstar Business Solutions Ltd,155175,11.4
"Department for Business, Energy and Industrial Strategy",The Coal Authority,10/05/2023,Fuel (Vehicle),Facilities,Allstar Business Solutions Ltd,155176,136.32
"Department for Business, Energy and Industrial Strategy",The Coal Authority,10/05/2023,Fuel (Vehicle),Facilities,Allstar Business Solutions Ltd,155176,125.93
"Department for Business, Energy and Industrial Strategy",The Coal Authority,10/05/2023,Fuel (Vehicle),Facilities,Allstar Business Solutions Ltd,155176,5.7
"Department for Business, Energy and Industrial Strategy",The Coal Authority,10/05/2023,Fuel (Vehicle),Facilities,Allstar Business Solutions Ltd,155176,0
"Department for Business, Energy and Industrial Strategy",The Coal Authority,20/04/2023,Fuel (Vehicle),NRW Metal Mine Programme,Staff Expenses Control,155178,35.04
"Department for Business, Energy and Industrial Strategy",The Coal Authority,27/04/2023,Fuel (Vehicle),NRW Metal Mine Programme,Staff Expenses Control,155178,19.6
"Department for Business, Energy and Industrial Strategy",The Coal Authority,27/04/2023,Fuel (Vehicle),NRW Metal Mine Programme,Staff Expenses Control,155178,28.19
"Department for Business, Energy and Industrial Strategy",The Coal Authority,09/05/2023,Fuel (Vehicle),ENV - Projects & Delivery,Staff Expenses Control,155178,31.84
"Department for Business, Energy and Industrial Strategy",The Coal Authority,11/05/2023,Fuel (Vehicle),ENV - Projects & Delivery,Staff Expenses Control,155178,53.33
"Department for Business, Energy and Industrial Strategy",The Coal Authority,11/05/2023,Fuel (Vehicle),ENV - Technical,Staff Expenses Control,155178,41.13
"Department for Business, Energy and Industrial Strategy",The Coal Authority,10/05/2023,Fuel (Vehicle),PS&S - General Claims,Allstar Business Solutions Ltd,155193,84.58
"Department for Business, Energy and Industrial Strategy",The Coal Authority,10/05/2023,Fuel (Vehicle),PS&S - General Claims,Allstar Business Solutions Ltd,155193,44.65
"Department for Business, Energy and Industrial Strategy",The Coal Authority,10/05/2023,Fuel (Vehicle),PS&S - General Claims,Allstar Business Solutions Ltd,155193,55.08
"Department for Business, Energy and Industrial Strategy",The Coal Authority,10/05/2023,Fuel (Vehicle),PS&S - General Claims,Allstar Business Solutions Ltd,155193,42.5
"Department for Business, Energy and Industrial Strategy",The Coal Authority,10/05/2023,Fuel (Vehicle),PS&S - General Claims,Allstar Business Solutions Ltd,155193,30.29
"Department for Business, Energy and Industrial Strategy",The Coal Authority,10/05/2023,Fuel (Vehicle),PS&S - General Claims,Allstar Business Solutions Ltd,155193,15.2
"Department for Business, Energy and Industrial Strategy",The Coal Authority,10/05/2023,Fuel (Vehicle),PS&S - General Claims,Allstar Business Solutions Ltd,155193,0
"Department for Business, Energy and Industrial Strategy",The Coal Authority,10/05/2023,Fuel (Vehicle),PS&S - General Claims,Allstar Business Solutions Ltd,155193,50.72
"Department for Business, Energy and Industrial Strategy",The Coal Authority,10/05/2023,Fuel (Vehicle),Tips Response,Allstar Business Solutions Ltd,155193,31.88
"Department for Business, Energy and Industrial Strategy",The Coal Authority,10/05/2023,Fuel (Vehicle),ENV - Mine Water Operations,Allstar Business Solutions Ltd,155284,31.08
"Department for Business, Energy and Industrial Strategy",The Coal Authority,10/05/2023,Fuel (Vehicle),ENV - Mine Water Operations,Allstar Business Solutions Ltd,155284,0
"Department for Business, Energy and Industrial Strategy",The Coal Authority,17/05/2023,Fuel (Vehicle),PS&S - General Claims,Allstar Business Solutions Ltd,155399,80
"Department for Business, Energy and Industrial Strategy",The Coal Authority,17/05/2023,Fuel (Vehicle),PS&S - General Claims,Allstar Business Solutions Ltd,155399,24.43
"Department for Business, Energy and Industrial Strategy",The Coal Authority,17/05/2023,Fuel (Vehicle),PS&S - General Claims,Allstar Business Solutions Ltd,155399,15.2
"Department for Business, Energy and Industrial Strategy",The Coal Authority,17/05/2023,Fuel (Vehicle),PS&S - General Claims,Allstar Business Solutions Ltd,155399,0
"Department for Business, Energy and Industrial Strategy",The Coal Authority,17/05/2023,Fuel (Vehicle),PS&S - General Claims,Allstar Business Solutions Ltd,155399,40.58
"Department for Business, Energy and Industrial Strategy",The Coal Authority,17/05/2023,Fuel (Vehicle),PS&S - General Claims,Allstar Business Solutions Ltd,155399,26.98
"Department for Business, Energy and Industrial Strategy",The Coal Authority,17/05/2023,Fuel (Vehicle),PS&S - General Claims,Allstar Business Solutions Ltd,155399,77.92
"Department for Business, Energy and Industrial Strategy",The Coal Authority,17/05/2023,Fuel (Vehicle),PS&S - General Claims,Allstar Business Solutions Ltd,155399,65.38
"Department for Business, Energy and Industrial Strategy",The Coal Authority,17/05/2023,Fuel (Vehicle),Tips Response,Allstar Business Solutions Ltd,155399,63.54
"Department for Business, Energy and Industrial Strategy",The Coal Authority,17/05/2023,Fuel (Vehicle),Tips Response,Allstar Business Solutions Ltd,155399,43.89
"Department for Business, Energy and Industrial Strategy",The Coal Authority,16/05/2023,Fuel (Vehicle),Innovation By-Product & Services Delivery,Staff Expenses Control,155553,53.66
"Department for Business, Energy and Industrial Strategy",The Coal Authority,17/05/2023,Fuel (Vehicle),Innovation By-Product & Services Delivery,Staff Expenses Control,155553,7.61
"Department for Business, Energy and Industrial Strategy",The Coal Authority,18/05/2023,Fuel (Vehicle),Heat & By-Product Innovation,Staff Expenses Control,155553,48.89
"Department for Business, Energy and Industrial Strategy",The Coal Authority,23/05/2023,Fuel (Vehicle),Tips Response,Staff Expenses Control,155553,50.02
"Department for Business, Energy and Industrial Strategy",The Coal Authority,09/01/2023,Fuel (Vehicle),DEFRA Metal Mine Programme,Government Procurement Card,155626,61.9
"Department for Business, Energy and Industrial Strategy",The Coal Authority,11/01/2023,Fuel (Vehicle),DEFRA Metal Mine Programme,Government Procurement Card,155626,12.91
"Department for Business, Energy and Industrial Strategy",The Coal Authority,02/02/2023,Fuel (Vehicle),DEFRA Metal Mine Programme,Government Procurement Card,155626,33.49
"Department for Business, Energy and Industrial Strategy",The Coal Authority,03/02/2023,Fuel (Vehicle),DEFRA Metal Mine Programme,Government Procurement Card,155627,43.34
"Department for Business, Energy and Industrial Strategy",The Coal Authority,03/03/2023,Fuel (Vehicle),DEFRA Metal Mine Programme,Government Procurement Card,155628,24.21
"Department for Business, Energy and Industrial Strategy",The Coal Authority,04/03/2023,Fuel (Vehicle),DEFRA Metal Mine Programme,Government Procurement Card,155628,52.66
"Department for Business, Energy and Industrial Strategy",The Coal Authority,06/03/2023,Fuel (Vehicle),ENV - Mine Water Operations,Government Procurement Card,155628,56.16
"Department for Business, Energy and Industrial Strategy",The Coal Authority,06/03/2023,Fuel (Vehicle),ENV - Mine Water Operations,Government Procurement Card,155628,33.58
"Department for Business, Energy and Industrial Strategy",The Coal Authority,07/03/2023,Fuel (Vehicle),NRW Metal Mine Programme,Government Procurement Card,155628,25
"Department for Business, Energy and Industrial Strategy",The Coal Authority,08/03/2023,Fuel (Vehicle),NRW Metal Mine Programme,Government Procurement Card,155628,38.56
"Department for Business, Energy and Industrial Strategy",The Coal Authority,08/03/2023,Fuel (Vehicle),NRW Metal Mine Programme,Government Procurement Card,155628,62.46
"Department for Business, Energy and Industrial Strategy",The Coal Authority,15/03/2023,Fuel (Vehicle),ENV - Mine Water Operations,Government Procurement Card,155628,18.95
"Department for Business, Energy and Industrial Strategy",The Coal Authority,22/03/2023,Fuel (Vehicle),ENV - Mine Water Operations,Government Procurement Card,155628,46.57
"Department for Business, Energy and Industrial Strategy",The Coal Authority,23/03/2023,Fuel (Vehicle),ENV - Mine Water Operations,Government Procurement Card,155628,39.88
"Department for Business, Energy and Industrial Strategy",The Coal Authority,23/03/2023,Fuel (Vehicle),ENV - Technical,Government Procurement Card,155628,66.58
"Department for Business, Energy and Industrial Strategy",The Coal Authority,30/03/2023,Fuel (Vehicle),ENV - Mine Water Operations,Government Procurement Card,155628,38.55
"Department for Business, Energy and Industrial Strategy",The Coal Authority,31/03/2023,Fuel (Vehicle),Executive,Government Procurement Card,155628,26.51
"Department for Business, Energy and Industrial Strategy",The Coal Authority,05/04/2023,Fuel (Vehicle),PS&S - General Claims,Government Procurement Card,155629,61.16
"Department for Business, Energy and Industrial Strategy",The Coal Authority,05/04/2023,Fuel (Vehicle),PS&S - General Claims,Government Procurement Card,155629,81.54
"Department for Business, Energy and Industrial Strategy",The Coal Authority,13/04/2023,Fuel (Vehicle),Engineering,Government Procurement Card,155629,67.33
"Department for Business, Energy and Industrial Strategy",The Coal Authority,14/04/2023,Fuel (Vehicle),ENV - Mine Water Operations,Government Procurement Card,155629,52.58
"Department for Business, Energy and Industrial Strategy",The Coal Authority,17/04/2023,Fuel (Vehicle),DEFRA Metal Mine Programme,Government Procurement Card,155629,46.38
"Department for Business, Energy and Industrial Strategy",The Coal Authority,18/04/2023,Fuel (Vehicle),DEFRA Metal Mine Programme,Government Procurement Card,155629,29.29
"Department for Business, Energy and Industrial Strategy",The Coal Authority,18/04/2023,Fuel (Vehicle),Other Customers,Government Procurement Card,155629,51.24
"Department for Business, Energy and Industrial Strategy",The Coal Authority,18/04/2023,Fuel (Vehicle),PS&S - General Claims,Government Procurement Card,155629,58.83
"Department for Business, Energy and Industrial Strategy",The Coal Authority,19/04/2023,Fuel (Vehicle),NRW Metal Mine Programme,Government Procurement Card,155629,82.92
"Department for Business, Energy and Industrial Strategy",The Coal Authority,19/04/2023,Fuel (Vehicle),NRW Metal Mine Programme,Government Procurement Card,155629,40.24
"Department for Business, Energy and Industrial Strategy",The Coal Authority,19/04/2023,Fuel (Vehicle),PS&S - General Claims,Government Procurement Card,155629,37.03
"Department for Business, Energy and Industrial Strategy",The Coal Authority,20/04/2023,Fuel (Vehicle),DEFRA Metal Mine Programme,Government Procurement Card,155629,39.62
"Department for Business, Energy and Industrial Strategy",The Coal Authority,20/04/2023,Fuel (Vehicle),DEFRA Metal Mine Programme,Government Procurement Card,155629,53.9
"Department for Business, Energy and Industrial Strategy",The Coal Authority,20/04/2023,Fuel (Vehicle),NRW Metal Mine Programme,Government Procurement Card,155629,48.2
"Department for Business, Energy and Industrial Strategy",The Coal Authority,20/04/2023,Fuel (Vehicle),PS&S - General Claims,Government Procurement Card,155629,50.6
"Department for Business, Energy and Industrial Strategy",The Coal Authority,21/04/2023,Fuel (Vehicle),Executive,Government Procurement Card,155629,16.98
"Department for Business, Energy and Industrial Strategy",The Coal Authority,24/04/2023,Fuel (Vehicle),ENV - Mine Water Operations,Government Procurement Card,155629,42.69
"Department for Business, Energy and Industrial Strategy",The Coal Authority,25/04/2023,Fuel (Vehicle),Engineering,Government Procurement Card,155629,33.02
"Department for Business, Energy and Industrial Strategy",The Coal Authority,25/04/2023,Fuel (Vehicle),PS&S - General Claims,Government Procurement Card,155629,25.02
"Department for Business, Energy and Industrial Strategy",The Coal Authority,26/04/2023,Fuel (Vehicle),ENV - Mine Water Operations,Government Procurement Card,155629,60.89
"Department for Business, Energy and Industrial Strategy",The Coal Authority,26/04/2023,Fuel (Vehicle),ENV - Mine Water Operations,Government Procurement Card,155629,43.87
"Department for Business, Energy and Industrial Strategy",The Coal Authority,26/04/2023,Fuel (Vehicle),NRW Metal Mine Programme,Government Procurement Card,155629,20.88
"Department for Business, Energy and Industrial Strategy",The Coal Authority,27/04/2023,Fuel (Vehicle),ENV - Mine Water Operations,Government Procurement Card,155629,48.78
"Department for Business, Energy and Industrial Strategy",The Coal Authority,27/04/2023,Fuel (Vehicle),NRW Metal Mine Programme,Government Procurement Card,155629,54.17
"Department for Business, Energy and Industrial Strategy",The Coal Authority,02/05/2023,Fuel (Vehicle),PS&S - General Claims,Government Procurement Card,155629,59.85
"Department for Business, Energy and Industrial Strategy",The Coal Authority,24/05/2023,Fuel (Vehicle),PS&S - General Claims,Allstar Business Solutions Ltd,155697,97.41
"Department for Business, Energy and Industrial Strategy",The Coal Authority,24/05/2023,Fuel (Vehicle),PS&S - General Claims,Allstar Business Solutions Ltd,155697,69.54
"Department for Business, Energy and Industrial Strategy",The Coal Authority,24/05/2023,Fuel (Vehicle),PS&S - General Claims,Allstar Business Solutions Ltd,155697,74.63
"Department for Business, Energy and Industrial Strategy",The Coal Authority,24/05/2023,Fuel (Vehicle),PS&S - General Claims,Allstar Business Solutions Ltd,155697,41.67
"Department for Business, Energy and Industrial Strategy",The Coal Authority,24/05/2023,Fuel (Vehicle),PS&S - General Claims,Allstar Business Solutions Ltd,155697,105.43
"Department for Business, Energy and Industrial Strategy",The Coal Authority,24/05/2023,Fuel (Vehicle),PS&S - General Claims,Allstar Business Solutions Ltd,155697,52.65
"Department for Business, Energy and Industrial Strategy",The Coal Authority,24/05/2023,Fuel (Vehicle),PS&S - General Claims,Allstar Business Solutions Ltd,155697,41.03
"Department for Business, Energy and Industrial Strategy",The Coal Authority,24/05/2023,Fuel (Vehicle),PS&S - General Claims,Allstar Business Solutions Ltd,155697,22.8
"Department for Business, Energy and Industrial Strategy",The Coal Authority,24/05/2023,Fuel (Vehicle),PS&S - General Claims,Allstar Business Solutions Ltd,155697,0
"Department for Business, Energy and Industrial Strategy",The Coal Authority,24/05/2023,Fuel (Vehicle),Tips Response,Allstar Business Solutions Ltd,155697,32.98
"Department for Business, Energy and Industrial Strategy",The Coal Authority,24/05/2023,Fuel (Vehicle),Facilities,Allstar Business Solutions Ltd,155704,35.37
"Department for Business, Energy and Industrial Strategy",The Coal Authority,24/05/2023,Fuel (Vehicle),Facilities,Allstar Business Solutions Ltd,155704,93.09
"Department for Business, Energy and Industrial Strategy",The Coal Authority,24/05/2023,Fuel (Vehicle),Facilities,Allstar Business Solutions Ltd,155704,57.52
"Department for Business, Energy and Industrial Strategy",The Coal Authority,24/05/2023,Fuel (Vehicle),Facilities,Allstar Business Solutions Ltd,155704,19.84
"Department for Business, Energy and Industrial Strategy",The Coal Authority,24/05/2023,Fuel (Vehicle),Facilities,Allstar Business Solutions Ltd,155704,13.3
"Department for Business, Energy and Industrial Strategy",The Coal Authority,24/05/2023,Fuel (Vehicle),Facilities,Allstar Business Solutions Ltd,155704,0
"Department for Business, Energy and Industrial Strategy",The Coal Authority,18/04/2023,Gas / Other Fuels,Facilities,Calor Gas Limited,154151,34.25
"Department for Business, Energy and Industrial Strategy",The Coal Authority,28/04/2023,Hardware Equipment & Support,DIG - Technical Delivery,Softcat Limited,154046,"11,481.00"
"Department for Business, Energy and Industrial Strategy",The Coal Authority,06/03/2023,Hardware Equipment & Support,DIG - Service & Assurance,Government Procurement Card,155628,"1,798.01"
"Department for Business, Energy and Industrial Strategy",The Coal Authority,12/04/2023,Hardware Equipment & Support,Engineering,Government Procurement Card,155629,12.5
"Department for Business, Energy and Industrial Strategy",The Coal Authority,23/02/2023,Hotel & Accommodation,Innovation By-Product & Services Delivery,Land Data,155482,542
"Department for Business, Energy and Industrial Strategy",The Coal Authority,07/04/2023,Hotel & Accommodation,ENV - Mine Water Operations,Government Procurement Card,155629,75
"Department for Business, Energy and Industrial Strategy",The Coal Authority,30/04/2023,Hotel & Accommodation,Finance,Corporate Travel Management North,155745,"6,247.19"
"Department for Business, Energy and Industrial Strategy",The Coal Authority,01/03/2023,Incidentals,DIG - Management,Staff Expenses Control,154203,4.96
"Department for Business, Energy and Industrial Strategy",The Coal Authority,16/03/2023,Incidentals,Legal & Governance,Staff Expenses Control,154203,33.34
"Department for Business, Energy and Industrial Strategy",The Coal Authority,23/03/2023,Incidentals,DIG - Management,Staff Expenses Control,154203,4.96
"Department for Business, Energy and Industrial Strategy",The Coal Authority,02/05/2023,Incidentals,Innovation By-Product & Services Delivery,Staff Expenses Control,154203,4.4
"Department for Business, Energy and Industrial Strategy",The Coal Authority,30/04/2023,Incidentals,Innovation By-Product & Services Delivery,Data Energy Management Services Limited,154455,72.5
"Department for Business, Energy and Industrial Strategy",The Coal Authority,17/04/2023,Incidentals,Other Customers,Staff Expenses Control,154710,2
"Department for Business, Energy and Industrial Strategy",The Coal Authority,18/04/2023,Incidentals,Heat & By-Product Innovation,Staff Expenses Control,154710,4
"Department for Business, Energy and Industrial Strategy",The Coal Authority,18/04/2023,Incidentals,Other Customers,Staff Expenses Control,154710,6.2
"Department for Business, Energy and Industrial Strategy",The Coal Authority,18/04/2023,Incidentals,Other Customers,Staff Expenses Control,154710,6.2
"Department for Business, Energy and Industrial Strategy",The Coal Authority,18/04/2023,Incidentals,Other Customers,Staff Expenses Control,154710,2
"Department for Business, Energy and Industrial Strategy",The Coal Authority,24/04/2023,Incidentals,Heat & By-Product Innovation,Staff Expenses Control,154710,12
"Department for Business, Energy and Industrial Strategy",The Coal Authority,27/04/2023,Incidentals,Corporate Programme Office,Staff Expenses Control,154710,14
"Department for Business, Energy and Industrial Strategy",The Coal Authority,02/05/2023,Incidentals,Heat & By-Product Innovation,Staff Expenses Control,154710,10.4
"Department for Business, Energy and Industrial Strategy",The Coal Authority,10/05/2023,Incidentals,Innovation By-Product & Services Delivery,Staff Expenses Control,154710,2.2
"Department for Business, Energy and Industrial Strategy",The Coal Authority,01/05/2023,Incidentals,Customer Services & Strategy,Security Plus Limited,154738,16.61
"Department for Business, Energy and Industrial Strategy",The Coal Authority,10/05/2023,Incidentals,Innovation By-Product & Services Delivery,Adverset Media Solutions Limited,154836,199
"Department for Business, Energy and Industrial Strategy",The Coal Authority,10/05/2023,Incidentals,Innovation By-Product & Services Delivery,Adverset Media Solutions Limited,154837,36
"Department for Business, Energy and Industrial Strategy",The Coal Authority,31/01/2023,Incidentals,Innovation By-Product & Services Delivery,Data Energy Management Services Limited,155033,72.5
"Department for Business, Energy and Industrial Strategy",The Coal Authority,04/05/2023,Incidentals,ENV - Projects & Delivery,Staff Expenses Control,155178,9.6
"Department for Business, Energy and Industrial Strategy",The Coal Authority,22/03/2023,Incidentals,Innovation By-Product & Services Delivery,Staff Expenses Control,155553,20.5
"Department for Business, Energy and Industrial Strategy",The Coal Authority,29/03/2023,Incidentals,Innovation By-Product & Services Delivery,Staff Expenses Control,155553,29
"Department for Business, Energy and Industrial Strategy",The Coal Authority,10/05/2023,Incidentals,Heat & By-Product Innovation,Staff Expenses Control,155553,10
"Department for Business, Energy and Industrial Strategy",The Coal Authority,15/05/2023,Incidentals,Heat & By-Product Innovation,Staff Expenses Control,155553,16
"Department for Business, Energy and Industrial Strategy",The Coal Authority,16/05/2023,Incidentals,Heat & By-Product Innovation,Staff Expenses Control,155553,25
"Department for Business, Energy and Industrial Strategy",The Coal Authority,10/01/2023,Incidentals,DEFRA Metal Mine Programme,Government Procurement Card,155626,4.17
"Department for Business, Energy and Industrial Strategy",The Coal Authority,14/02/2023,Incidentals,Board,Government Procurement Card,155627,18.33
"Department for Business, Energy and Industrial Strategy",The Coal Authority,06/03/2023,Incidentals,PS&S - General Claims,Government Procurement Card,155628,2.46
"Department for Business, Energy and Industrial Strategy",The Coal Authority,07/03/2023,Incidentals,PS&S - General Claims,Government Procurement Card,155628,13.33
"Department for Business, Energy and Industrial Strategy",The Coal Authority,08/03/2023,Incidentals,NRW Metal Mine Programme,Government Procurement Card,155628,3.33
"Department for Business, Energy and Industrial Strategy",The Coal Authority,08/03/2023,Incidentals,NRW Metal Mine Programme,Government Procurement Card,155628,6.67
"Department for Business, Energy and Industrial Strategy",The Coal Authority,08/03/2023,Incidentals,PS&S - General Claims,Government Procurement Card,155628,13.33
"Department for Business, Energy and Industrial Strategy",The Coal Authority,12/03/2023,Incidentals,PS&S - General Claims,Government Procurement Card,155628,111.36
"Department for Business, Energy and Industrial Strategy",The Coal Authority,14/03/2023,Incidentals,ENV - Mine Water Operations,Government Procurement Card,155628,10
"Department for Business, Energy and Industrial Strategy",The Coal Authority,24/03/2023,Incidentals,Executive,Government Procurement Card,155628,42
"Department for Business, Energy and Industrial Strategy",The Coal Authority,24/03/2023,Incidentals,PS&S - General Claims,Government Procurement Card,155628,1.58
"Department for Business, Energy and Industrial Strategy",The Coal Authority,28/03/2023,Incidentals,DEFRA LEP Funding,Government Procurement Card,155628,20
"Department for Business, Energy and Industrial Strategy",The Coal Authority,29/03/2023,Incidentals,Executive,Government Procurement Card,155628,4.83
"Department for Business, Energy and Industrial Strategy",The Coal Authority,29/03/2023,Incidentals,PS&S - General Claims,Government Procurement Card,155628,11.5
"Department for Business, Energy and Industrial Strategy",The Coal Authority,30/03/2023,Incidentals,ENV - Mine Water Operations,Government Procurement Card,155628,1.9
"Department for Business, Energy and Industrial Strategy",The Coal Authority,03/04/2023,Incidentals,PS&S - General Claims,Government Procurement Card,155629,7.5
"Department for Business, Energy and Industrial Strategy",The Coal Authority,05/04/2023,Incidentals,ENV - Mine Water Operations,Government Procurement Card,155629,10
"Department for Business, Energy and Industrial Strategy",The Coal Authority,05/04/2023,Incidentals,ENV - Projects & Delivery,Government Procurement Card,155629,10
"Department for Business, Energy and Industrial Strategy",The Coal Authority,11/04/2023,Incidentals,Innovation By-Product & Services Delivery,Government Procurement Card,155629,1.9
"Department for Business, Energy and Industrial Strategy",The Coal Authority,13/04/2023,Incidentals,Innovation By-Product & Services Delivery,Government Procurement Card,155629,4
"Department for Business, Energy and Industrial Strategy",The Coal Authority,18/04/2023,Incidentals,PS&S - General Claims,Government Procurement Card,155629,4
"Department for Business, Energy and Industrial Strategy",The Coal Authority,21/04/2023,Incidentals,DEFRA Metal Mine Programme,Government Procurement Card,155629,4.83
"Department for Business, Energy and Industrial Strategy",The Coal Authority,25/04/2023,Incidentals,ENV - Mine Water Operations,Government Procurement Card,155629,20.83
"Department for Business, Energy and Industrial Strategy",The Coal Authority,27/04/2023,Incidentals,ENV - Technical,Government Procurement Card,155629,18.95
"Department for Business, Energy and Industrial Strategy",The Coal Authority,27/04/2023,Incidentals,NRW Metal Mine Programme,Government Procurement Card,155629,8
"Department for Business, Energy and Industrial Strategy",The Coal Authority,27/04/2023,Incidentals,NRW Metal Mine Programme,Government Procurement Card,155629,4.83
"Department for Business, Energy and Industrial Strategy",The Coal Authority,28/04/2023,Incidentals,ENV - Technical,Government Procurement Card,155629,56.67
"Department for Business, Energy and Industrial Strategy",The Coal Authority,28/04/2023,Innovation Costs,By-Products - Energy,Smart Energy (GB) Ltd,153735,550
"Department for Business, Energy and Industrial Strategy",The Coal Authority,01/05/2023,Innovation Costs,By-Products - Energy,Smart Energy (GB) Ltd,153736,550
"Department for Business, Energy and Industrial Strategy",The Coal Authority,11/04/2023,Innovation Costs,Innovation By-Product & Services Delivery,Severn Trent Serv Ops Uk Ltd,154697,491.4
"Department for Business, Energy and Industrial Strategy",The Coal Authority,11/04/2023,Innovation Costs,By-Products - Energy,Severn Trent Serv Ops Uk Ltd,154723,"9,632.47"
"Department for Business, Energy and Industrial Strategy",The Coal Authority,15/05/2023,Innovation Costs,By-Products - Energy,Severn Trent Serv Ops Uk Ltd,154728,"-9,632.47"
"Department for Business, Energy and Industrial Strategy",The Coal Authority,10/05/2023,Innovation Costs,Innovation By-Product & Services Delivery,Adverset Media Solutions Limited,154838,169
"Department for Business, Energy and Industrial Strategy",The Coal Authority,09/05/2023,Innovation Costs,Innovation By-Product & Services Delivery,Sibert Solar Ltd,155087,427.68
"Department for Business, Energy and Industrial Strategy",The Coal Authority,11/05/2023,Innovation Costs,Innovation By-Product & Services Delivery,Severn Trent Serv Ops Uk Ltd,155376,502.47
"Department for Business, Energy and Industrial Strategy",The Coal Authority,02/02/2023,Innovation Costs,DEFRA Metal Mine Programme,Government Procurement Card,155626,69.73
"Department for Business, Energy and Industrial Strategy",The Coal Authority,12/05/2023,Internal Audit Fees,Finance,Gbs Re Treasury Votes Cash 1,154768,"22,114.43"
"Department for Business, Energy and Industrial Strategy",The Coal Authority,14/03/2023,Legal - General,People & Organisational Development,Browne Jacobson Llp Client Account,153825,172.8
"Department for Business, Energy and Industrial Strategy",The Coal Authority,14/04/2023,Legal - General,Legal & Governance,Browne Jacobson Llp Client Account,154149,3.67
"Department for Business, Energy and Industrial Strategy",The Coal Authority,14/04/2023,Legal - General,Legal & Governance,Browne Jacobson Llp Client Account,154149,"9,282.63"
"Department for Business, Energy and Industrial Strategy",The Coal Authority,13/04/2023,Legal - General,Legal & Governance,Browne Jacobson Llp Client Account,154150,710.4
"Department for Business, Energy and Industrial Strategy",The Coal Authority,14/04/2023,Legal - General,Legal & Governance,Browne Jacobson Llp Client Account,154159,"1,820.90"
"Department for Business, Energy and Industrial Strategy",The Coal Authority,18/04/2023,Legal - General,Legal & Governance,Browne Jacobson Llp Client Account,154160,110.2
"Department for Business, Energy and Industrial Strategy",The Coal Authority,17/04/2023,Legal - General,Legal & Governance,Browne Jacobson Llp Client Account,154161,"3,875.40"
"Department for Business, Energy and Industrial Strategy",The Coal Authority,19/04/2023,Legal - General,Legal & Governance,Browne Jacobson Llp Client Account,154162,"5,402.80"
"Department for Business, Energy and Industrial Strategy",The Coal Authority,19/04/2023,Legal - General,Legal & Governance,Browne Jacobson Llp Client Account,154162,965
"Department for Business, Energy and Industrial Strategy",The Coal Authority,19/04/2023,Legal - General,Legal & Governance,Browne Jacobson Llp Client Account,154162,"1,820.90"
"Department for Business, Energy and Industrial Strategy",The Coal Authority,19/04/2023,Legal - General,Legal & Governance,Browne Jacobson Llp Client Account,154163,"3,384.40"
"Department for Business, Energy and Industrial Strategy",The Coal Authority,19/04/2023,Legal - General,Legal & Governance,Browne Jacobson Llp Client Account,154163,"14,985.70"
"Department for Business, Energy and Industrial Strategy",The Coal Authority,26/04/2023,Legal - General,Legal & Governance,Walker Morris,154246,9.52
"Department for Business, Energy and Industrial Strategy",The Coal Authority,26/04/2023,Legal - General,Legal & Governance,Walker Morris,154246,560.48
"Department for Business, Energy and Industrial Strategy",The Coal Authority,21/04/2023,Legal - General,Legal & Governance,Walker Morris,154365,"10,000.00"
"Department for Business, Energy and Industrial Strategy",The Coal Authority,18/04/2023,Legal - General,People & Organisational Development,Browne Jacobson Llp Client Account,154417,595.2
"Department for Business, Energy and Industrial Strategy",The Coal Authority,28/02/2023,Legal - General,Legal & Governance,Dla Piper Scotland Llp,154534,63.74
"Department for Business, Energy and Industrial Strategy",The Coal Authority,20/04/2023,Legal - General,DEFRA LEP Funding,Browne Jacobson Llp Client Account,154536,607.3
"Department for Business, Energy and Industrial Strategy",The Coal Authority,20/04/2023,Legal - General,DEFRA LEP Funding,Browne Jacobson Llp Client Account,154536,"1,001.90"
"Department for Business, Energy and Industrial Strategy",The Coal Authority,04/05/2023,Legal - General,Legal & Governance,Anderson Strathern,154549,30
"Department for Business, Energy and Industrial Strategy",The Coal Authority,04/05/2023,Legal - General,Legal & Governance,Anderson Strathern,154550,164
"Department for Business, Energy and Industrial Strategy",The Coal Authority,04/05/2023,Legal - General,Legal & Governance,Anderson Strathern,154551,0
"Department for Business, Energy and Industrial Strategy",The Coal Authority,04/05/2023,Legal - General,Legal & Governance,Anderson Strathern,154551,865.5
"Department for Business, Energy and Industrial Strategy",The Coal Authority,23/12/2022,Legal - General,ENV - Mine Water Operations,Murray Beith Murray,154651,"3,108.20"
"Department for Business, Energy and Industrial Strategy",The Coal Authority,19/05/2023,Legal - General,Legal & Governance,Dla Piper Scotland Llp,155285,57.2
"Department for Business, Energy and Industrial Strategy",The Coal Authority,19/05/2023,Legal - General,Legal & Governance,Dla Piper Uk Llp,155368,233.47
"Department for Business, Energy and Industrial Strategy",The Coal Authority,23/05/2023,Legal - General,PS&S - General Claims,Registers Of Scotland,155387,60
"Department for Business, Energy and Industrial Strategy",The Coal Authority,19/05/2023,Legal - General,Legal & Governance,Dla Piper Scotland Llp,155529,561.6
"Department for Business, Energy and Industrial Strategy",The Coal Authority,09/05/2023,Legal - General,People & Organisational Development,Lexis Nexis,155606,"5,482.90"
"Department for Business, Energy and Industrial Strategy",The Coal Authority,21/04/2023,Legal - Property Title Search,Legal & Governance,Land Registry,153864,27
"Department for Business, Energy and Industrial Strategy",The Coal Authority,31/03/2023,Legal - Property Title Search,Legal & Governance,Land Registry,154229,21
"Department for Business, Energy and Industrial Strategy",The Coal Authority,03/05/2023,Legal - Property Title Search,Legal & Governance,Land Registry,155110,90
"Department for Business, Energy and Industrial Strategy",The Coal Authority,28/04/2023,Legal - Property Title Search,Legal & Governance,Land Registry,155111,18
"Department for Business, Energy and Industrial Strategy",The Coal Authority,05/05/2023,Legal - Property Title Search,Legal & Governance,Land Registry,155112,30
"Department for Business, Energy and Industrial Strategy",The Coal Authority,19/05/2023,Legal - Property Title Search,Legal & Governance,Land Registry,155619,15
"Department for Business, Energy and Industrial Strategy",The Coal Authority,17/05/2023,Legal - Property Title Search,Legal & Governance,Land Registry,155620,51
"Department for Business, Energy and Industrial Strategy",The Coal Authority,21/04/2023,Legal - Property Valuation Fees,DEV - Property Management,Lambert Smith Hampton,153998,"4,500.00"
"Department for Business, Energy and Industrial Strategy",The Coal Authority,27/04/2023,Membership Subscriptions,ENV - Sustainability & Environmental Compliance,Staff Expenses Control,153569,175
"Department for Business, Energy and Industrial Strategy",The Coal Authority,04/05/2023,Membership Subscriptions,Community Response,Staff Expenses Control,154203,90
"Department for Business, Energy and Industrial Strategy",The Coal Authority,05/05/2023,Membership Subscriptions,DEV - Property Management,Staff Expenses Control,154710,161
"Department for Business, Energy and Industrial Strategy",The Coal Authority,05/05/2023,Membership Subscriptions,ENV - Salinity Programme,Staff Expenses Control,155178,539
"Department for Business, Energy and Industrial Strategy",The Coal Authority,03/03/2023,Membership Subscriptions,Innovation By-Product & Services Delivery,Government Procurement Card,155627,479.94
"Department for Business, Energy and Industrial Strategy",The Coal Authority,24/04/2023,Membership Subscriptions,Executive Assistants,Government Procurement Card,155629,449
"Department for Business, Energy and Industrial Strategy",The Coal Authority,03/05/2023,Membership Subscriptions,Innovation By-Product & Services Delivery,Government Procurement Card,155629,192.99
"Department for Business, Energy and Industrial Strategy",The Coal Authority,11/04/2023,Mileage Payments,PS&S - General Claims,Staff Expenses Control,153569,2.07
"Department for Business, Energy and Industrial Strategy",The Coal Authority,11/04/2023,Mileage Payments,PS&S - General Claims,Staff Expenses Control,153569,2.07
"Department for Business, Energy and Industrial Strategy",The Coal Authority,11/04/2023,Mileage Payments,PS&S - General Claims,Staff Expenses Control,153569,2.07
"Department for Business, Energy and Industrial Strategy",The Coal Authority,11/04/2023,Mileage Payments,PS&S - General Claims,Staff Expenses Control,153569,2.07
"Department for Business, Energy and Industrial Strategy",The Coal Authority,12/04/2023,Mileage Payments,PS&S - General Claims,Staff Expenses Control,153569,2.07
"Department for Business, Energy and Industrial Strategy",The Coal Authority,12/04/2023,Mileage Payments,PS&S - General Claims,Staff Expenses Control,153569,2.07
"Department for Business, Energy and Industrial Strategy",The Coal Authority,13/04/2023,Mileage Payments,PS&S - General Claims,Staff Expenses Control,153569,7.31
"Department for Business, Energy and Industrial Strategy",The Coal Authority,13/04/2023,Mileage Payments,PS&S - General Claims,Staff Expenses Control,153569,6.65
"Department for Business, Energy and Industrial Strategy",The Coal Authority,18/04/2023,Mileage Payments,PS&S - General Claims,Staff Expenses Control,153569,7.31
"Department for Business, Energy and Industrial Strategy",The Coal Authority,18/04/2023,Mileage Payments,PS&S - General Claims,Staff Expenses Control,153569,6.65
"Department for Business, Energy and Industrial Strategy",The Coal Authority,19/04/2023,Mileage Payments,PS&S - General Claims,Staff Expenses Control,153569,2.06
"Department for Business, Energy and Industrial Strategy",The Coal Authority,19/04/2023,Mileage Payments,PS&S - General Claims,Staff Expenses Control,153569,2.07
"Department for Business, Energy and Industrial Strategy",The Coal Authority,20/04/2023,Mileage Payments,PS&S - General Claims,Staff Expenses Control,153569,7.32
"Department for Business, Energy and Industrial Strategy",The Coal Authority,20/04/2023,Mileage Payments,PS&S - General Claims,Staff Expenses Control,153569,6.64
"Department for Business, Energy and Industrial Strategy",The Coal Authority,21/04/2023,Mileage Payments,PS&S - General Claims,Staff Expenses Control,153569,2.07
"Department for Business, Energy and Industrial Strategy",The Coal Authority,21/04/2023,Mileage Payments,PS&S - General Claims,Staff Expenses Control,153569,2.07
"Department for Business, Energy and Industrial Strategy",The Coal Authority,24/04/2023,Mileage Payments,Staff Network and Groups,Staff Expenses Control,153569,11.25
"Department for Business, Energy and Industrial Strategy",The Coal Authority,25/04/2023,Mileage Payments,DEFRA LEP Funding,Staff Expenses Control,153569,69.92
"Department for Business, Energy and Industrial Strategy",The Coal Authority,25/04/2023,Mileage Payments,PS&S - General Claims,Staff Expenses Control,153569,4.69
"Department for Business, Energy and Industrial Strategy",The Coal Authority,25/04/2023,Mileage Payments,PS&S - General Claims,Staff Expenses Control,153569,4.69
"Department for Business, Energy and Industrial Strategy",The Coal Authority,25/04/2023,Mileage Payments,Staff Network and Groups,Staff Expenses Control,153569,14.55
"Department for Business, Energy and Industrial Strategy",The Coal Authority,25/04/2023,Mileage Payments,Staff Network and Groups,Staff Expenses Control,153569,10.8
"Department for Business, Energy and Industrial Strategy",The Coal Authority,26/04/2023,Mileage Payments,DEFRA LEP Funding,Staff Expenses Control,153569,45
"Department for Business, Energy and Industrial Strategy",The Coal Authority,19/04/2023,Mileage Payments,Community Response,Staff Expenses Control,154203,120.6
"Department for Business, Energy and Industrial Strategy",The Coal Authority,25/04/2023,Mileage Payments,Community Response,Staff Expenses Control,154203,20.43
"Department for Business, Energy and Industrial Strategy",The Coal Authority,25/04/2023,Mileage Payments,DIG - Technical Delivery,Staff Expenses Control,154203,5.25
"Department for Business, Energy and Industrial Strategy",The Coal Authority,25/04/2023,Mileage Payments,DIG - Technical Delivery,Staff Expenses Control,154203,5.25
"Department for Business, Energy and Industrial Strategy",The Coal Authority,25/04/2023,Mileage Payments,ENV - Projects & Delivery,Staff Expenses Control,154203,30.54
"Department for Business, Energy and Industrial Strategy",The Coal Authority,25/04/2023,Mileage Payments,ENV - Projects & Delivery,Staff Expenses Control,154203,30.5
"Department for Business, Energy and Industrial Strategy",The Coal Authority,25/04/2023,Mileage Payments,ENV - Technical,Staff Expenses Control,154203,3.6
"Department for Business, Energy and Industrial Strategy",The Coal Authority,25/04/2023,Mileage Payments,ENV - Technical,Staff Expenses Control,154203,0.45
"Department for Business, Energy and Industrial Strategy",The Coal Authority,25/04/2023,Mileage Payments,ENV - Technical,Staff Expenses Control,154203,3.94
"Department for Business, Energy and Industrial Strategy",The Coal Authority,25/04/2023,Mileage Payments,Mining Information,Staff Expenses Control,154203,10.8
"Department for Business, Energy and Industrial Strategy",The Coal Authority,25/04/2023,Mileage Payments,Staff Network and Groups,Staff Expenses Control,154203,8.55
"Department for Business, Energy and Industrial Strategy",The Coal Authority,27/04/2023,Mileage Payments,ENV - Technical,Staff Expenses Control,154203,6.83
"Department for Business, Energy and Industrial Strategy",The Coal Authority,27/04/2023,Mileage Payments,ENV - Technical,Staff Expenses Control,154203,39.15
"Department for Business, Energy and Industrial Strategy",The Coal Authority,27/04/2023,Mileage Payments,ENV - Technical,Staff Expenses Control,154203,2.52
"Department for Business, Energy and Industrial Strategy",The Coal Authority,28/04/2023,Mileage Payments,ENV - Technical,Staff Expenses Control,154203,43.2
"Department for Business, Energy and Industrial Strategy",The Coal Authority,02/05/2023,Mileage Payments,DEFRA Metal Mine Programme,Staff Expenses Control,154203,103.05
"Department for Business, Energy and Industrial Strategy",The Coal Authority,02/05/2023,Mileage Payments,Innovation By-Product & Services Delivery,Staff Expenses Control,154203,63.5
"Department for Business, Energy and Industrial Strategy",The Coal Authority,02/05/2023,Mileage Payments,Innovation By-Product & Services Delivery,Staff Expenses Control,154203,57.15
"Department for Business, Energy and Industrial Strategy",The Coal Authority,02/05/2023,Mileage Payments,Innovation By-Product & Services Delivery,Staff Expenses Control,154203,18.83
"Department for Business, Energy and Industrial Strategy",The Coal Authority,02/05/2023,Mileage Payments,Innovation By-Product & Services Delivery,Staff Expenses Control,154203,18.82
"Department for Business, Energy and Industrial Strategy",The Coal Authority,03/05/2023,Mileage Payments,Engineering,Staff Expenses Control,154203,41.4
"Department for Business, Energy and Industrial Strategy",The Coal Authority,03/05/2023,Mileage Payments,Engineering,Staff Expenses Control,154203,41.4
"Department for Business, Energy and Industrial Strategy",The Coal Authority,04/05/2023,Mileage Payments,DEFRA Metal Mine Programme,Staff Expenses Control,154203,30.15
"Department for Business, Energy and Industrial Strategy",The Coal Authority,11/01/2023,Mileage Payments,DIG - Technical Delivery,Staff Expenses Control,154710,10.78
"Department for Business, Energy and Industrial Strategy",The Coal Authority,11/01/2023,Mileage Payments,DIG - Technical Delivery,Staff Expenses Control,154710,10.1
"Department for Business, Energy and Industrial Strategy",The Coal Authority,15/03/2023,Mileage Payments,ENV - Technical,Staff Expenses Control,154710,12.6
"Department for Business, Energy and Industrial Strategy",The Coal Authority,15/03/2023,Mileage Payments,ENV - Technical,Staff Expenses Control,154710,12.6
"Department for Business, Energy and Industrial Strategy",The Coal Authority,04/04/2023,Mileage Payments,Tip Management Services,Staff Expenses Control,154710,2.85
"Department for Business, Energy and Industrial Strategy",The Coal Authority,04/04/2023,Mileage Payments,Tip Management Services,Staff Expenses Control,154710,0.47
"Department for Business, Energy and Industrial Strategy",The Coal Authority,04/04/2023,Mileage Payments,Tip Management Services,Staff Expenses Control,154710,2.32
"Department for Business, Energy and Industrial Strategy",The Coal Authority,05/04/2023,Mileage Payments,Tip Management Services,Staff Expenses Control,154710,4.36
"Department for Business, Energy and Industrial Strategy",The Coal Authority,05/04/2023,Mileage Payments,Tip Management Services,Staff Expenses Control,154710,4.3
"Department for Business, Energy and Industrial Strategy",The Coal Authority,06/04/2023,Mileage Payments,Tip Management Services,Staff Expenses Control,154710,4.37
"Department for Business, Energy and Industrial Strategy",The Coal Authority,06/04/2023,Mileage Payments,Tip Management Services,Staff Expenses Control,154710,4.3
"Department for Business, Energy and Industrial Strategy",The Coal Authority,12/04/2023,Mileage Payments,Tip Management Services,Staff Expenses Control,154710,4.22
"Department for Business, Energy and Industrial Strategy",The Coal Authority,12/04/2023,Mileage Payments,Tip Management Services,Staff Expenses Control,154710,4.63
"Department for Business, Energy and Industrial Strategy",The Coal Authority,13/04/2023,Mileage Payments,Tip Management Services,Staff Expenses Control,154710,1.14
"Department for Business, Energy and Industrial Strategy",The Coal Authority,13/04/2023,Mileage Payments,Tip Management Services,Staff Expenses Control,154710,1.14
"Department for Business, Energy and Industrial Strategy",The Coal Authority,18/04/2023,Mileage Payments,Engineering,Staff Expenses Control,154710,10.13
"Department for Business, Energy and Industrial Strategy",The Coal Authority,18/04/2023,Mileage Payments,Engineering,Staff Expenses Control,154710,10.12
"Department for Business, Energy and Industrial Strategy",The Coal Authority,18/04/2023,Mileage Payments,Heat & By-Product Innovation,Staff Expenses Control,154710,14.4
"Department for Business, Energy and Industrial Strategy",The Coal Authority,18/04/2023,Mileage Payments,Tip Management Services,Staff Expenses Control,154710,1.66
"Department for Business, Energy and Industrial Strategy",The Coal Authority,18/04/2023,Mileage Payments,Tip Management Services,Staff Expenses Control,154710,1.66
"Department for Business, Energy and Industrial Strategy",The Coal Authority,20/04/2023,Mileage Payments,Tip Management Services,Staff Expenses Control,154710,4.16
"Department for Business, Energy and Industrial Strategy",The Coal Authority,20/04/2023,Mileage Payments,Tip Management Services,Staff Expenses Control,154710,4.22
"Department for Business, Energy and Industrial Strategy",The Coal Authority,20/04/2023,Mileage Payments,Tip Management Services,Staff Expenses Control,154710,1.11
"Department for Business, Energy and Industrial Strategy",The Coal Authority,21/04/2023,Mileage Payments,Tip Management Services,Staff Expenses Control,154710,1.97
"Department for Business, Energy and Industrial Strategy",The Coal Authority,21/04/2023,Mileage Payments,Tip Management Services,Staff Expenses Control,154710,1.55
"Department for Business, Energy and Industrial Strategy",The Coal Authority,23/04/2023,Mileage Payments,ENV - Technical,Staff Expenses Control,154710,67
"Department for Business, Energy and Industrial Strategy",The Coal Authority,24/04/2023,Mileage Payments,Heat & By-Product Innovation,Staff Expenses Control,154710,14.4
"Department for Business, Energy and Industrial Strategy",The Coal Authority,25/04/2023,Mileage Payments,Engineering,Staff Expenses Control,154710,10.13
"Department for Business, Energy and Industrial Strategy",The Coal Authority,25/04/2023,Mileage Payments,Engineering,Staff Expenses Control,154710,10.12
"Department for Business, Energy and Industrial Strategy",The Coal Authority,25/04/2023,Mileage Payments,Staff Network and Groups,Staff Expenses Control,154710,4.69
"Department for Business, Energy and Industrial Strategy",The Coal Authority,25/04/2023,Mileage Payments,Staff Network and Groups,Staff Expenses Control,154710,4.69
"Department for Business, Energy and Industrial Strategy",The Coal Authority,26/04/2023,Mileage Payments,Tip Management Services,Staff Expenses Control,154710,4.7
"Department for Business, Energy and Industrial Strategy",The Coal Authority,26/04/2023,Mileage Payments,Tip Management Services,Staff Expenses Control,154710,4.73
"Department for Business, Energy and Industrial Strategy",The Coal Authority,27/04/2023,Mileage Payments,Corporate Programme Office,Staff Expenses Control,154710,9.9
"Department for Business, Energy and Industrial Strategy",The Coal Authority,27/04/2023,Mileage Payments,Corporate Programme Office,Staff Expenses Control,154710,9.9
"Department for Business, Energy and Industrial Strategy",The Coal Authority,28/04/2023,Mileage Payments,ENV - Technical,Staff Expenses Control,154710,66.42
"Department for Business, Energy and Industrial Strategy",The Coal Authority,28/04/2023,Mileage Payments,Tip Management Services,Staff Expenses Control,154710,4.74
"Department for Business, Energy and Industrial Strategy",The Coal Authority,28/04/2023,Mileage Payments,Tip Management Services,Staff Expenses Control,154710,4.29
"Department for Business, Energy and Industrial Strategy",The Coal Authority,02/05/2023,Mileage Payments,ENV - Projects & Delivery,Staff Expenses Control,154710,63
"Department for Business, Energy and Industrial Strategy",The Coal Authority,02/05/2023,Mileage Payments,Engineering,Staff Expenses Control,154710,10.13
"Department for Business, Energy and Industrial Strategy",The Coal Authority,02/05/2023,Mileage Payments,Engineering,Staff Expenses Control,154710,10.12
"Department for Business, Energy and Industrial Strategy",The Coal Authority,02/05/2023,Mileage Payments,Heat & By-Product Innovation,Staff Expenses Control,154710,30.6
"Department for Business, Energy and Industrial Strategy",The Coal Authority,03/05/2023,Mileage Payments,DIG - Technical Delivery,Staff Expenses Control,154710,10.79
"Department for Business, Energy and Industrial Strategy",The Coal Authority,03/05/2023,Mileage Payments,DIG - Technical Delivery,Staff Expenses Control,154710,10.09
"Department for Business, Energy and Industrial Strategy",The Coal Authority,05/05/2023,Mileage Payments,DIG - Technical Delivery,Staff Expenses Control,154710,10.1
"Department for Business, Energy and Industrial Strategy",The Coal Authority,09/05/2023,Mileage Payments,Engineering,Staff Expenses Control,154710,10.12
"Department for Business, Energy and Industrial Strategy",The Coal Authority,09/05/2023,Mileage Payments,Engineering,Staff Expenses Control,154710,10.13
"Department for Business, Energy and Industrial Strategy",The Coal Authority,10/05/2023,Mileage Payments,DEFRA LEP Funding,Staff Expenses Control,154710,52.65
"Department for Business, Energy and Industrial Strategy",The Coal Authority,10/05/2023,Mileage Payments,ENV - Salinity Programme,Staff Expenses Control,154710,83
"Department for Business, Energy and Industrial Strategy",The Coal Authority,10/05/2023,Mileage Payments,Innovation By-Product & Services Delivery,Staff Expenses Control,154710,39.23
"Department for Business, Energy and Industrial Strategy",The Coal Authority,10/05/2023,Mileage Payments,Innovation By-Product & Services Delivery,Staff Expenses Control,154710,4.53
"Department for Business, Energy and Industrial Strategy",The Coal Authority,10/05/2023,Mileage Payments,Innovation By-Product & Services Delivery,Staff Expenses Control,154710,22.74
"Department for Business, Energy and Industrial Strategy",The Coal Authority,10/05/2023,Mileage Payments,Innovation By-Product & Services Delivery,Staff Expenses Control,154710,17.73
"Department for Business, Energy and Industrial Strategy",The Coal Authority,11/05/2023,Mileage Payments,DEFRA LEP Funding,Staff Expenses Control,154710,60.3
"Department for Business, Energy and Industrial Strategy",The Coal Authority,15/03/2023,Mileage Payments,ENV - Projects & Delivery,Staff Expenses Control,155178,1.8
"Department for Business, Energy and Industrial Strategy",The Coal Authority,20/03/2023,Mileage Payments,PS&S - General Claims,Staff Expenses Control,155178,9
"Department for Business, Energy and Industrial Strategy",The Coal Authority,22/03/2023,Mileage Payments,ENV - Projects & Delivery,Staff Expenses Control,155178,3.6
"Department for Business, Energy and Industrial Strategy",The Coal Authority,23/03/2023,Mileage Payments,ENV - Projects & Delivery,Staff Expenses Control,155178,3.6
"Department for Business, Energy and Industrial Strategy",The Coal Authority,23/03/2023,Mileage Payments,PS&S - General Claims,Staff Expenses Control,155178,36.9
"Department for Business, Energy and Industrial Strategy",The Coal Authority,24/03/2023,Mileage Payments,PS&S - General Claims,Staff Expenses Control,155178,9
"Department for Business, Energy and Industrial Strategy",The Coal Authority,30/03/2023,Mileage Payments,PS&S - General Claims,Staff Expenses Control,155178,9
"Department for Business, Energy and Industrial Strategy",The Coal Authority,11/04/2023,Mileage Payments,ENV - Projects & Delivery,Staff Expenses Control,155178,1.8
"Department for Business, Energy and Industrial Strategy",The Coal Authority,11/04/2023,Mileage Payments,PS&S - General Claims,Staff Expenses Control,155178,2.25
"Department for Business, Energy and Industrial Strategy",The Coal Authority,12/04/2023,Mileage Payments,PS&S - General Claims,Staff Expenses Control,155178,2.7
"Department for Business, Energy and Industrial Strategy",The Coal Authority,12/04/2023,Mileage Payments,PS&S - General Claims,Staff Expenses Control,155178,28.03
"Department for Business, Energy and Industrial Strategy",The Coal Authority,12/04/2023,Mileage Payments,PS&S - General Claims,Staff Expenses Control,155178,28
"Department for Business, Energy and Industrial Strategy",The Coal Authority,13/04/2023,Mileage Payments,PS&S - General Claims,Staff Expenses Control,155178,18.66
"Department for Business, Energy and Industrial Strategy",The Coal Authority,13/04/2023,Mileage Payments,PS&S - General Claims,Staff Expenses Control,155178,18.63
"Department for Business, Energy and Industrial Strategy",The Coal Authority,14/04/2023,Mileage Payments,PS&S - General Claims,Staff Expenses Control,155178,14.85
"Department for Business, Energy and Industrial Strategy",The Coal Authority,17/04/2023,Mileage Payments,PS&S - General Claims,Staff Expenses Control,155178,18.62
"Department for Business, Energy and Industrial Strategy",The Coal Authority,17/04/2023,Mileage Payments,PS&S - General Claims,Staff Expenses Control,155178,18.66
"Department for Business, Energy and Industrial Strategy",The Coal Authority,18/04/2023,Mileage Payments,PS&S - General Claims,Staff Expenses Control,155178,9
"Department for Business, Energy and Industrial Strategy",The Coal Authority,19/04/2023,Mileage Payments,PS&S - General Claims,Staff Expenses Control,155178,14.4
"Department for Business, Energy and Industrial Strategy",The Coal Authority,21/04/2023,Mileage Payments,PS&S - General Claims,Staff Expenses Control,155178,9
"Department for Business, Energy and Industrial Strategy",The Coal Authority,24/04/2023,Mileage Payments,Staff Network and Groups,Staff Expenses Control,155178,61.74
"Department for Business, Energy and Industrial Strategy",The Coal Authority,26/04/2023,Mileage Payments,PS&S - General Claims,Staff Expenses Control,155178,9
"Department for Business, Energy and Industrial Strategy",The Coal Authority,26/04/2023,Mileage Payments,Staff Network and Groups,Staff Expenses Control,155178,58.31
"Department for Business, Energy and Industrial Strategy",The Coal Authority,27/04/2023,Mileage Payments,PS&S - General Claims,Staff Expenses Control,155178,31.5
"Department for Business, Energy and Industrial Strategy",The Coal Authority,27/04/2023,Mileage Payments,PS&S - General Claims,Staff Expenses Control,155178,18.62
"Department for Business, Energy and Industrial Strategy",The Coal Authority,27/04/2023,Mileage Payments,PS&S - General Claims,Staff Expenses Control,155178,16.3
"Department for Business, Energy and Industrial Strategy",The Coal Authority,27/04/2023,Mileage Payments,PS&S - General Claims,Staff Expenses Control,155178,18.77
"Department for Business, Energy and Industrial Strategy",The Coal Authority,27/04/2023,Mileage Payments,PS&S - General Claims,Staff Expenses Control,155178,2.06
"Department for Business, Energy and Industrial Strategy",The Coal Authority,27/04/2023,Mileage Payments,PS&S - General Claims,Staff Expenses Control,155178,2.08
"Department for Business, Energy and Industrial Strategy",The Coal Authority,02/05/2023,Mileage Payments,ENV - Projects & Delivery,Staff Expenses Control,155178,3.6
"Department for Business, Energy and Industrial Strategy",The Coal Authority,02/05/2023,Mileage Payments,PS&S - General Claims,Staff Expenses Control,155178,7.31
"Department for Business, Energy and Industrial Strategy",The Coal Authority,02/05/2023,Mileage Payments,PS&S - General Claims,Staff Expenses Control,155178,6.65
"Department for Business, Energy and Industrial Strategy",The Coal Authority,03/05/2023,Mileage Payments,PS&S - General Claims,Staff Expenses Control,155178,48.6
"Department for Business, Energy and Industrial Strategy",The Coal Authority,03/05/2023,Mileage Payments,PS&S - General Claims,Staff Expenses Control,155178,2.62
"Department for Business, Energy and Industrial Strategy",The Coal Authority,03/05/2023,Mileage Payments,PS&S - General Claims,Staff Expenses Control,155178,3.07
"Department for Business, Energy and Industrial Strategy",The Coal Authority,03/05/2023,Mileage Payments,PS&S - General Claims,Staff Expenses Control,155178,47.14
"Department for Business, Energy and Industrial Strategy",The Coal Authority,03/05/2023,Mileage Payments,PS&S - General Claims,Staff Expenses Control,155178,9
"Department for Business, Energy and Industrial Strategy",The Coal Authority,04/05/2023,Mileage Payments,ENV - Projects & Delivery,Staff Expenses Control,155178,2.25
"Department for Business, Energy and Industrial Strategy",The Coal Authority,04/05/2023,Mileage Payments,PS&S - General Claims,Staff Expenses Control,155178,6.75
"Department for Business, Energy and Industrial Strategy",The Coal Authority,04/05/2023,Mileage Payments,PS&S - General Claims,Staff Expenses Control,155178,4.4
"Department for Business, Energy and Industrial Strategy",The Coal Authority,04/05/2023,Mileage Payments,PS&S - General Claims,Staff Expenses Control,155178,3.36
"Department for Business, Energy and Industrial Strategy",The Coal Authority,04/05/2023,Mileage Payments,PS&S - General Claims,Staff Expenses Control,155178,22.19
"Department for Business, Energy and Industrial Strategy",The Coal Authority,04/05/2023,Mileage Payments,PS&S - General Claims,Staff Expenses Control,155178,21.92
"Department for Business, Energy and Industrial Strategy",The Coal Authority,04/05/2023,Mileage Payments,PS&S - General Claims,Staff Expenses Control,155178,0.36
"Department for Business, Energy and Industrial Strategy",The Coal Authority,09/05/2023,Mileage Payments,PS&S - General Claims,Staff Expenses Control,155178,7.32
"Department for Business, Energy and Industrial Strategy",The Coal Authority,09/05/2023,Mileage Payments,PS&S - General Claims,Staff Expenses Control,155178,6.64
"Department for Business, Energy and Industrial Strategy",The Coal Authority,09/05/2023,Mileage Payments,PS&S - General Claims,Staff Expenses Control,155178,6.75
"Department for Business, Energy and Industrial Strategy",The Coal Authority,09/05/2023,Mileage Payments,PS&S - General Claims,Staff Expenses Control,155178,4.4
"Department for Business, Energy and Industrial Strategy",The Coal Authority,09/05/2023,Mileage Payments,PS&S - General Claims,Staff Expenses Control,155178,3.36
"Department for Business, Energy and Industrial Strategy",The Coal Authority,10/05/2023,Mileage Payments,PS&S - General Claims,Staff Expenses Control,155178,2.07
"Department for Business, Energy and Industrial Strategy",The Coal Authority,10/05/2023,Mileage Payments,PS&S - General Claims,Staff Expenses Control,155178,2.07
"Department for Business, Energy and Industrial Strategy",The Coal Authority,10/05/2023,Mileage Payments,PS&S - General Claims,Staff Expenses Control,155178,2.07
"Department for Business, Energy and Industrial Strategy",The Coal Authority,10/05/2023,Mileage Payments,PS&S - General Claims,Staff Expenses Control,155178,2.07
"Department for Business, Energy and Industrial Strategy",The Coal Authority,10/05/2023,Mileage Payments,PS&S - General Claims,Staff Expenses Control,155178,13.5
"Department for Business, Energy and Industrial Strategy",The Coal Authority,11/05/2023,Mileage Payments,Innovation By-Product & Services Delivery,Staff Expenses Control,155178,6.87
"Department for Business, Energy and Industrial Strategy",The Coal Authority,11/05/2023,Mileage Payments,Innovation By-Product & Services Delivery,Staff Expenses Control,155178,57.15
"Department for Business, Energy and Industrial Strategy",The Coal Authority,11/05/2023,Mileage Payments,Innovation By-Product & Services Delivery,Staff Expenses Control,155178,57.15
"Department for Business, Energy and Industrial Strategy",The Coal Authority,11/05/2023,Mileage Payments,Innovation By-Product & Services Delivery,Staff Expenses Control,155178,6.89
"Department for Business, Energy and Industrial Strategy",The Coal Authority,11/05/2023,Mileage Payments,Innovation By-Product & Services Delivery,Staff Expenses Control,155178,7.47
"Department for Business, Energy and Industrial Strategy",The Coal Authority,11/05/2023,Mileage Payments,PS&S - General Claims,Staff Expenses Control,155178,7.32
"Department for Business, Energy and Industrial Strategy",The Coal Authority,11/05/2023,Mileage Payments,PS&S - General Claims,Staff Expenses Control,155178,6.64
"Department for Business, Energy and Industrial Strategy",The Coal Authority,12/05/2023,Mileage Payments,PS&S - General Claims,Staff Expenses Control,155178,2.06
"Department for Business, Energy and Industrial Strategy",The Coal Authority,12/05/2023,Mileage Payments,PS&S - General Claims,Staff Expenses Control,155178,2.08
"Department for Business, Energy and Industrial Strategy",The Coal Authority,15/05/2023,Mileage Payments,PS&S - General Claims,Staff Expenses Control,155178,7.31
"Department for Business, Energy and Industrial Strategy",The Coal Authority,15/05/2023,Mileage Payments,PS&S - General Claims,Staff Expenses Control,155178,6.65
"Department for Business, Energy and Industrial Strategy",The Coal Authority,16/05/2023,Mileage Payments,PS&S - General Claims,Staff Expenses Control,155178,79.2
"Department for Business, Energy and Industrial Strategy",The Coal Authority,17/05/2023,Mileage Payments,DIG - Management,Staff Expenses Control,155178,10.78
"Department for Business, Energy and Industrial Strategy",The Coal Authority,17/05/2023,Mileage Payments,DIG - Management,Staff Expenses Control,155178,10.1
"Department for Business, Energy and Industrial Strategy",The Coal Authority,17/05/2023,Mileage Payments,ENV - Salinity Programme,Staff Expenses Control,155178,6.63
"Department for Business, Energy and Industrial Strategy",The Coal Authority,17/05/2023,Mileage Payments,ENV - Salinity Programme,Staff Expenses Control,155178,6.63
"Department for Business, Energy and Industrial Strategy",The Coal Authority,17/05/2023,Mileage Payments,Innovation By-Product & Services Delivery,Staff Expenses Control,155178,63.08
"Department for Business, Energy and Industrial Strategy",The Coal Authority,17/05/2023,Mileage Payments,Innovation By-Product & Services Delivery,Staff Expenses Control,155178,62.82
"Department for Business, Energy and Industrial Strategy",The Coal Authority,17/05/2023,Mileage Payments,PS&S - General Claims,Staff Expenses Control,155178,7.31
"Department for Business, Energy and Industrial Strategy",The Coal Authority,17/05/2023,Mileage Payments,PS&S - General Claims,Staff Expenses Control,155178,6.65
"Department for Business, Energy and Industrial Strategy",The Coal Authority,17/05/2023,Mileage Payments,PS&S - General Claims,Staff Expenses Control,155178,2.06
"Department for Business, Energy and Industrial Strategy",The Coal Authority,17/05/2023,Mileage Payments,PS&S - General Claims,Staff Expenses Control,155178,2.07
"Department for Business, Energy and Industrial Strategy",The Coal Authority,18/05/2023,Mileage Payments,Innovation By-Product & Services Delivery,Staff Expenses Control,155178,20.15
"Department for Business, Energy and Industrial Strategy",The Coal Authority,18/05/2023,Mileage Payments,Innovation By-Product & Services Delivery,Staff Expenses Control,155178,20.12
"Department for Business, Energy and Industrial Strategy",The Coal Authority,18/05/2023,Mileage Payments,PS&S - General Claims,Staff Expenses Control,155178,8.13
"Department for Business, Energy and Industrial Strategy",The Coal Authority,18/05/2023,Mileage Payments,PS&S - General Claims,Staff Expenses Control,155178,7.38
"Department for Business, Energy and Industrial Strategy",The Coal Authority,03/05/2023,Mileage Payments,PS&S - General Claims,Staff Expenses Control,155553,41.74
"Department for Business, Energy and Industrial Strategy",The Coal Authority,03/05/2023,Mileage Payments,PS&S - General Claims,Staff Expenses Control,155553,3.07
"Department for Business, Energy and Industrial Strategy",The Coal Authority,03/05/2023,Mileage Payments,PS&S - General Claims,Staff Expenses Control,155553,46.09
"Department for Business, Energy and Industrial Strategy",The Coal Authority,04/05/2023,Mileage Payments,PS&S - General Claims,Staff Expenses Control,155553,18.62
"Department for Business, Energy and Industrial Strategy",The Coal Authority,04/05/2023,Mileage Payments,PS&S - General Claims,Staff Expenses Control,155553,18.66
"Department for Business, Energy and Industrial Strategy",The Coal Authority,05/05/2023,Mileage Payments,Heat & By-Product Innovation,Staff Expenses Control,155553,19.35
"Department for Business, Energy and Industrial Strategy",The Coal Authority,05/05/2023,Mileage Payments,Heat & By-Product Innovation,Staff Expenses Control,155553,19.35
"Department for Business, Energy and Industrial Strategy",The Coal Authority,09/05/2023,Mileage Payments,PS&S - General Claims,Staff Expenses Control,155553,42.97
"Department for Business, Energy and Industrial Strategy",The Coal Authority,09/05/2023,Mileage Payments,PS&S - General Claims,Staff Expenses Control,155553,43.1
"Department for Business, Energy and Industrial Strategy",The Coal Authority,10/05/2023,Mileage Payments,Heat & By-Product Innovation,Staff Expenses Control,155553,14.4
"Department for Business, Energy and Industrial Strategy",The Coal Authority,10/05/2023,Mileage Payments,PS&S - General Claims,Staff Expenses Control,155553,42.97
"Department for Business, Energy and Industrial Strategy",The Coal Authority,10/05/2023,Mileage Payments,PS&S - General Claims,Staff Expenses Control,155553,43.1
"Department for Business, Energy and Industrial Strategy",The Coal Authority,11/05/2023,Mileage Payments,PS&S - General Claims,Staff Expenses Control,155553,29.57
"Department for Business, Energy and Industrial Strategy",The Coal Authority,11/05/2023,Mileage Payments,PS&S - General Claims,Staff Expenses Control,155553,31.29
"Department for Business, Energy and Industrial Strategy",The Coal Authority,15/05/2023,Mileage Payments,Heat & By-Product Innovation,Staff Expenses Control,155553,14.4
"Department for Business, Energy and Industrial Strategy",The Coal Authority,17/05/2023,Mileage Payments,PS&S - General Claims,Staff Expenses Control,155553,15.72
"Department for Business, Energy and Industrial Strategy",The Coal Authority,17/05/2023,Mileage Payments,PS&S - General Claims,Staff Expenses Control,155553,15.71
"Department for Business, Energy and Industrial Strategy",The Coal Authority,17/05/2023,Mileage Payments,PS&S - General Claims,Staff Expenses Control,155553,47.33
"Department for Business, Energy and Industrial Strategy",The Coal Authority,17/05/2023,Mileage Payments,PS&S - General Claims,Staff Expenses Control,155553,1.48
"Department for Business, Energy and Industrial Strategy",The Coal Authority,17/05/2023,Mileage Payments,PS&S - General Claims,Staff Expenses Control,155553,46.99
"Department for Business, Energy and Industrial Strategy",The Coal Authority,18/05/2023,Mileage Payments,PS&S - General Claims,Staff Expenses Control,155553,18.62
"Department for Business, Energy and Industrial Strategy",The Coal Authority,18/05/2023,Mileage Payments,PS&S - General Claims,Staff Expenses Control,155553,18.66
"Department for Business, Energy and Industrial Strategy",The Coal Authority,19/05/2023,Mileage Payments,ENV - Technical,Staff Expenses Control,155553,46
"Department for Business, Energy and Industrial Strategy",The Coal Authority,20/05/2023,Mileage Payments,DEFRA LEP Funding,Staff Expenses Control,155553,9.58
"Department for Business, Energy and Industrial Strategy",The Coal Authority,20/05/2023,Mileage Payments,DEFRA LEP Funding,Staff Expenses Control,155553,9.71
"Department for Business, Energy and Industrial Strategy",The Coal Authority,22/05/2023,Mileage Payments,PS&S - General Claims,Staff Expenses Control,155553,13.5
"Department for Business, Energy and Industrial Strategy",The Coal Authority,23/05/2023,Mileage Payments,Innovation By-Product & Services Delivery,Staff Expenses Control,155553,9.02
"Department for Business, Energy and Industrial Strategy",The Coal Authority,23/05/2023,Mileage Payments,Innovation By-Product & Services Delivery,Staff Expenses Control,155553,9.01
"Department for Business, Energy and Industrial Strategy",The Coal Authority,23/05/2023,Mileage Payments,PS&S - General Claims,Staff Expenses Control,155553,16.05
"Department for Business, Energy and Industrial Strategy",The Coal Authority,23/05/2023,Mileage Payments,PS&S - General Claims,Staff Expenses Control,155553,9
"Department for Business, Energy and Industrial Strategy",The Coal Authority,23/05/2023,Mileage Payments,PS&S - General Claims,Staff Expenses Control,155553,24.03
"Department for Business, Energy and Industrial Strategy",The Coal Authority,24/05/2023,Mileage Payments,Procurement,Staff Expenses Control,155553,14.85
"Department for Business, Energy and Industrial Strategy",The Coal Authority,24/05/2023,Mileage Payments,Procurement,Staff Expenses Control,155553,14.85
"Department for Business, Energy and Industrial Strategy",The Coal Authority,28/04/2023,Mine Entry Inspection - Contractor Costs,PS&S - General Claims,Interlocks Surveys,153969,"8,408.88"
"Department for Business, Energy and Industrial Strategy",The Coal Authority,28/04/2023,Mine Entry Inspection - Contractor Costs,PS&S - General Claims,Interlocks Surveys,153969,0
"Department for Business, Energy and Industrial Strategy",The Coal Authority,11/05/2023,Mine Entry Inspection - Contractor Costs,PS&S - General Claims,Socotec UK Limited,154987,"8,760.32"
"Department for Business, Energy and Industrial Strategy",The Coal Authority,31/03/2023,Mine Entry Inspection - Contractor Costs,PS&S - General Claims,Interlocks Surveys,155039,"14,670.00"
"Department for Business, Energy and Industrial Strategy",The Coal Authority,11/04/2023,Minewater Chemicals - Operational Sites,ENV - Mine Water Operations,Severn Trent Serv Ops Uk Ltd,153822,"182,375.31"
"Department for Business, Energy and Industrial Strategy",The Coal Authority,11/04/2023,Minewater Chemicals - Operational Sites,ENV - Mine Water Operations,Severn Trent Serv Ops Uk Ltd,153822,0
"Department for Business, Energy and Industrial Strategy",The Coal Authority,11/04/2023,Minewater Chemicals - Operational Sites,ENV - Mine Water Operations,Severn Trent Serv Ops Uk Ltd,153822,"86,118.11"
"Department for Business, Energy and Industrial Strategy",The Coal Authority,11/04/2023,Minewater Chemicals - Operational Sites,ENV - Mine Water Operations,Severn Trent Serv Ops Uk Ltd,154723,"25,452.55"
"Department for Business, Energy and Industrial Strategy",The Coal Authority,04/05/2023,Minewater Chemicals - Operational Sites,DEFRA Metal Mine Programme,John F Hunt Regeneration Ltd,155288,"34,786.01"
"Department for Business, Energy and Industrial Strategy",The Coal Authority,11/04/2023,Minewater Contractor Add. Task Order - Ops Site,ENV - Mine Water Operations,Severn Trent Serv Ops Uk Ltd,153822,652.33
"Department for Business, Energy and Industrial Strategy",The Coal Authority,11/04/2023,Minewater Contractor Add. Task Order - Ops Site,ENV - Mine Water Operations,Severn Trent Serv Ops Uk Ltd,154723,194.43
"Department for Business, Energy and Industrial Strategy",The Coal Authority,11/04/2023,Minewater Contractor Add. Task Order - Ops Site,ENV - Mine Water Operations,Severn Trent Serv Ops Uk Ltd,154723,"2,365.91"
"Department for Business, Energy and Industrial Strategy",The Coal Authority,11/04/2023,Minewater Contractor Add. Task Order - Ops Site,ENV - Mine Water Operations,Severn Trent Serv Ops Uk Ltd,154723,212.94
"Department for Business, Energy and Industrial Strategy",The Coal Authority,11/04/2023,Minewater Contractor Add. Task Order - Ops Site,ENV - Mine Water Operations,Severn Trent Serv Ops Uk Ltd,154723,"21,333.39"
"Department for Business, Energy and Industrial Strategy",The Coal Authority,11/04/2023,Minewater Contractor Add. Task Order - Ops Site,ENV - Mine Water Operations,Severn Trent Serv Ops Uk Ltd,154723,"1,151.95"
"Department for Business, Energy and Industrial Strategy",The Coal Authority,11/04/2023,Minewater Contractor Add. Task Order - Ops Site,ENV - Mine Water Operations,Severn Trent Serv Ops Uk Ltd,154723,134.87
"Department for Business, Energy and Industrial Strategy",The Coal Authority,11/04/2023,Minewater Contractor Add. Task Order - Ops Site,ENV - Mine Water Operations,Severn Trent Serv Ops Uk Ltd,154723,543.05
"Department for Business, Energy and Industrial Strategy",The Coal Authority,11/04/2023,Minewater Contractor Add. Task Order - Ops Site,ENV - Mine Water Operations,Severn Trent Serv Ops Uk Ltd,154723,"1,010.68"
"Department for Business, Energy and Industrial Strategy",The Coal Authority,11/04/2023,Minewater Contractor Add. Task Order - Ops Site,ENV - Mine Water Operations,Severn Trent Serv Ops Uk Ltd,154723,"1,349.98"
"Department for Business, Energy and Industrial Strategy",The Coal Authority,11/04/2023,Minewater Contractor Add. Task Order - Ops Site,ENV - Mine Water Operations,Severn Trent Serv Ops Uk Ltd,154723,"5,357.41"
"Department for Business, Energy and Industrial Strategy",The Coal Authority,04/05/2023,Minewater Contractor Add. Task Order - Ops Site,DEFRA Metal Mine Programme,John F Hunt Regeneration Ltd,155288,"1,558.28"
"Department for Business, Energy and Industrial Strategy",The Coal Authority,11/05/2023,Minewater Contractor Add. Task Order - Ops Site,ENV - Mine Water Operations,Severn Trent Serv Ops Uk Ltd,155376,"1,103.15"
"Department for Business, Energy and Industrial Strategy",The Coal Authority,11/05/2023,Minewater Contractor Add. Task Order - Ops Site,ENV - Mine Water Operations,Severn Trent Serv Ops Uk Ltd,155376,400.71
"Department for Business, Energy and Industrial Strategy",The Coal Authority,11/05/2023,Minewater Contractor Add. Task Order - Ops Site,ENV - Mine Water Operations,Severn Trent Serv Ops Uk Ltd,155376,38.01
"Department for Business, Energy and Industrial Strategy",The Coal Authority,11/05/2023,Minewater Contractor Add. Task Order - Ops Site,ENV - Mine Water Operations,Severn Trent Serv Ops Uk Ltd,155376,"4,595.27"
"Department for Business, Energy and Industrial Strategy",The Coal Authority,11/05/2023,Minewater Contractor Add. Task Order - Ops Site,ENV - Salinity Programme,Severn Trent Serv Ops Uk Ltd,155376,313.73
"Department for Business, Energy and Industrial Strategy",The Coal Authority,11/05/2023,Minewater Contractor Add. Task Order - Ops Site,ENV - Salinity Programme,Severn Trent Serv Ops Uk Ltd,155376,245.09
"Department for Business, Energy and Industrial Strategy",The Coal Authority,28/04/2023,Minewater Contractor Maint. Visits - Ops Site,ENV - Mine Water Operations,National Coal Mining Museum,153718,"5,464.28"
"Department for Business, Energy and Industrial Strategy",The Coal Authority,28/04/2023,Minewater Contractor Maint. Visits - Ops Site,ENV - Mine Water Operations,National Coal Mining Museum,153718,"2,352.14"
"Department for Business, Energy and Industrial Strategy",The Coal Authority,11/04/2023,Minewater Contractor Maint. Visits - Ops Site,ENV - Mine Water Operations,Severn Trent Serv Ops Uk Ltd,153816,"8,237.66"
"Department for Business, Energy and Industrial Strategy",The Coal Authority,11/04/2023,Minewater Contractor Maint. Visits - Ops Site,ENV - Mine Water Operations,Severn Trent Serv Ops Uk Ltd,153822,"87,459.41"
"Department for Business, Energy and Industrial Strategy",The Coal Authority,02/03/2023,Minewater Contractor Maint. Visits - Ops Site,ENV - Mine Water Operations,Severn Trent Serv Ops Uk Ltd,153870,"61,241.00"
"Department for Business, Energy and Industrial Strategy",The Coal Authority,04/05/2023,Minewater Contractor Maint. Visits - Ops Site,DEFRA Metal Mine Programme,Tyne Rivers Trust,154402,"1,995.60"
"Department for Business, Energy and Industrial Strategy",The Coal Authority,11/04/2023,Minewater Contractor Maint. Visits - Ops Site,ENV - Mine Water Operations,Severn Trent Serv Ops Uk Ltd,154723,"41,027.23"
"Department for Business, Energy and Industrial Strategy",The Coal Authority,11/04/2023,Minewater Contractor Maint. Visits - Ops Site,ENV - Mine Water Operations,Severn Trent Serv Ops Uk Ltd,154723,"11,026.82"
"Department for Business, Energy and Industrial Strategy",The Coal Authority,11/04/2023,Minewater Contractor Maint. Visits - Ops Site,ENV - Mine Water Operations,Severn Trent Serv Ops Uk Ltd,154723,"2,556.72"
"Department for Business, Energy and Industrial Strategy",The Coal Authority,11/04/2023,Minewater Contractor Maint. Visits - Ops Site,ENV - Projects & Delivery,Severn Trent Serv Ops Uk Ltd,154723,"1,710.48"
"Department for Business, Energy and Industrial Strategy",The Coal Authority,04/05/2023,Minewater Contractor Maint. Visits - Ops Site,DEFRA Metal Mine Programme,Tyne Rivers Trust,154856,"2,186.40"
"Department for Business, Energy and Industrial Strategy",The Coal Authority,04/05/2023,Minewater Contractor Maint. Visits - Ops Site,DEFRA Metal Mine Programme,John F Hunt Regeneration Ltd,155288,"19,444.44"
"Department for Business, Energy and Industrial Strategy",The Coal Authority,01/05/2023,Minewater Contractor Maint. Visits - Ops Site,ENV - Mine Water Operations,National Coal Mining Museum,155290,"2,384.00"
"Department for Business, Energy and Industrial Strategy",The Coal Authority,01/05/2023,Minewater Contractor Maint. Visits - Ops Site,ENV - Mine Water Operations,National Coal Mining Museum,155291,"2,004.70"
"Department for Business, Energy and Industrial Strategy",The Coal Authority,11/05/2023,Minewater Contractor Maint. Visits - Ops Site,ENV - Mine Water Operations,Severn Trent Serv Ops Uk Ltd,155351,"396,905.04"
"Department for Business, Energy and Industrial Strategy",The Coal Authority,11/05/2023,Minewater Contractor Maint. Visits - Ops Site,ENV - Mine Water Operations,Severn Trent Serv Ops Uk Ltd,155352,"11,365.49"
"Department for Business, Energy and Industrial Strategy",The Coal Authority,11/05/2023,Minewater Contractor Maint. Visits - Ops Site,ENV - Mine Water Operations,Severn Trent Serv Ops Uk Ltd,155376,336.91
"Department for Business, Energy and Industrial Strategy",The Coal Authority,11/05/2023,Minewater Contractor Maint. Visits - Ops Site,ENV - Mine Water Operations,Severn Trent Serv Ops Uk Ltd,155376,"22,574.57"
"Department for Business, Energy and Industrial Strategy",The Coal Authority,11/05/2023,Minewater Contractor Maint. Visits - Ops Site,ENV - Projects & Delivery,Severn Trent Serv Ops Uk Ltd,155376,260.4
"Department for Business, Energy and Industrial Strategy",The Coal Authority,30/04/2023,Minewater Discharge Consents,DEFRA Metal Mine Programme,Wheal Jane Ltd,154024,"7,422.35"
"Department for Business, Energy and Industrial Strategy",The Coal Authority,25/04/2023,Minewater Discharge Consents,ENV - Mine Water Operations,Sepa,154330,"1,927.05"
"Department for Business, Energy and Industrial Strategy",The Coal Authority,25/04/2023,Minewater Discharge Consents,ENV - Mine Water Operations,Sepa,154331,"1,927.05"
"Department for Business, Energy and Industrial Strategy",The Coal Authority,25/04/2023,Minewater Discharge Consents,ENV - Mine Water Operations,Sepa,154332,"5,187.38"
"Department for Business, Energy and Industrial Strategy",The Coal Authority,25/04/2023,Minewater Discharge Consents,ENV - Mine Water Operations,Sepa,154333,"1,927.05"
"Department for Business, Energy and Industrial Strategy",The Coal Authority,25/04/2023,Minewater Discharge Consents,ENV - Mine Water Operations,Sepa,154334,"4,130.53"
"Department for Business, Energy and Industrial Strategy",The Coal Authority,25/04/2023,Minewater Discharge Consents,ENV - Mine Water Operations,Sepa,154335,"3,049.10"
"Department for Business, Energy and Industrial Strategy",The Coal Authority,25/04/2023,Minewater Discharge Consents,ENV - Mine Water Operations,Sepa,154336,"1,908.19"
"Department for Business, Energy and Industrial Strategy",The Coal Authority,25/04/2023,Minewater Discharge Consents,ENV - Mine Water Operations,Sepa,154337,"3,049.10"
"Department for Business, Energy and Industrial Strategy",The Coal Authority,25/04/2023,Minewater Discharge Consents,ENV - Mine Water Operations,Sepa,154338,"4,176.63"
"Department for Business, Energy and Industrial Strategy",The Coal Authority,25/04/2023,Minewater Discharge Consents,ENV - Mine Water Operations,Sepa,154339,"3,049.10"
"Department for Business, Energy and Industrial Strategy",The Coal Authority,25/04/2023,Minewater Discharge Consents,ENV - Mine Water Operations,Sepa,154343,"3,049.10"
"Department for Business, Energy and Industrial Strategy",The Coal Authority,25/04/2023,Minewater Discharge Consents,ENV - Mine Water Operations,Sepa,154344,"1,927.05"
"Department for Business, Energy and Industrial Strategy",The Coal Authority,27/04/2023,Minewater Discharge Consents,ENV - Projects & Delivery,Government Procurement Card,155629,50
"Department for Business, Energy and Industrial Strategy",The Coal Authority,28/03/2023,Minewater Feasibility / Scoping,ENV - Projects & Delivery,WSP UK Ltd,153927,"18,829.72"
"Department for Business, Energy and Industrial Strategy",The Coal Authority,23/04/2023,Minewater Feasibility / Scoping,NRW Metal Mine Programme,Ioan Lord,153935,200
"Department for Business, Energy and Industrial Strategy",The Coal Authority,25/04/2023,Minewater Feasibility / Scoping,ENV - Salinity Programme,Robertson Geologging Ltd,153940,"4,030.00"
"Department for Business, Energy and Industrial Strategy",The Coal Authority,04/05/2023,Minewater Feasibility / Scoping,NRW Metal Mine Programme,Jeremy Benn Associates Ltd,154353,"2,244.00"
"Department for Business, Energy and Industrial Strategy",The Coal Authority,04/05/2023,Minewater Feasibility / Scoping,NRW Metal Mine Programme,Jeremy Benn Associates Ltd,154353,993
"Department for Business, Energy and Industrial Strategy",The Coal Authority,22/04/2023,Minewater Feasibility / Scoping,ENV - Projects & Delivery,WSP UK Ltd,154740,"22,969.79"
"Department for Business, Energy and Industrial Strategy",The Coal Authority,28/04/2023,Minewater Feasibility / Scoping,NRW Metal Mine Programme,Byfield Environment and Ecology Ltd.,154747,"2,080.00"
"Department for Business, Energy and Industrial Strategy",The Coal Authority,19/05/2023,Minewater Feasibility / Scoping,DEFRA Metal Mine Programme,Mr N A Squibb,155275,"2,500.00"
"Department for Business, Energy and Industrial Strategy",The Coal Authority,11/05/2023,Minewater Feasibility / Scoping,ENV - Projects & Delivery,WSP UK Ltd,155683,"13,541.88"
"Department for Business, Energy and Industrial Strategy",The Coal Authority,11/05/2023,Minewater Feasibility / Scoping,ENV - Projects & Delivery,WSP UK Ltd,155684,"13,541.88"
"Department for Business, Energy and Industrial Strategy",The Coal Authority,30/05/2023,Minewater Feasibility / Scoping,ENV - Projects & Delivery,WSP UK Ltd,155685,"-13,541.88"
"Department for Business, Energy and Industrial Strategy",The Coal Authority,30/05/2023,Minewater Feasibility / Scoping,ENV - Salinity Programme,Robertson Geologging Ltd,155724,"3,550.00"
"Department for Business, Energy and Industrial Strategy",The Coal Authority,11/04/2023,Minewater Landscaping,ENV - Mine Water Operations,Severn Trent Serv Ops Uk Ltd,154723,"3,215.80"
"Department for Business, Energy and Industrial Strategy",The Coal Authority,25/04/2023,Minewater Liability & Monitoring Sites - Ad-hoc,ENV - Technical,Sepa,154340,"3,049.10"
"Department for Business, Energy and Industrial Strategy",The Coal Authority,11/04/2023,Minewater Liability & Monitoring Sites - Ad-hoc,ENV - Mine Water Operations,Severn Trent Serv Ops Uk Ltd,154723,129.1
"Department for Business, Energy and Industrial Strategy",The Coal Authority,11/04/2023,Minewater Liability & Monitoring Sites - Ad-hoc,ENV - Mine Water Operations,Severn Trent Serv Ops Uk Ltd,154723,485.97
"Department for Business, Energy and Industrial Strategy",The Coal Authority,11/05/2023,Minewater Liability & Monitoring Sites - Ad-hoc,ENV - Mine Water Operations,Severn Trent Serv Ops Uk Ltd,155376,"2,391.18"
"Department for Business, Energy and Industrial Strategy",The Coal Authority,14/03/2023,Minewater Liability & Monitoring Sites - Maint.,ENV - Technical,Detectronic Limited,153938,900
"Department for Business, Energy and Industrial Strategy",The Coal Authority,11/04/2023,Minewater Liability & Monitoring Sites - Maint.,ENV - Mine Water Operations,Severn Trent Serv Ops Uk Ltd,154723,"344,819.42"
"Department for Business, Energy and Industrial Strategy",The Coal Authority,11/04/2023,Minewater Liability & Monitoring Sites - Maint.,ENV - Mine Water Operations,Severn Trent Serv Ops Uk Ltd,154723,"42,773.24"
"Department for Business, Energy and Industrial Strategy",The Coal Authority,11/04/2023,Minewater Liability & Monitoring Sites - Maint.,ENV - Technical,Severn Trent Serv Ops Uk Ltd,154723,"3,199.88"
"Department for Business, Energy and Industrial Strategy",The Coal Authority,11/04/2023,Minewater Management Fees,ENV - Mine Water Operations,Severn Trent Serv Ops Uk Ltd,154723,138.55
"Department for Business, Energy and Industrial Strategy",The Coal Authority,04/05/2023,Minewater Management Fees,DEFRA Metal Mine Programme,John F Hunt Regeneration Ltd,155288,"48,984.63"
"Department for Business, Energy and Industrial Strategy",The Coal Authority,11/05/2023,Minewater Management Fees,ENV - Mine Water Operations,Severn Trent Serv Ops Uk Ltd,155376,87.65
"Department for Business, Energy and Industrial Strategy",The Coal Authority,30/04/2023,Minewater Monitoring & Flow Measurement,DEFRA Metal Mine Programme,Hydro-Logic Services Int Limited,153752,"1,167.00"
"Department for Business, Energy and Industrial Strategy",The Coal Authority,30/04/2023,Minewater Monitoring & Flow Measurement,DEFRA Metal Mine Programme,Hydro-Logic Services Int Limited,153752,450
"Department for Business, Energy and Industrial Strategy",The Coal Authority,17/02/2023,Minewater Monitoring & Flow Measurement,ENV - Technical,In-Situ Europe Ltd,154239,225
"Department for Business, Energy and Industrial Strategy",The Coal Authority,17/02/2023,Minewater Monitoring & Flow Measurement,ENV - Technical,In-Situ Europe Ltd,154239,30
"Department for Business, Energy and Industrial Strategy",The Coal Authority,17/02/2023,Minewater Monitoring & Flow Measurement,ENV - Technical,In-Situ Europe Ltd,154239,20
"Department for Business, Energy and Industrial Strategy",The Coal Authority,09/05/2023,Minewater Monitoring & Flow Measurement,NRW Metal Mine Programme,Socotec UK Limited,154260,-570
"Department for Business, Energy and Industrial Strategy",The Coal Authority,27/04/2023,Minewater Monitoring & Flow Measurement,NRW Metal Mine Programme,Socotec UK Limited,154262,"1,568.25"
"Department for Business, Energy and Industrial Strategy",The Coal Authority,27/04/2023,Minewater Monitoring & Flow Measurement,NRW Metal Mine Programme,Socotec UK Limited,154262,337.65
"Department for Business, Energy and Industrial Strategy",The Coal Authority,31/03/2023,Minewater Monitoring & Flow Measurement,NRW Metal Mine Programme,Socotec UK Limited,154276,"1,415.19"
"Department for Business, Energy and Industrial Strategy",The Coal Authority,24/04/2023,Minewater Monitoring & Flow Measurement,DEFRA Metal Mine Programme,Hydro-Logic Services Int Limited,154386,548
"Department for Business, Energy and Industrial Strategy",The Coal Authority,24/04/2023,Minewater Monitoring & Flow Measurement,DEFRA Metal Mine Programme,Hydro-Logic Services Int Limited,154388,548
"Department for Business, Energy and Industrial Strategy",The Coal Authority,30/04/2023,Minewater Monitoring & Flow Measurement,DEFRA Metal Mine Programme,Enitial Limited,154434,700
"Department for Business, Energy and Industrial Strategy",The Coal Authority,30/04/2023,Minewater Monitoring & Flow Measurement,DEFRA Metal Mine Programme,Enitial Limited,154475,350
"Department for Business, Energy and Industrial Strategy",The Coal Authority,11/04/2023,Minewater Monitoring & Flow Measurement,ENV - Mine Water Operations,Severn Trent Serv Ops Uk Ltd,154723,415.44
"Department for Business, Energy and Industrial Strategy",The Coal Authority,11/04/2023,Minewater Monitoring & Flow Measurement,ENV - Technical,Severn Trent Serv Ops Uk Ltd,154723,21.89
"Department for Business, Energy and Industrial Strategy",The Coal Authority,12/05/2023,Minewater Monitoring & Flow Measurement,DEFRA Metal Mine Programme,Hydro-Logic Services Int Limited,155302,"1,969.50"
"Department for Business, Energy and Industrial Strategy",The Coal Authority,11/05/2023,Minewater Monitoring & Flow Measurement,ENV - Technical,Severn Trent Serv Ops Uk Ltd,155376,"2,722.25"
"Department for Business, Energy and Industrial Strategy",The Coal Authority,26/05/2023,Minewater Monitoring & Flow Measurement,ENV - Projects & Delivery,Socotec UK Limited,155613,-30
"Department for Business, Energy and Industrial Strategy",The Coal Authority,31/03/2023,Minewater Monitoring & Flow Measurement,ENV - Projects & Delivery,Socotec UK Limited,155614,410.28
"Department for Business, Energy and Industrial Strategy",The Coal Authority,23/05/2023,Minewater Monitoring & Flow Measurement,NRW Metal Mine Programme,Hydro-Logic Services Int Limited,155621,"1,334.00"
"Department for Business, Energy and Industrial Strategy",The Coal Authority,23/05/2023,Minewater Monitoring & Flow Measurement,NRW Metal Mine Programme,Hydro-Logic Services Int Limited,155622,"1,075.00"
"Department for Business, Energy and Industrial Strategy",The Coal Authority,17/04/2023,Minewater Power Costs,ENV - Mine Water Operations,Edf Energy,153618,0
"Department for Business, Energy and Industrial Strategy",The Coal Authority,17/04/2023,Minewater Power Costs,ENV - Mine Water Operations,Edf Energy,153618,"2,938.04"
"Department for Business, Energy and Industrial Strategy",The Coal Authority,30/04/2023,Minewater Power Costs,DEFRA Metal Mine Programme,Wheal Jane Ltd,154328,"1,501.65"
"Department for Business, Energy and Industrial Strategy",The Coal Authority,05/05/2023,Minewater Power Costs,ENV - Mine Water Operations,Edf Energy,154817,0
"Department for Business, Energy and Industrial Strategy",The Coal Authority,05/05/2023,Minewater Power Costs,ENV - Mine Water Operations,Edf Energy,154817,"2,938.19"
"Department for Business, Energy and Industrial Strategy",The Coal Authority,31/10/2022,Minewater Power Costs,DEFRA Metal Mine Programme,Wheal Jane Ltd,155051,866.22
"Department for Business, Energy and Industrial Strategy",The Coal Authority,04/01/2023,Minewater Power Costs,DEFRA Metal Mine Programme,Wheal Jane Ltd,155053,"2,101.79"
"Department for Business, Energy and Industrial Strategy",The Coal Authority,31/03/2023,Minewater Power Costs,DEFRA Metal Mine Programme,Wheal Jane Ltd,155056,"10,520.72"
"Department for Business, Energy and Industrial Strategy",The Coal Authority,13/05/2023,Minewater Power Costs,ENV - Mine Water Operations,National Coal Mining Museum,155286,"14,045.34"
"Department for Business, Energy and Industrial Strategy",The Coal Authority,20/04/2023,Minewater Power Costs,ENV - Mine Water Operations,Neath Port Talbot County B C,155296,"42,487.50"
"Department for Business, Energy and Industrial Strategy",The Coal Authority,20/04/2023,Minewater Power Costs,ENV - Mine Water Operations,Neath Port Talbot County B C,155296,"3,646.06"
"Department for Business, Energy and Industrial Strategy",The Coal Authority,11/04/2023,Minewater Pump Overhauls,ENV - Mine Water Operations,Severn Trent Serv Ops Uk Ltd,154723,"2,036.56"
"Department for Business, Energy and Industrial Strategy",The Coal Authority,11/04/2023,Minewater Pump Overhauls,ENV - Mine Water Operations,Severn Trent Serv Ops Uk Ltd,154723,192.96
"Department for Business, Energy and Industrial Strategy",The Coal Authority,11/04/2023,Minewater Pump Overhauls,ENV - Mine Water Operations,Severn Trent Serv Ops Uk Ltd,154723,"5,736.18"
"Department for Business, Energy and Industrial Strategy",The Coal Authority,11/05/2023,Minewater Pump Overhauls,ENV - Mine Water Operations,Severn Trent Serv Ops Uk Ltd,155376,83.55
"Department for Business, Energy and Industrial Strategy",The Coal Authority,11/05/2023,Minewater Pump Overhauls,ENV - Mine Water Operations,Severn Trent Serv Ops Uk Ltd,155376,41.77
"Department for Business, Energy and Industrial Strategy",The Coal Authority,11/04/2023,Minewater Pumping Tests,ENV - Projects & Delivery,Severn Trent Serv Ops Uk Ltd,153822,181.14
"Department for Business, Energy and Industrial Strategy",The Coal Authority,11/04/2023,Minewater Pumping Tests,ENV - Projects & Delivery,Severn Trent Serv Ops Uk Ltd,154723,222.29
"Department for Business, Energy and Industrial Strategy",The Coal Authority,11/04/2023,Minewater Pumping Tests,ENV - Projects & Delivery,Severn Trent Serv Ops Uk Ltd,154723,"3,822.09"
"Department for Business, Energy and Industrial Strategy",The Coal Authority,11/04/2023,Minewater Pumping Tests,ENV - Projects & Delivery,Severn Trent Serv Ops Uk Ltd,154723,"5,532.90"
"Department for Business, Energy and Industrial Strategy",The Coal Authority,11/04/2023,Minewater Pumping Tests,ENV - Projects & Delivery,Severn Trent Serv Ops Uk Ltd,154723,192.78
"Department for Business, Energy and Industrial Strategy",The Coal Authority,11/04/2023,Minewater Pumping Tests,ENV - Projects & Delivery,Severn Trent Serv Ops Uk Ltd,154723,"20,081.77"
"Department for Business, Energy and Industrial Strategy",The Coal Authority,11/04/2023,Minewater Pumping Tests,ENV - Projects & Delivery,Severn Trent Serv Ops Uk Ltd,154723,"1,222.74"
"Department for Business, Energy and Industrial Strategy",The Coal Authority,11/04/2023,Minewater Pumping Tests,ENV - Projects & Delivery,Severn Trent Serv Ops Uk Ltd,154723,131.34
"Department for Business, Energy and Industrial Strategy",The Coal Authority,11/04/2023,Minewater Pumping Tests,ENV - Salinity Programme,Severn Trent Serv Ops Uk Ltd,154723,"4,926.81"
"Department for Business, Energy and Industrial Strategy",The Coal Authority,11/04/2023,Minewater Pumping Tests,ENV - Salinity Programme,Severn Trent Serv Ops Uk Ltd,154723,33.83
"Department for Business, Energy and Industrial Strategy",The Coal Authority,11/04/2023,Minewater Pumping Tests,ENV - Salinity Programme,Severn Trent Serv Ops Uk Ltd,154723,848.24
"Department for Business, Energy and Industrial Strategy",The Coal Authority,11/05/2023,Minewater Pumping Tests,ENV - Projects & Delivery,Severn Trent Serv Ops Uk Ltd,155376,829.42
"Department for Business, Energy and Industrial Strategy",The Coal Authority,11/05/2023,Minewater Pumping Tests,ENV - Projects & Delivery,Severn Trent Serv Ops Uk Ltd,155376,"22,572.46"
"Department for Business, Energy and Industrial Strategy",The Coal Authority,11/05/2023,Minewater Pumping Tests,ENV - Projects & Delivery,Severn Trent Serv Ops Uk Ltd,155376,"22,555.66"
"Department for Business, Energy and Industrial Strategy",The Coal Authority,11/05/2023,Minewater Pumping Tests,ENV - Projects & Delivery,Severn Trent Serv Ops Uk Ltd,155376,251.51
"Department for Business, Energy and Industrial Strategy",The Coal Authority,11/05/2023,Minewater Pumping Tests,ENV - Projects & Delivery,Severn Trent Serv Ops Uk Ltd,155376,"7,999.30"
"Department for Business, Energy and Industrial Strategy",The Coal Authority,11/05/2023,Minewater Pumping Tests,ENV - Projects & Delivery,Severn Trent Serv Ops Uk Ltd,155376,"1,951.30"
"Department for Business, Energy and Industrial Strategy",The Coal Authority,11/05/2023,Minewater Pumping Tests,ENV - Projects & Delivery,Severn Trent Serv Ops Uk Ltd,155376,133.03
"Department for Business, Energy and Industrial Strategy",The Coal Authority,11/05/2023,Minewater Pumping Tests,ENV - Projects & Delivery,Severn Trent Serv Ops Uk Ltd,155376,"3,247.50"
"Department for Business, Energy and Industrial Strategy",The Coal Authority,11/05/2023,Minewater Pumping Tests,ENV - Salinity Programme,Severn Trent Serv Ops Uk Ltd,155376,"10,832.09"
"Department for Business, Energy and Industrial Strategy",The Coal Authority,03/04/2023,Minewater Rates,ENV - Mine Water Operations,West Lothian Council,153619,"46,820.38"
"Department for Business, Energy and Industrial Strategy",The Coal Authority,03/04/2023,Minewater Rates,ENV - Mine Water Operations,West Lothian Council,153621,"36,025.50"
"Department for Business, Energy and Industrial Strategy",The Coal Authority,29/03/2023,Minewater Rates,ENV - Mine Water Operations,Carmarthenshire County Cl,153682,"7,040.60"
"Department for Business, Energy and Industrial Strategy",The Coal Authority,29/03/2023,Minewater Rates,ENV - Mine Water Operations,Carmarthenshire County Cl,153683,"39,405.42"
"Department for Business, Energy and Industrial Strategy",The Coal Authority,28/04/2023,Minewater Rates,ENV - Mine Water Operations,Doncaster East I D B,154077,52.82
"Department for Business, Energy and Industrial Strategy",The Coal Authority,10/03/2023,Minewater Rates,ENV - Mine Water Operations,Rossendale Borough Council,154078,"6,861.25"
"Department for Business, Energy and Industrial Strategy",The Coal Authority,10/03/2023,Minewater Rates,ENV - Mine Water Operations,Newcastle Under Lyme Bor Counc,154079,"7,597.28"
"Department for Business, Energy and Industrial Strategy",The Coal Authority,07/03/2023,Minewater Rates,ENV - Mine Water Operations,Tameside MBC,154080,"4,453.57"
"Department for Business, Energy and Industrial Strategy",The Coal Authority,06/03/2023,Minewater Rates,ENV - Mine Water Operations,Gateshead Council,154081,"5,239.50"
"Department for Business, Energy and Industrial Strategy",The Coal Authority,02/03/2023,Minewater Rates,ENV - Mine Water Operations,Calderdale Metropolitan B C,154082,"4,341.30"
"Department for Business, Energy and Industrial Strategy",The Coal Authority,27/02/2023,Minewater Rates,ENV - Mine Water Operations,Burnley Borough Council,154083,"4,558.37"
"Department for Business, Energy and Industrial Strategy",The Coal Authority,27/02/2023,Minewater Rates,ENV - Mine Water Operations,Burnley Borough Council,154084,536.43
"Department for Business, Energy and Industrial Strategy",The Coal Authority,10/03/2023,Minewater Rates,ENV - Mine Water Operations,Amber Valley Borough Council,154305,"33,906.37"
"Department for Business, Energy and Industrial Strategy",The Coal Authority,02/03/2023,Minewater Rates,ENV - Mine Water Operations,Chesterfield Borough Council,154306,"7,859.25"
"Department for Business, Energy and Industrial Strategy",The Coal Authority,06/03/2023,Minewater Rates,ENV - Mine Water Operations,Durham County Council,154307,"3,248.49"
"Department for Business, Energy and Industrial Strategy",The Coal Authority,06/03/2023,Minewater Rates,ENV - Mine Water Operations,Durham County Council,154308,"1,309.88"
"Department for Business, Energy and Industrial Strategy",The Coal Authority,06/03/2023,Minewater Rates,ENV - Mine Water Operations,Durham County Council,154309,"2,744.50"
"Department for Business, Energy and Industrial Strategy",The Coal Authority,06/03/2023,Minewater Rates,ENV - Mine Water Operations,Durham County Council,154310,"3,043.90"
"Department for Business, Energy and Industrial Strategy",The Coal Authority,06/03/2023,Minewater Rates,ENV - Mine Water Operations,Durham County Council,154311,"11,102.75"
"Department for Business, Energy and Industrial Strategy",The Coal Authority,06/03/2023,Minewater Rates,ENV - Mine Water Operations,Durham County Council,154312,"5,364.25"
"Department for Business, Energy and Industrial Strategy",The Coal Authority,06/03/2023,Minewater Rates,ENV - Mine Water Operations,Durham County Council,154313,"2,944.10"
"Department for Business, Energy and Industrial Strategy",The Coal Authority,28/02/2023,Minewater Rates,ENV - Mine Water Operations,Barnsley Metropolitan Bor. Cou,154452,"24,950.00"
"Department for Business, Energy and Industrial Strategy",The Coal Authority,28/02/2023,Minewater Rates,ENV - Mine Water Operations,Barnsley Metropolitan Bor. Cou,154452,28
"Department for Business, Energy and Industrial Strategy",The Coal Authority,28/02/2023,Minewater Rates,ENV - Mine Water Operations,Barnsley Metropolitan Bor. Cou,154453,28
"Department for Business, Energy and Industrial Strategy",The Coal Authority,28/02/2023,Minewater Rates,ENV - Mine Water Operations,Barnsley Metropolitan Bor. Cou,154453,"7,859.25"
"Department for Business, Energy and Industrial Strategy",The Coal Authority,28/02/2023,Minewater Rates,ENV - Mine Water Operations,Barnsley Metropolitan Bor. Cou,154501,"2,619.75"
"Department for Business, Energy and Industrial Strategy",The Coal Authority,28/02/2023,Minewater Rates,ENV - Mine Water Operations,Barnsley Metropolitan Bor. Cou,154501,28
"Department for Business, Energy and Industrial Strategy",The Coal Authority,28/02/2023,Minewater Rates,ENV - Mine Water Operations,Barnsley Metropolitan Bor. Cou,154562,"16,716.50"
"Department for Business, Energy and Industrial Strategy",The Coal Authority,03/05/2023,Minewater Rates,ENV - Mine Water Operations,City And County Of Swansea,154779,"2,057.88"
"Department for Business, Energy and Industrial Strategy",The Coal Authority,06/05/2023,Minewater Rates,ENV - Mine Water Operations,Midlothian Council,155287,"32,046.30"
"Department for Business, Energy and Industrial Strategy",The Coal Authority,01/03/2023,Minewater Rates,ENV - Mine Water Operations,Midlothian Council,155552,"4,690.96"
"Department for Business, Energy and Industrial Strategy",The Coal Authority,18/05/2023,Minewater Rates,ENV - Mine Water Operations,Midlothian Council,155565,"1,250.85"
"Department for Business, Energy and Industrial Strategy",The Coal Authority,11/04/2023,Minewater Remediation,ENV - Mine Water Operations,Severn Trent Serv Ops Uk Ltd,153822,"7,964.83"
"Department for Business, Energy and Industrial Strategy",The Coal Authority,11/04/2023,Minewater Remediation,ENV - Mine Water Operations,Severn Trent Serv Ops Uk Ltd,154723,"9,478.93"
"Department for Business, Energy and Industrial Strategy",The Coal Authority,11/04/2023,Minewater Remediation,ENV - Mine Water Operations,Severn Trent Serv Ops Uk Ltd,154723,344.55
"Department for Business, Energy and Industrial Strategy",The Coal Authority,11/04/2023,Minewater Remediation,ENV - Mine Water Operations,Severn Trent Serv Ops Uk Ltd,154723,379.06
"Department for Business, Energy and Industrial Strategy",The Coal Authority,11/04/2023,Minewater Remediation,ENV - Mine Water Operations,Severn Trent Serv Ops Uk Ltd,154723,296.49
"Department for Business, Energy and Industrial Strategy",The Coal Authority,11/04/2023,Minewater Remediation,ENV - Mine Water Operations,Severn Trent Serv Ops Uk Ltd,154723,"4,422.90"
"Department for Business, Energy and Industrial Strategy",The Coal Authority,11/04/2023,Minewater Remediation,ENV - Mine Water Operations,Severn Trent Serv Ops Uk Ltd,154723,"7,823.43"
"Department for Business, Energy and Industrial Strategy",The Coal Authority,11/05/2023,Minewater Remediation,ENV - Mine Water Operations,Severn Trent Serv Ops Uk Ltd,155376,273.06
"Department for Business, Energy and Industrial Strategy",The Coal Authority,11/05/2023,Minewater Remediation,ENV - Mine Water Operations,Severn Trent Serv Ops Uk Ltd,155376,"2,905.58"
"Department for Business, Energy and Industrial Strategy",The Coal Authority,11/05/2023,Minewater Remediation,ENV - Mine Water Operations,Severn Trent Serv Ops Uk Ltd,155376,"2,471.57"
"Department for Business, Energy and Industrial Strategy",The Coal Authority,11/05/2023,Minewater Remediation,ENV - Mine Water Operations,Severn Trent Serv Ops Uk Ltd,155376,673.02
"Department for Business, Energy and Industrial Strategy",The Coal Authority,01/05/2023,Minewater Rent,ENV - Mine Water Operations,Milton Peterborough Estates,153856,350
"Department for Business, Energy and Industrial Strategy",The Coal Authority,10/05/2023,Minewater Rent,ENV - Mine Water Operations,Crown Estate,154403,"1,365.00"
"Department for Business, Energy and Industrial Strategy",The Coal Authority,10/05/2023,Minewater Rent,ENV - Mine Water Operations,Rental Payment,154418,50
"Department for Business, Energy and Industrial Strategy",The Coal Authority,10/05/2023,Minewater Rent,ENV - Mine Water Operations,Rental Payment,154419,200
"Department for Business, Energy and Industrial Strategy",The Coal Authority,10/05/2023,Minewater Rent,ENV - Mine Water Operations,Rental Payment,154420,"5,188.54"
"Department for Business, Energy and Industrial Strategy",The Coal Authority,10/05/2023,Minewater Rent,ENV - Projects & Delivery,Rental Payment,154421,"1,000.00"
"Department for Business, Energy and Industrial Strategy",The Coal Authority,10/05/2023,Minewater Rent,ENV - Mine Water Operations,Rental Payment,154422,100
"Department for Business, Energy and Industrial Strategy",The Coal Authority,24/04/2023,Minewater Rent,ENV - Mine Water Operations,The National Trust,154525,165.13
"Department for Business, Energy and Industrial Strategy",The Coal Authority,12/05/2023,Minewater Rent,ENV - Mine Water Operations,Network Rail,154637,415
"Department for Business, Energy and Industrial Strategy",The Coal Authority,28/05/2023,Minewater Rent,ENV - Mine Water Operations,Douglas & Angus Estates,155129,"3,113.00"
"Department for Business, Energy and Industrial Strategy",The Coal Authority,28/04/2023,Minewater Sampling - 'Non-operational' Sites,ENV - Projects & Delivery,Staffordshire County Council,153810,600
"Department for Business, Energy and Industrial Strategy",The Coal Authority,09/05/2023,Minewater Sampling - 'Non-operational' Sites,ENV - Projects & Delivery,Staffordshire County Council,154404,200
"Department for Business, Energy and Industrial Strategy",The Coal Authority,30/04/2023,Minewater Sampling - 'Non-operational' Sites,DEFRA Metal Mine Programme,Enitial Limited,154432,800
"Department for Business, Energy and Industrial Strategy",The Coal Authority,30/04/2023,Minewater Sampling - 'Non-operational' Sites,DEFRA Metal Mine Programme,Enitial Limited,154433,800
"Department for Business, Energy and Industrial Strategy",The Coal Authority,27/04/2023,Minewater Sampling - 'Non-operational' Sites,DEFRA Metal Mine Programme,Socotec UK Limited,154489,177.86
"Department for Business, Energy and Industrial Strategy",The Coal Authority,11/04/2023,Minewater Sampling - 'Non-operational' Sites,ENV - Technical,Severn Trent Serv Ops Uk Ltd,154723,93.84
"Department for Business, Energy and Industrial Strategy",The Coal Authority,27/04/2023,Minewater Sampling - 'Non-operational' Sites,DEFRA Metal Mine Programme,Socotec UK Limited,155049,5
"Department for Business, Energy and Industrial Strategy",The Coal Authority,27/04/2023,Minewater Sampling - 'Non-operational' Sites,DEFRA Metal Mine Programme,Socotec UK Limited,155049,57.34
"Department for Business, Energy and Industrial Strategy",The Coal Authority,27/04/2023,Minewater Sampling - 'Non-operational' Sites,DEFRA Metal Mine Programme,Socotec UK Limited,155049,12.1
"Department for Business, Energy and Industrial Strategy",The Coal Authority,27/04/2023,Minewater Sampling - 'Non-operational' Sites,DEFRA Metal Mine Programme,Socotec UK Limited,155049,57.34
"Department for Business, Energy and Industrial Strategy",The Coal Authority,27/04/2023,Minewater Sampling - 'Non-operational' Sites,DEFRA Metal Mine Programme,Socotec UK Limited,155049,5
"Department for Business, Energy and Industrial Strategy",The Coal Authority,27/04/2023,Minewater Sampling - 'Non-operational' Sites,DEFRA Metal Mine Programme,Socotec UK Limited,155049,12.1
"Department for Business, Energy and Industrial Strategy",The Coal Authority,27/04/2023,Minewater Sampling - 'Non-operational' Sites,DEFRA Metal Mine Programme,Socotec UK Limited,155049,10
"Department for Business, Energy and Industrial Strategy",The Coal Authority,27/04/2023,Minewater Sampling - 'Non-operational' Sites,DEFRA Metal Mine Programme,Socotec UK Limited,155049,10
"Department for Business, Energy and Industrial Strategy",The Coal Authority,22/05/2023,Minewater Sampling - 'Non-operational' Sites,DEFRA Metal Mine Programme,Socotec UK Limited,155561,177.86
"Department for Business, Energy and Industrial Strategy",The Coal Authority,12/05/2023,Minewater Sampling - 'Non-operational' Sites,DEFRA Metal Mine Programme,Socotec UK Limited,155562,157.86
"Department for Business, Energy and Industrial Strategy",The Coal Authority,10/05/2023,Minewater Sampling - 'Non-operational' Sites,DEFRA Metal Mine Programme,Socotec UK Limited,155563,177.86
"Department for Business, Energy and Industrial Strategy",The Coal Authority,31/05/2023,Minewater Sampling - 'Non-operational' Sites,DEFRA LEP Funding,Ramboll Uk Ltd,155754,"1,500.00"
"Department for Business, Energy and Industrial Strategy",The Coal Authority,31/05/2023,Minewater Sampling - 'Non-operational' Sites,DEFRA LEP Funding,Ramboll Uk Ltd,155754,100
"Department for Business, Energy and Industrial Strategy",The Coal Authority,31/05/2023,Minewater Sampling - 'Non-operational' Sites,DEFRA LEP Funding,Ramboll Uk Ltd,155754,"1,750.00"
"Department for Business, Energy and Industrial Strategy",The Coal Authority,31/05/2023,Minewater Sampling - 'Non-operational' Sites,DEFRA LEP Funding,Ramboll Uk Ltd,155754,350
"Department for Business, Energy and Industrial Strategy",The Coal Authority,17/04/2023,Minewater Sampling - Operational Sites,ENV - Mine Water Operations,Socotec UK Limited,153566,507.72
"Department for Business, Energy and Industrial Strategy",The Coal Authority,11/04/2023,Minewater Sampling - Operational Sites,ENV - Mine Water Operations,Severn Trent Serv Ops Uk Ltd,154723,84.44
"Department for Business, Energy and Industrial Strategy",The Coal Authority,04/05/2023,Minewater Sampling - Operational Sites,DEFRA Metal Mine Programme,John F Hunt Regeneration Ltd,155288,"1,580.18"
"Department for Business, Energy and Industrial Strategy",The Coal Authority,04/05/2023,Minewater Sampling - Operational Sites,DEFRA Metal Mine Programme,John F Hunt Regeneration Ltd,155288,0.01
"Department for Business, Energy and Industrial Strategy",The Coal Authority,11/05/2023,Minewater Sampling - Operational Sites,ENV - Mine Water Operations,Severn Trent Serv Ops Uk Ltd,155376,21.61
"Department for Business, Energy and Industrial Strategy",The Coal Authority,22/05/2023,Minewater Sampling - Operational Sites,ENV - Mine Water Operations,Socotec UK Limited,155705,87.72
"Department for Business, Energy and Industrial Strategy",The Coal Authority,26/05/2023,Minewater Sampling - Operational Sites,ENV - Mine Water Operations,Socotec UK Limited,155706,420
"Department for Business, Energy and Industrial Strategy",The Coal Authority,20/02/2023,Minewater Site Surveys,NRW Metal Mine Programme,AECOM Ltd,153926,"2,772.70"
"Department for Business, Energy and Industrial Strategy",The Coal Authority,28/04/2023,Minewater Site Surveys,NRW Metal Mine Programme,Hydro-Logic Services Int Limited,153952,"1,022.50"
"Department for Business, Energy and Industrial Strategy",The Coal Authority,30/04/2023,Minewater Site Surveys,NRW Metal Mine Programme,Grasshopper Communications Ltd,154561,600
"Department for Business, Energy and Industrial Strategy",The Coal Authority,11/05/2023,Minewater Site Surveys,NRW Metal Mine Programme,Gwynedd Archaeological Trust,154855,903.75
"Department for Business, Energy and Industrial Strategy",The Coal Authority,11/05/2023,Minewater Site Surveys,ENV - Salinity Programme,Severn Trent Serv Ops Uk Ltd,155376,397.69
"Department for Business, Energy and Industrial Strategy",The Coal Authority,23/05/2023,Minewater Site Surveys,NRW Metal Mine Programme,Hydro-Logic Services Int Limited,155538,975
"Department for Business, Energy and Industrial Strategy",The Coal Authority,24/05/2023,Minewater Site Surveys,ENV - Salinity Programme,European Geophysical Services,155738,"3,003.00"
"Department for Business, Energy and Industrial Strategy",The Coal Authority,11/04/2023,Minewater Sludge Disposal,DEFRA Metal Mine Programme,Severn Trent Serv Ops Uk Ltd,154697,839.07
"Department for Business, Energy and Industrial Strategy",The Coal Authority,02/05/2023,Minewater Sludge Disposal,DEFRA Metal Mine Programme,Wheal Jane Ltd,154713,"44,538.66"
"Department for Business, Energy and Industrial Strategy",The Coal Authority,11/04/2023,Minewater Sludge Disposal,ENV - Mine Water Operations,Severn Trent Serv Ops Uk Ltd,154723,404.04
"Department for Business, Energy and Industrial Strategy",The Coal Authority,11/04/2023,Minewater Sludge Disposal,ENV - Mine Water Operations,Severn Trent Serv Ops Uk Ltd,154723,8.95
"Department for Business, Energy and Industrial Strategy",The Coal Authority,11/04/2023,Minewater Sludge Disposal,ENV - Mine Water Operations,Severn Trent Serv Ops Uk Ltd,154723,"16,613.10"
"Department for Business, Energy and Industrial Strategy",The Coal Authority,23/03/2023,Minewater Sludge Disposal,DEFRA Metal Mine Programme,Wheal Jane Ltd,155050,"44,538.66"
"Department for Business, Energy and Industrial Strategy",The Coal Authority,27/01/2023,Minewater Sludge Disposal,DEFRA Metal Mine Programme,Wheal Jane Ltd,155052,"37,333.60"
"Department for Business, Energy and Industrial Strategy",The Coal Authority,11/05/2023,Minewater Sludge Disposal,ENV - Mine Water Operations,Severn Trent Serv Ops Uk Ltd,155376,339.15
"Department for Business, Energy and Industrial Strategy",The Coal Authority,11/05/2023,Minewater Sludge Disposal,ENV - Mine Water Operations,Severn Trent Serv Ops Uk Ltd,155376,"2,589.63"
"Department for Business, Energy and Industrial Strategy",The Coal Authority,11/05/2023,Minewater Sludge Disposal,ENV - Mine Water Operations,Severn Trent Serv Ops Uk Ltd,155376,283.65
"Department for Business, Energy and Industrial Strategy",The Coal Authority,11/05/2023,Minewater Sludge Disposal,ENV - Mine Water Operations,Severn Trent Serv Ops Uk Ltd,155376,537.59
"Department for Business, Energy and Industrial Strategy",The Coal Authority,24/05/2023,Minewater Sludge Disposal,ENV - Mine Water Operations,Severn Trent Serv Ops Uk Ltd,155377,-283.65
"Department for Business, Energy and Industrial Strategy",The Coal Authority,15/03/2023,Minewater Telecoms & Telemetry,ENV - Mine Water Operations,Vodafone Limited (Corporate),153886,217.96
"Department for Business, Energy and Industrial Strategy",The Coal Authority,17/04/2023,Minewater Telecoms & Telemetry,ENV - Mine Water Operations,Vodafone Limited (Corporate),153891,0
"Department for Business, Energy and Industrial Strategy",The Coal Authority,17/04/2023,Minewater Telecoms & Telemetry,ENV - Mine Water Operations,Vodafone Limited (Corporate),153891,0.14
"Department for Business, Energy and Industrial Strategy",The Coal Authority,03/05/2023,Minewater Telecoms & Telemetry,ENV - Mine Water Operations,KORE Wireless UK PLC,154000,35
"Department for Business, Energy and Industrial Strategy",The Coal Authority,10/05/2023,Minewater Telecoms & Telemetry,ENV - Mine Water Operations,KORE Wireless UK PLC,154681,15
"Department for Business, Energy and Industrial Strategy",The Coal Authority,11/04/2023,Minewater Telecoms & Telemetry,ENV - Mine Water Operations,Severn Trent Serv Ops Uk Ltd,154723,"3,730.33"
"Department for Business, Energy and Industrial Strategy",The Coal Authority,11/04/2023,Minewater Telecoms & Telemetry,ENV - Mine Water Operations,Severn Trent Serv Ops Uk Ltd,154723,"78,503.50"
"Department for Business, Energy and Industrial Strategy",The Coal Authority,11/04/2023,Minewater Telecoms & Telemetry,ENV - Mine Water Operations,Severn Trent Serv Ops Uk Ltd,154723,"13,609.85"
"Department for Business, Energy and Industrial Strategy",The Coal Authority,11/04/2023,Minewater Telecoms & Telemetry,ENV - Mine Water Operations,Severn Trent Serv Ops Uk Ltd,154723,"8,627.53"
"Department for Business, Energy and Industrial Strategy",The Coal Authority,11/05/2023,Minewater Telecoms & Telemetry,ENV - Mine Water Operations,Severn Trent Serv Ops Uk Ltd,155376,673.82
"Department for Business, Energy and Industrial Strategy",The Coal Authority,11/05/2023,Minewater Telecoms & Telemetry,ENV - Mine Water Operations,Severn Trent Serv Ops Uk Ltd,155376,"21,434.78"
"Department for Business, Energy and Industrial Strategy",The Coal Authority,16/03/2023,Minewater Water Charges,ENV - Mine Water Operations,Water Plus Limited,153617,101.39
"Department for Business, Energy and Industrial Strategy",The Coal Authority,18/04/2023,Minewater Water Charges,ENV - Mine Water Operations,Wave Utilities,154314,"8,354.44"
"Department for Business, Energy and Industrial Strategy",The Coal Authority,18/04/2023,Minewater Water Charges,ENV - Mine Water Operations,Wave Utilities,154314,0
"Department for Business, Energy and Industrial Strategy",The Coal Authority,20/04/2023,Minewater Water Charges,ENV - Mine Water Operations,Business Stream,154327,114.05
"Department for Business, Energy and Industrial Strategy",The Coal Authority,31/03/2023,Minewater Water Charges,ENV - Mine Water Operations,Dwr Cymru Welsh Water,154428,15.2
"Department for Business, Energy and Industrial Strategy",The Coal Authority,31/03/2023,Minewater Water Charges,ENV - Mine Water Operations,Dwr Cymru Welsh Water,154428,802.86
"Department for Business, Energy and Industrial Strategy",The Coal Authority,14/05/2023,Minewater Water Charges,ENV - Mine Water Operations,Wave Utilities,155289,0
"Department for Business, Energy and Industrial Strategy",The Coal Authority,14/05/2023,Minewater Water Charges,ENV - Mine Water Operations,Wave Utilities,155289,24.85
"Department for Business, Energy and Industrial Strategy",The Coal Authority,01/04/2023,Mobiles Phones - Call Charges,DIG - Service & Assurance,Daisy Corporate Services Trading Services Ltd,154672,42.42
"Department for Business, Energy and Industrial Strategy",The Coal Authority,03/04/2023,Mobiles Phones - Call Charges,ENV - Mine Water Operations,Government Procurement Card,155629,0.66
"Department for Business, Energy and Industrial Strategy",The Coal Authority,01/04/2023,Mobiles Phones - Line Rent,DIG - Service & Assurance,Daisy Corporate Services Trading Services Ltd,154672,"2,196.03"
"Department for Business, Energy and Industrial Strategy",The Coal Authority,01/04/2023,Mobiles Phones - Line Rent,DIG - Service & Assurance,Daisy Corporate Services Trading Services Ltd,154672,0
"Department for Business, Energy and Industrial Strategy",The Coal Authority,02/05/2023,Mobiles Phones - Line Rent,ENV - Mine Water Operations,Government Procurement Card,155629,0.66
"Department for Business, Energy and Industrial Strategy",The Coal Authority,31/03/2023,Networking / Cabling,DIG - Technical Delivery,WCL UK Ltd (trading as Everything ICT),154215,990
"Department for Business, Energy and Industrial Strategy",The Coal Authority,31/03/2023,Networking / Cabling,DIG - Technical Delivery,WCL UK Ltd (trading as Everything ICT),154215,660
"Department for Business, Energy and Industrial Strategy",The Coal Authority,31/03/2023,Networking / Cabling,DIG - Technical Delivery,WCL UK Ltd (trading as Everything ICT),154215,"2,200.00"
"Department for Business, Energy and Industrial Strategy",The Coal Authority,18/05/2023,Office Furniture,Facilities,Wagstaff,155189,52
"Department for Business, Energy and Industrial Strategy",The Coal Authority,10/05/2023,Office Furniture,Facilities,Gresham Office Furniture,155238,"1,038.00"
"Department for Business, Energy and Industrial Strategy",The Coal Authority,06/04/2023,Office Furniture,"Health, Safety & Wellbeing",Government Procurement Card,155629,59.4
"Department for Business, Energy and Industrial Strategy",The Coal Authority,18/04/2023,Office Furniture,"Health, Safety & Wellbeing",Government Procurement Card,155629,141.66
"Department for Business, Energy and Industrial Strategy",The Coal Authority,19/04/2023,Office Furniture,"Health, Safety & Wellbeing",Government Procurement Card,155629,18.25
"Department for Business, Energy and Industrial Strategy",The Coal Authority,01/04/2023,Office Telephony - Call Charges,DIG - Service & Assurance,Daisy Corporate Services Trading Services Ltd,154671,36.56
"Department for Business, Energy and Industrial Strategy",The Coal Authority,01/04/2023,Office Telephony - Line Rent,DIG - Service & Assurance,Daisy Corporate Services Trading Services Ltd,154671,397.12
"Department for Business, Energy and Industrial Strategy",The Coal Authority,01/04/2023,Office Telephony - Line Rent,DIG - Service & Assurance,Daisy Corporate Services Trading Services Ltd,154671,0
"Department for Business, Energy and Industrial Strategy",The Coal Authority,06/03/2023,Office Telephony - Line Rent,DIG - Service & Assurance,Government Procurement Card,155628,110.68
"Department for Business, Energy and Industrial Strategy",The Coal Authority,22/03/2023,Office Telephony - Line Rent,DIG - Service & Assurance,Government Procurement Card,155628,5.4
"Department for Business, Energy and Industrial Strategy",The Coal Authority,18/05/2023,Ordance Survey Map Charges,DIG - Data Licensing,Ordnance Survey,155092,744.95
"Department for Business, Energy and Industrial Strategy",The Coal Authority,18/05/2023,Ordance Survey Map Charges,DIG - Data Licensing,Ordnance Survey,155093,"14,526.47"
"Department for Business, Energy and Industrial Strategy",The Coal Authority,18/05/2023,Ordance Survey Map Charges,DIG - Data Licensing,Ordnance Survey,155341,675.84
"Department for Business, Energy and Industrial Strategy",The Coal Authority,18/05/2023,Ordance Survey Map Charges,DIG - Data Licensing,Ordnance Survey,155342,"13,178.88"
"Department for Business, Energy and Industrial Strategy",The Coal Authority,25/04/2023,Outsourced Cleaning Staff,Facilities,Fidelis,153634,"5,590.41"
"Department for Business, Energy and Industrial Strategy",The Coal Authority,25/05/2023,Outsourced Cleaning Staff,Facilities,Fidelis,155524,"5,590.41"
"Department for Business, Energy and Industrial Strategy",The Coal Authority,31/03/2023,Outsourced Security Staff,Facilities,Regent Office Care Ltd T/A Regent Samsic,154145,"7,980.01"
"Department for Business, Energy and Industrial Strategy",The Coal Authority,05/05/2023,Outsourced Security Staff,Facilities,Regent Office Care Ltd T/A Regent Samsic,154146,-51.06
"Department for Business, Energy and Industrial Strategy",The Coal Authority,30/04/2023,Outsourced Security Staff,Facilities,Regent Office Care Ltd T/A Regent Samsic,154283,125.68
"Department for Business, Energy and Industrial Strategy",The Coal Authority,30/04/2023,Outsourced Security Staff,Facilities,Regent Office Care Ltd T/A Regent Samsic,154283,117.83
"Department for Business, Energy and Industrial Strategy",The Coal Authority,30/04/2023,Outsourced Security Staff,Facilities,Regent Office Care Ltd T/A Regent Samsic,154283,0
"Department for Business, Energy and Industrial Strategy",The Coal Authority,30/04/2023,Outsourced Security Staff,Facilities,Regent Office Care Ltd T/A Regent Samsic,154283,125.68
"Department for Business, Energy and Industrial Strategy",The Coal Authority,30/04/2023,Outsourced Security Staff,Facilities,Regent Office Care Ltd T/A Regent Samsic,154490,"8,794.76"
"Department for Business, Energy and Industrial Strategy",The Coal Authority,05/04/2023,Outsourced Security Staff,Incident & Emergency Response,Government Procurement Card,155629,164.73
"Department for Business, Energy and Industrial Strategy",The Coal Authority,14/04/2023,Peripherals / Consumables (MEP),ENV - Salinity Programme,Staff Expenses Control,153569,99.18
"Department for Business, Energy and Industrial Strategy",The Coal Authority,19/04/2023,Peripherals / Consumables (MEP),ENV - Salinity Programme,Staff Expenses Control,153569,16.65
"Department for Business, Energy and Industrial Strategy",The Coal Authority,27/04/2023,Peripherals / Consumables (MEP),PS&S - General Claims,Staff Expenses Control,153569,843.49
"Department for Business, Energy and Industrial Strategy",The Coal Authority,05/05/2023,Peripherals / Consumables (MEP),Finance,Staff Expenses Control,154710,29.35
"Department for Business, Energy and Industrial Strategy",The Coal Authority,16/05/2023,Peripherals / Consumables (MEP),DIG - Technical Delivery,Specialist Computer Centres Pl,155131,"6,170.50"
"Department for Business, Energy and Industrial Strategy",The Coal Authority,16/05/2023,Peripherals / Consumables (MEP),DIG - Technical Delivery,Specialist Computer Centres Pl,155131,30
"Department for Business, Energy and Industrial Strategy",The Coal Authority,18/05/2023,Peripherals / Consumables (MEP),ENV - Salinity Programme,Staff Expenses Control,155553,260
"Department for Business, Energy and Industrial Strategy",The Coal Authority,19/05/2023,Peripherals / Consumables (MEP),PS&S - General Claims,Staff Expenses Control,155553,20
"Department for Business, Energy and Industrial Strategy",The Coal Authority,24/03/2023,Peripherals / Consumables (MEP),ENV - Mine Water Operations,Government Procurement Card,155628,8.33
"Department for Business, Energy and Industrial Strategy",The Coal Authority,12/04/2023,Peripherals / Consumables (MEP),ENV - Mine Water Operations,Government Procurement Card,155629,0.5
"Department for Business, Energy and Industrial Strategy",The Coal Authority,26/04/2023,Plant Maintenance,Facilities,Dakro Air & Water Limited,153635,259.99
"Department for Business, Energy and Industrial Strategy",The Coal Authority,20/04/2023,Plant Maintenance,Facilities,Briggs & Forrester Building Services Maintenance L,153636,657
"Department for Business, Energy and Industrial Strategy",The Coal Authority,11/05/2023,Plant Maintenance,Facilities,Dakro Air & Water Limited,155237,180
"Department for Business, Energy and Industrial Strategy",The Coal Authority,23/05/2023,Plant Maintenance,Facilities,Briggs & Forrester Building Services Maintenance L,155523,117.21
"Department for Business, Energy and Industrial Strategy",The Coal Authority,21/04/2023,Postage & Couriers,Customer Services & Strategy,FedEx Express UK Transportaion Limited,153653,68.48
"Department for Business, Energy and Industrial Strategy",The Coal Authority,05/05/2023,Postage & Couriers,Customer Services & Strategy,FedEx Express UK Transportaion Limited,154659,98.13
"Department for Business, Energy and Industrial Strategy",The Coal Authority,12/05/2023,Postage & Couriers,Customer Services & Strategy,FedEx Express UK Transportaion Limited,155236,68.34
"Department for Business, Energy and Industrial Strategy",The Coal Authority,04/05/2023,Postage & Couriers,Customer Services & Strategy,Royal Mail Group Plc,155239,90
"Department for Business, Energy and Industrial Strategy",The Coal Authority,16/05/2023,Postage & Couriers,Customer Services & Strategy,THE MAILING ROOM LTD,155421,370.8
"Department for Business, Energy and Industrial Strategy",The Coal Authority,27/03/2023,Postage & Couriers,PS&S - General Claims,Government Procurement Card,155628,3.38
"Department for Business, Energy and Industrial Strategy",The Coal Authority,27/03/2023,Postage & Couriers,PS&S - General Claims,Government Procurement Card,155628,0.83
"Department for Business, Energy and Industrial Strategy",The Coal Authority,15/05/2023,Postage & Couriers,Customer Services & Strategy,THE MAILING ROOM LTD,155651,721.86
"Department for Business, Energy and Industrial Strategy",The Coal Authority,11/05/2023,Professional Subscriptions,Innovation By-Product & Services Delivery,Staff Expenses Control,154710,158
"Department for Business, Energy and Industrial Strategy",The Coal Authority,10/11/2022,Professional Subscriptions,Innovation By-Product & Services Delivery,Staff Expenses Control,155553,287
"Department for Business, Energy and Industrial Strategy",The Coal Authority,14/04/2023,Professional Subscriptions,Engineering,Government Procurement Card,155629,132.77
